Workbook

Sheet Cover
A1: =RIGHT(CELL("filename", $A$1), LEN(CELL("filename", $A$1)) - SEARCH("]", CELL("filename", $A$1))) -> Cover
A3: Workbook title: | B3: PR19 blind year adjustments
A4: Version: | B4: v1.0
A5: Filename: | B5: PR19-blind-year-adjustments-model.xlsx
A6: Date: | B6: 2021-01-04
A7: Author: | B7: Ofwat
A8: Author contact information: | B8: PR19BlindYear@ofwat.gov.uk
A11: Summary of workbook: | B11: The blind year adjustments reflect the impact on the reconciliations of replacing forecast 2019-20 data at PR19 final determination with actual performance data. It covers the following reconciliations: land sales, totex menu, residential retail revenue, water trading incentive and wholesale revenue forecasting incentive mechanism. It does not include the blind year ODI where the adjustment for the blind year ODI performance payments is applied through the in-period adjustment process.
B12: This model compares the updated reconciliations with the final determination reconciliations. It calculates the PR19 blind year adjustments by subtraction (blind year minus final determination).
B13: The model operates in the PR19 price base (2017-18 FYA CPIH deflated prices).
B14: Revenue adjustments profiling applied in the final determination is not relevant to the calculation of the blind year adjustments. Therefore the blind year revenue adjustments are calculated as if the reconciliation adjustments were applied in full in 2020-21.
B15: The blind year revenue adjustments to wholesale controls are applied through the revenue forecasting incentive in 2021-25 and the adjustment to residential control is applied at PR24.
B16: The blind year RCV adjustments will be applied as mid-night adjustments to the RCV at PR24.
A18: Known limitations: | B18: This model is subject to consultation on the proposed PR19 blind year adjustments and consequently may be subject to further changes.
A20: Instructions: | B20: Populate this model with outputs produced by the RCV adjustments and revenue adjustments feeder models from:
B21: PR19 final determination modelling (as published on the Ofwat website); and
B22: PR19 blind year adjustment modelling.
A24: Amendments: | B24: Maintain alignment of F_Inputs sheets with PR19 blind year final determination versions of the RCV adjustments feeder and Revenue adjustments feeder models.
B25: Add 'RCV BY RPI-CPIH wedge' sheet to include calculations to reconcile the blind year inflation impact on the opening RCV at PR19.
B26: Convert blind year revenue adjustments to the price base required for input to the revenue forecasting incentive (RFI) model. RFI model inputs are defined as ‘base year 2019/20 prices’ that is the November prior to 2019/20 (ie Nov 2018).
B27: Exclude ODI payments from 'Total blind year adjustments at RFI base year 2019-20 prices (2018 November)'.
B28: Correct the indexation factor used to convert the blind year revenue adjustments into the price base required for input to the revenue forecasting incentive (RFI) model to align the indexation approach to the PR19 financial model .
A31: References:
B32: RCV adjustments feeder model as at PR19 final determination (published December 2019)
B33: Revenue adjustments feeder model as at PR19 final determination (published December 2019)
B34: RCV adjustments feeder model as at PR19 blind year reconciliation
B35: Revenue adjustments feeder model as at PR19 blind year reconciliation
A37: Error Checks: | B37: [List as appropriate] | C37: RAG status / Variance
A42: Feedback: | B42: We would welcome feedback on this workbook. Please send any feedback to the following email address:
B43: FinanceAndGovernance@ofwat.gov.uk
A46: END OF SHEET

Sheet Inputs>>

Sheet F_Inputs Run8
A2: Acronym | B2: Reference | C2: Item description | D2: Unit | E2: Model | F2: Price Review 2019
F4: Run08 | G4: Run08 | H4: Run08 | I4: Run08 | J4: Run08 | K4: Run08 | L4: Run08 | M4: Run08 | N4: Run08 | O4: Run08 | P4: Run08 | Q4: Run08 | R4: Run08
F5: Latest | G5: Latest | H5: Latest | I5: Latest | J5: Latest | K5: Latest | L5: Latest | M5: Latest | N5: Latest | O5: Latest | P5: Latest | Q5: Latest | R5: Latest
F6: 2011-12 | G6: 2012-13 | H6: 2013-14 | I6: 2014-15 | J6: 2015-16 | K6: 2016-17 | L6: 2017-18 | M6: 2018-19 | N6: 2019-20 | O6: 2020-21 | P6: 2015-20 | Q6: 2014-20 | R6: PR19 application
A7: AFW | B7: BB3905AL | C7: Consumer Price Index (with housing) for April | D7: nr | E7: Price Review 2019 | F7: 93.3 | G7: 95.9 | H7: 98 | I7: 99.6 | J7: 99.9 | K7: 100.6 | L7: 103.2 | M7: 105.5 | N7: 107.6 | O7: 109.8
A8: AFW | B8: BB3905MY | C8: Consumer Price Index (with housing) for May | D8: nr | E8: Price Review 2019 | F8: 93.5 | G8: 95.9 | H8: 98.2 | I8: 99.6 | J8: 100.1 | K8: 100.8 | L8: 103.5 | M8: 105.9 | N8: 107.9 | O8: 110.2
A9: AFW | B9: BB3905JN | C9: Consumer Price Index (with housing) for June | D9: nr | E9: Price Review 2019 | F9: 93.5 | G9: 95.6 | H9: 98 | I9: 99.8 | J9: 100.1 | K9: 101 | L9: 103.5 | M9: 105.9 | N9: 108 | O9: 110.2
A10: AFW | B10: BB3905JL | C10: Consumer Price Index (with housing) for July | D10: nr | E10: Price Review 2019 | F10: 93.5 | G10: 95.7 | H10: 98 | I10: 99.6 | J10: 100 | K10: 100.9 | L10: 103.5 | M10: 105.9 | N10: 108 | O10: 110.2
A11: AFW | B11: BB3905AT | C11: Consumer Price Index (with housing) for August | D11: nr | E11: Price Review 2019 | F11: 93.9 | G11: 96.1 | H11: 98.4 | I11: 99.9 | J11: 100.3 | K11: 101.2 | L11: 104 | M11: 106.5 | N11: 108.6 | O11: 110.8
A12: AFW | B12: BB3905SR | C12: Consumer Price Index (with housing) for September | D12: nr | E12: Price Review 2019 | F12: 94.5 | G12: 96.4 | H12: 98.7 | I12: 100 | J12: 100.2 | K12: 101.5 | L12: 104.3 | M12: 106.6 | N12: 108.7 | O12: 110.9
A13: AFW | B13: BB3905OR | C13: Consumer Price Index (with housing) for October | D13: nr | E13: Price Review 2019 | F13: 94.5 | G13: 96.8 | H13: 98.8 | I13: 100.1 | J13: 100.3 | K13: 101.6 | L13: 104.4 | M13: 106.7 | N13: 108.8 | O13: 111
A14: AFW | B14: BB3905NR | C14: Consumer Price Index (with housing) for November | D14: nr | E14: Price Review 2019 | F14: 94.7 | G14: 97 | H14: 98.8 | I14: 99.9 | J14: 100.3 | K14: 101.8 | L14: 104.7 | M14: 106.9 | N14: 109 | O14: 111.2
A15: AFW | B15: BB3905DR | C15: Consumer Price Index (with housing) for December | D15: nr | E15: Price Review 2019 | F15: 95 | G15: 97.3 | H15: 99.2 | I15: 99.9 | J15: 100.4 | K15: 102.2 | L15: 105 | M15: 107.1 | N15: 109.2 | O15: 111.4
A16: AFW | B16: BB3905JY | C16: Consumer Price Index (with housing) for January | D16: nr | E16: Price Review 2019 | F16: 94.7 | G16: 97 | H16: 98.7 | I16: 99.2 | J16: 99.9 | K16: 101.8 | L16: 104.5 | M16: 106.4 | N16: 108.5 | O16: 110.7
A17: AFW | B17: BB3905FY | C17: Consumer Price Index (with housing) for February | D17: nr | E17: Price Review 2019 | F17: 95.2 | G17: 97.5 | H17: 99.1 | I17: 99.5 | J17: 100.1 | K17: 102.4 | L17: 104.9 | M17: 106.8 | N17: 109.1 | O17: 111.3
A18: AFW | B18: BB3905MH | C18: Consumer Price Index (with housing) for March | D18: nr | E18: Price Review 2019 | F18: 95.4 | G18: 97.8 | H18: 99.3 | I18: 99.6 | J18: 100.4 | K18: 102.7 | L18: 105.1 | M18: 107 | N18: 109.3 | O18: 111.5
A19: AFW | B19: BB3805AL | C19: Retail Price Index for April | D19: nr | E19: Price Review 2019 | F19: 234.4 | G19: 242.5 | H19: 249.5 | I19: 255.7 | J19: 258 | K19: 261.4 | L19: 270.6 | M19: 279.7 | N19: 288.2 | O19: 296.7
A20: AFW | B20: BB3805MY | C20: Retail Price Index for May | D20: nr | E20: Price Review 2019 | F20: 235.2 | G20: 242.4 | H20: 250 | I20: 255.9 | J20: 258.5 | K20: 262.1 | L20: 271.7 | M20: 280.7 | N20: 289.2 | O20: 297.8
A21: AFW | B21: BB3805JN | C21: Retail Price Index for June | D21: nr | E21: Price Review 2019 | F21: 235.2 | G21: 241.8 | H21: 249.7 | I21: 256.3 | J21: 258.9 | K21: 263.1 | L21: 272.3 | M21: 281.5 | N21: 289.9 | O21: 298.6
A22: AFW | B22: BB3805JL | C22: Retail Price Index for July | D22: nr | E22: Price Review 2019 | F22: 234.7 | G22: 242.1 | H22: 249.7 | I22: 256 | J22: 258.6 | K22: 263.4 | L22: 272.9 | M22: 281.7 | N22: 290.2 | O22: 298.9
A23: AFW | B23: BB3805AT | C23: Retail Price Index for August | D23: nr | E23: Price Review 2019 | F23: 236.1 | G23: 243 | H23: 251 | I23: 257 | J23: 259.8 | K23: 264.4 | L23: 274.7 | M23: 284.2 | N23: 292.7 | O23: 301.5
A24: AFW | B24: BB3805SR | C24: Retail Price Index for September | D24: nr | E24: Price Review 2019 | F24: 237.9 | G24: 244.2 | H24: 251.9 | I24: 257.6 | J24: 259.6 | K24: 264.9 | L24: 275.1 | M24: 284.1 | N24: 292.6 | O24: 301.4
A25: AFW | B25: BB3805OR | C25: Retail Price Index for October | D25: nr | E25: Price Review 2019 | F25: 238 | G25: 245.6 | H25: 251.9 | I25: 257.7 | J25: 259.5 | K25: 264.8 | L25: 275.3 | M25: 284.5 | N25: 293 | O25: 301.8
A26: AFW | B26: BB3805NR | C26: Retail Price Index for November | D26: nr | E26: Price Review 2019 | F26: 238.5 | G26: 245.6 | H26: 252.1 | I26: 257.1 | J26: 259.8 | K26: 265.5 | L26: 275.8 | M26: 284.6 | N26: 293.1 | O26: 301.9
A27: AFW | B27: BB3805DR | C27: Retail Price Index for December | D27: nr | E27: Price Review 2019 | F27: 239.4 | G27: 246.8 | H27: 253.4 | I27: 257.5 | J27: 260.6 | K27: 267.1 | L27: 278.1 | M27: 285.6 | N27: 294.2 | O27: 303
A28: AFW | B28: BB3805JY | C28: Retail Price Index for January | D28: nr | E28: Price Review 2019 | F28: 238 | G28: 245.8 | H28: 252.6 | I28: 255.4 | J28: 258.8 | K28: 265.5 | L28: 276 | M28: 283 | N28: 291.5 | O28: 300.2
A29: AFW | B29: BB3805FY | C29: Retail Price Index for February | D29: nr | E29: Price Review 2019 | F29: 239.9 | G29: 247.6 | H29: 254.2 | I29: 256.7 | J29: 260 | K29: 268.4 | L29: 278.1 | M29: 285 | N29: 295 | O29: 303.9
A30: AFW | B30: BB3805MH | C30: Retail Price Index for March | D30: nr | E30: Price Review 2019 | F30: 240.8 | G30: 248.7 | H30: 254.8 | I30: 257.1 | J30: 261.1 | K30: 269.3 | L30: 278.3 | M30: 285.1 | N30: 295.2 | O30: 304.1
A31: AFW | B31: APP8001W | C31: RCV year end balances - Water RCV closing balance at 31 March 2020 - Wholesale water closing RCV at 31 March 2020 in 2012-13 prices (from PR14 FD) | D31: £m | E31: Price Review 2019 | N31: 1030.679533
A32: AFW | B32: C00572_L021 | C32: Water - Total Adjustment RCV carry forward to PR19 | D32: £m | E32: Price Review 2019 | P32: -8.994541666
A33: AFW | B33: APP25001 | C33: Further 2010-15 reconciliation adjustments - Water ~ CIS RCV inflation correction | D33: £m | E33: Price Review 2019 | P33: -22.63556146
A34: AFW | B34: C_APP27029_PD002 | C34: Net performance payment / (penalty) applied to RCV for end of period ODI adjustments ~ Water resources | D34: £m | E34: Price Review 2019 | J34: 0 | K34: 0 | L34: 0 | M34: 0 | N34: 0 | R34: 0
A35: AFW | B35: C_APP27030_PD002 | C35: Net performance payment / (penalty) applied to RCV for end of period ODI adjustments ~ Water network plus | D35: £m | E35: Price Review 2019 | J35: 0 | K35: 0 | L35: 0 | M35: 0 | N35: 0 | R35: 0
A40: AFW | B40: C_WS15025_PR19PD006 | C40: Water: RCV adjustment from totex menu model | D40: £m | E40: Price Review 2019 | N40: 3.485711856
A41: AFW | B41: APP8009W | C41: RCV year end balances - Water RCV closing balance at 31 March 2020 - Water ~ Other adjustment to wholesale RCV | D41: £m | E41: Price Review 2019 | N41: 0
A42: AFW | B42: C_A7010W_PR19PD003 | C42: NPV effect of 50% of proceeds from disposals of interest in land | D42: £m | E42: Price Review 2019 | N42: -0.7762475104
A43: AFW | B43: WS12019WR | C43: RCV ~ 31 March 2020 ( % of total wholesale water) - Water resources | D43: % | E43: Price Review 2019 | L43: 0.1099675352
A44: AFW | B44: APP33021WR | C44: Water resources - RCV adjustment | D44: £m | E44: Price Review 2019 | N44: 0
A45: AFW | B45: APP33021WNP | C45: Water network plus - RCV adjustment | D45: £m | E45: Price Review 2019 | N45: 12.59759155
A46: AFW | B46: APP8001WW | C46: RCV year end balances - Wastewater RCV closing balance at 31 March 2020 - Wholesale wastewater closing RCV at 31 March 2020 in 2012-13 prices (PR14 FD) | D46: £m | E46: Price Review 2019 | N46: 0
A47: AFW | B47: C00579_L021 | C47: Wastewater - Total Adjustment RCV carry forward to PR19 | D47: £m | E47: Price Review 2019 | P47: 0
A48: AFW | B48: APP25002 | C48: Further 2010-15 reconciliation adjustments - Wastewater ~ CIS RCV inflation correction | D48: £m | E48: Price Review 2019 | P48: 0
A49: AFW | B49: C_APP27031_PD002 | C49: Net performance payment / (penalty) applied to RCV for end of period ODI adjustments ~ Wastewater network plus | D49: £m | E49: Price Review 2019 | J49: 0 | K49: 0 | L49: 0 | M49: 0 | N49: 0 | R49: 0
A52: AFW | B52: C_WWS15020_PR19PD006 | C52: Wastewater: RCV adjustment from totex menu model | D52: £m | E52: Price Review 2019 | N52: 0
A53: AFW | B53: APP8009WW | C53: RCV year end balances - Wastewater RCV closing balance at 31 March 2020 - Wastewater ~ Other adjustment to wholesale RCV | D53: £m | E53: Price Review 2019 | N53: 0
A54: AFW | B54: C_A7010WW_PR19PD003 | C54: NPV effect of 50% of proceeds from disposals of interest in land | D54: £m | E54: Price Review 2019 | N54: 0
A55: AFW | B55: WWS12016BIO | C55: RCV split 31 March 2020 - RCV (prior to midnight adjustments) - Bioresources | D55: £m | E55: Price Review 2019 | L55: 0
A56: AFW | B56: APP33021BIO | C56: Bioresources - RCV adjustment | D56: £m | E56: Price Review 2019 | N56: 0
A57: AFW | B57: APP33021WWNP | C57: Wastewater network plus - RCV adjustment | D57: £m | E57: Price Review 2019 | N57: 0
A58: AFW | B58: RCV1011DMMY | C58: RCV year end balances - Dummy RCV - Dummy RCV (prior to midnight adjustments) 31 March 2020 | D58: £m | E58: Price Review 2019 | N58: 0
A59: AFW | B59: C_APP27032_PD002 | C59: Net performance payment / (penalty) applied to RCV for end of period ODI adjustments ~ Thames Tideway | D59: £m | E59: Price Review 2019 | J59: 0 | K59: 0 | L59: 0 | M59: 0 | N59: 0 | R59: 0
A62: AFW | B62: C_WWS15020_DMMY_PR19PD006 | C62: Wastewater: RCV adjustment from totex menu model (TTT) | D62: £m | E62: Price Review 2019 | N62: 0
A63: AFW | B63: APP8009DMMY | C63: RCV year end balances - Dummy RCV - Dummy ~ Other adjustment to wholesale RCV | D63: £m | E63: Price Review 2019 | N63: 0
A64: AFW | B64: APP33021DMMY | C64: Dummy - RCV adjustment | D64: £m | E64: Price Review 2019 | N64: 0
B65: C_APP8010W_PR19PD010 | C65: Total wholesale water RCV at 31 March 2020 post midnight adjustments before allocation to price control units at 2017-18 FYE CPIH deflated price base | D65: £m | E65: Price Review 2019 | N65: 1162.276685
B66: C_APP8010WW_PR19PD010 | C66: Total wholesale wastewater RCV at 31 March 2020 post midnight adjustments before allocation to price control units at 2017-18 FYE CPIH deflated price base | D66: £m | E66: Price Review 2019 | N66: 0
B67: C_APP8010DMMY_PR19PD010 | C67: Total dummy RCV at 31 March 2020 post midnight adjustments at 2017-18 FYE CPIH deflated price base | D67: £m | E67: Price Review 2019 | N67: 0
B68: PR19PD010 'Calc' row 117 | C68: Water resources 2020 RCV RPI inflated ~ 1 April (opening balance excluding IFRS16 and Other adjustment) at 2017-18 CPIH deflated price base | D68: £m | E68: Price Review 2019 | N68: 63.36923777
B69: PR19PD010 'Calc' row 118 | C69: Water resources 2020 RCV CPIH inflated ~ 1 April (opening balance excluding IFRS16 and Other adjustment) at 2017-18 CPIH deflated price base | D69: £m | E69: Price Review 2019 | N69: 63.36923777
B70: PR19PD010 'Calc' row 40 | C70: Water resources IFRS16 RCV adjustment at 2017-18 FYA CPIH deflated price base | D70: £m | E70: Price Review 2019 | N70: 0
B71: PR19PD010 'Calc' row 166 | C71: Water network plus RCV RPI inflated ~ 1 April (opening balance excluding IFRS16 and other adjustment) at 2017-18 CPIH deflated price base | D71: £m | E71: Price Review 2019 | N71: 512.8848146
B72: PR19PD010 'Calc' row 167 | C72: Water network plus RCV CPIH inflated ~ 1 April (opening balance excluding IFRS16 and other adjustment) at 2017-18 CPIH deflated price base | D72: £m | E72: Price Review 2019 | N72: 512.8848146
B73: PR19PD010 'Calc' row 41 | C73: Water network plus IFRS16 RCV adjustment at 2017-18 FYA CPIH deflated price base | D73: £m | E73: Price Review 2019 | N73: 12.49171265
B74: PR19PD010 'Calc' row 306 | C74: Wastewater network plus RCV RPI inflated ~ 1 April (opening balance excluding IFRS16 and other adjustment) at 2017-18 CPIH deflated price base | D74: £m | E74: Price Review 2019 | N74: 0
B75: PR19PD010 'Calc' row 307 | C75: Wastewater network plus RCV CPIH inflated ~ 1 April (opening balance excluding IFRS16 and other adjustment) at 2017-18 CPIH deflated price base | D75: £m | E75: Price Review 2019 | N75: 0
B76: PR19PD010 'Calc' row 231 | C76: Wastewater network plus IFRS16 RCV adjustment at 2017-18 FYA CPIH deflated price base | D76: £m | E76: Price Review 2019 | N76: 0
B77: PR19PD010 'Calc' row 358 | C77: Bioresources 2020 RCV RPI inflated ~ 1 April (opening balance) at 2017-18 CPIH deflated price base | D77: £m | E77: Price Review 2019 | N77: 0
B78: PR19PD010 'Calc' row 362 | C78: Bioresources 2020 RCV CPIH inflated ~ 1 April (opening balance) at 2017-18 CPIH deflated price base | D78: £m | E78: Price Review 2019 | N78: 0
B79: PR19PD010 'Calc' row 230 | C79: Bioresources IFRS16 RCV adjustment at 2017-18 FYA CPIH deflated price base | D79: £m | E79: Price Review 2019 | N79: 0
B80: PR19PD010 'Calc' row 450 | C80: Dummy 2020 RCV RPI inflated ~ 1 April (opening balance excluding IFRS16 and other adjustment) at 2017-18 CPIH deflated price base | D80: £m | E80: Price Review 2019 | N80: 0
B81: PR19PD010 'Calc' row 451 | C81: Dummy 2020 RCV CPIH inflated ~ 1 April (opening balance excluding IFRS16 and other adjustment) at 2017-18 CPIH deflated price base | D81: £m | E81: Price Review 2019 | N81: 0
B82: PR19PD010 'Calc' row 398 | C82: Dummy IFRS16 RCV adjustment at 2017-18 FYA CPIH deflated price base | D82: £m | E82: Price Review 2019 | N82: 0
A83: AFW | B83: C_APP27015_PD002 | C83: Net performance payment / (penalty) applied to revenue for in-period ODI adjustments ~ Water resources | D83: £m | E83: Price Review 2019 | J83: 0 | K83: 0 | L83: 0 | M83: 0 | N83: 0 | R83: 0
A84: AFW | B84: C_APP27022_PD002 | C84: Net performance payment / (penalty) applied to revenue for end of period ODI adjustments ~ Water resources | D84: £m | E84: Price Review 2019 | J84: 0 | K84: 0 | L84: 1.2648 | M84: 0 | N84: 0 | R84: 1.2648
A89: AFW | B89: C_WS17013_PR19D007 | C89: Incentives to be paid at PR19 - Water resources control - Export incentives (2012-13 prices) | D89: £m | E89: Price Review 2019 | R89: 0
A90: AFW | B90: C_WS17025_PR19D007 | C90: Incentives to be paid at PR19 - Water resources control - Import incentives (2012-13 prices) | D90: £m | E90: Price Review 2019 | R90: 0
A91: AFW | B91: C00578_L021 | C91: Water - Total Adjustment Revenue carry forward to PR19 | D91: £m | E91: Price Review 2019 | P91: 0.8686440598
A92: AFW | B92: C_APP27016_PD002 | C92: Net performance payment / (penalty) applied to revenue for in-period ODI adjustments ~ Water network plus | D92: £m | E92: Price Review 2019 | J92: 0 | K92: 0 | L92: 0 | M92: 0 | N92: 0 | R92: 0
A93: AFW | B93: C_APP27023_PD002 | C93: Net performance payment / (penalty) applied to revenue for end of period ODI adjustments ~ Water network plus | D93: £m | E93: Price Review 2019 | J93: -1.63755 | K93: -1.63755 | L93: -2.66355 | M93: -6.972 | N93: 0 | R93: -12.91065
A98: AFW | B98: C_WS15024_PR19PD006 | C98: Water: revenue adjustment from totex menu model | D98: £m | E98: Price Review 2019 | R98: -0.05571087418
A99: AFW | B99: C_WS17014_PR19D007 | C99: Incentives to be paid at PR19 - Network plus water control - Export incentives (2012-13 prices) | D99: £m | E99: Price Review 2019 | R99: 0
A100: AFW | B100: C_WS17026_PR19D007 | C100: Incentives to be paid at PR19 - Network plus water control - Import incentives (2012-13 prices) | D100: £m | E100: Price Review 2019 | R100: 0
A101: AFW | B101: C_WS13026_PR19PD005 | C101: Total reward / (penalty) at the end of AMP6 - water | D101: £m | E101: Price Review 2019 | N101: 0.5433250978 | R101: 0.5433250978
A102: AFW | B102: C_APP27018_PD002 | C102: Net performance payment / (penalty) applied to revenue for in-period ODI adjustments ~ Bioresources | D102: £m | E102: Price Review 2019 | J102: 0 | K102: 0 | L102: 0 | M102: 0 | N102: 0 | R102: 0
A103: AFW | B103: C_APP27025_PD002 | C103: Net performance payment / (penalty) applied to revenue for end of period ODI adjustments ~ Bioresources | D103: £m | E103: Price Review 2019 | J103: 0 | K103: 0 | L103: 0 | M103: 0 | N103: 0 | R103: 0
A108: AFW | B108: C00585_L021 | C108: Wastewater - Total Adjustment Revenue carry forward to PR19 | D108: £m | E108: Price Review 2019 | P108: 0
A109: AFW | B109: C_APP27017_PD002 | C109: Net performance payment / (penalty) applied to revenue for in-period ODI adjustments ~ Wastewater network plus | D109: £m | E109: Price Review 2019 | J109: 0 | K109: 0 | L109: 0 | M109: 0 | N109: 0 | R109: 0
A110: AFW | B110: C_APP27024_PD002 | C110: Net performance payment / (penalty) applied to revenue for end of period ODI adjustments ~ Wastewater network plus | D110: £m | E110: Price Review 2019 | J110: 0 | K110: 0 | L110: 0 | M110: 0 | N110: 0 | R110: 0
A115: AFW | B115: C_WWS15019_PR19PD006 | C115: Wastewater: revenue adjustment from totex menu model | D115: £m | E115: Price Review 2019 | R115: 0
A116: AFW | B116: C_WWS13026_PR19PD005 | C116: Total reward / (penalty) at the end of AMP6 - waste | D116: £m | E116: Price Review 2019 | N116: 0 | R116: 0
A121: AFW | B121: C_WWS15019_DMMY_PR19PD006 | C121: Wastewater: revenue adjustment from totex menu model (TTT) | D121: £m | E121: Price Review 2019 | R121: 0
A122: AFW | B122: C_WWS13026_DMMY_PR19PD005 | C122: Total reward / (penalty) at the end of AMP6 - dmmy | D122: £m | E122: Price Review 2019 | N122: 0 | R122: 0
A123: AFW | B123: C_APP27019_PD002 | C123: Net performance payment / (penalty) applied to revenue for in-period ODI adjustments ~ Residential retail | D123: £m | E123: Price Review 2019 | J123: 0 | K123: 0 | L123: 0 | M123: 0 | N123: 0 | R123: 0
A124: AFW | B124: C_APP27026_PD002 | C124: Net performance payment / (penalty) applied to revenue for end of period ODI adjustments ~ Residential retail | D124: £m | E124: Price Review 2019 | J124: 0 | K124: 0 | L124: 0 | M124: 0 | N124: 0 | R124: 0
A125: AFW | B125: C_R9045_PR19PD008 | C125: Total reward / (penalty) at the end of AMP6 - Residential retail revenue adjustment at the end of AMP6 | D125: £m | E125: Price Review 2019 | N125: 1.34450412 | R125: 1.34450412
A126: AFW | B126: C_R10009_PR19PD009 | C126: SIM adjustment - Household retail £m | D126: £m | E126: Price Review 2019 | R126: -11.191876
A127: AFW | B127: C_APP27020_PD002 | C127: Net performance payment / (penalty) applied to revenue for in-period ODI adjustments ~ Business retail | D127: £m | E127: Price Review 2019 | J127: 0 | K127: 0 | L127: 0 | M127: 0 | N127: 0 | R127: 0
A128: AFW | B128: C_APP27027_PD002 | C128: Net performance payment / (penalty) applied to revenue for end of period ODI adjustments ~ Business retail | D128: £m | E128: Price Review 2019 | J128: 0 | K128: 0 | L128: 0 | M128: 0 | N128: 0 | R128: 0
A133: AFW | B133: C_004_PR19PD014 | C133: Non-household SIM adjustment - business retail £m | D133: £m | E133: Price Review 2019 | R133: 0
A134: AFW | B134: C003_PR19PD015 | C134: Other revenue adjustment - water network plus | D134: £m | E134: Price Review 2019 | R134: 0
A135: AFW | B135: C006_PR19PD015 | C135: Other revenue adjustment - wastewater network plus | D135: £m | E135: Price Review 2019 | R135: 0

Sheet F_Inputs_BY
A2: Acronym | B2: Reference | C2: Item description | D2: Unit | E2: Model | F2: Price Review 2019
F4: BYRun1
F5: Latest
F6: 2011-12 | G6: 2012-13 | H6: 2013-14 | I6: 2014-15 | J6: 2015-16 | K6: 2016-17 | L6: 2017-18 | M6: 2018-19 | N6: 2019-20 | O6: 2020-21 | P6: 2015-20 | Q6: 2014-20 | R6: PR19 application
A7: AFW | B7: BB3905AL | C7: Consumer Price Index (with housing) for April | D7: nr | E7: Price Review 2019 | F7: 93.3 | G7: 95.9 | H7: 98 | I7: 99.6 | J7: 99.9 | K7: 100.6 | L7: 103.2 | M7: 105.5 | N7: 107.6
A8: AFW | B8: BB3905MY | C8: Consumer Price Index (with housing) for May | D8: nr | E8: Price Review 2019 | F8: 93.5 | G8: 95.9 | H8: 98.2 | I8: 99.6 | J8: 100.1 | K8: 100.8 | L8: 103.5 | M8: 105.9 | N8: 107.9
A9: AFW | B9: BB3905JN | C9: Consumer Price Index (with housing) for June | D9: nr | E9: Price Review 2019 | F9: 93.5 | G9: 95.6 | H9: 98 | I9: 99.8 | J9: 100.1 | K9: 101 | L9: 103.5 | M9: 105.9 | N9: 107.9
A10: AFW | B10: BB3905JL | C10: Consumer Price Index (with housing) for July | D10: nr | E10: Price Review 2019 | F10: 93.5 | G10: 95.7 | H10: 98 | I10: 99.6 | J10: 100 | K10: 100.9 | L10: 103.5 | M10: 105.9 | N10: 108
A11: AFW | B11: BB3905AT | C11: Consumer Price Index (with housing) for August | D11: nr | E11: Price Review 2019 | F11: 93.9 | G11: 96.1 | H11: 98.4 | I11: 99.9 | J11: 100.3 | K11: 101.2 | L11: 104 | M11: 106.5 | N11: 108.3
A12: AFW | B12: BB3905SR | C12: Consumer Price Index (with housing) for September | D12: nr | E12: Price Review 2019 | F12: 94.5 | G12: 96.4 | H12: 98.7 | I12: 100 | J12: 100.2 | K12: 101.5 | L12: 104.3 | M12: 106.6 | N12: 108.4
A13: AFW | B13: BB3905OR | C13: Consumer Price Index (with housing) for October | D13: nr | E13: Price Review 2019 | F13: 94.5 | G13: 96.8 | H13: 98.8 | I13: 100.1 | J13: 100.3 | K13: 101.6 | L13: 104.4 | M13: 106.7 | N13: 108.3
A14: AFW | B14: BB3905NR | C14: Consumer Price Index (with housing) for November | D14: nr | E14: Price Review 2019 | F14: 94.7 | G14: 97 | H14: 98.8 | I14: 99.9 | J14: 100.3 | K14: 101.8 | L14: 104.7 | M14: 106.9 | N14: 108.5
A15: AFW | B15: BB3905DR | C15: Consumer Price Index (with housing) for December | D15: nr | E15: Price Review 2019 | F15: 95 | G15: 97.3 | H15: 99.2 | I15: 99.9 | J15: 100.4 | K15: 102.2 | L15: 105 | M15: 107.1 | N15: 108.5
A16: AFW | B16: BB3905JY | C16: Consumer Price Index (with housing) for January | D16: nr | E16: Price Review 2019 | F16: 94.7 | G16: 97 | H16: 98.7 | I16: 99.2 | J16: 99.9 | K16: 101.8 | L16: 104.5 | M16: 106.4 | N16: 108.3
A17: AFW | B17: BB3905FY | C17: Consumer Price Index (with housing) for February | D17: nr | E17: Price Review 2019 | F17: 95.2 | G17: 97.5 | H17: 99.1 | I17: 99.5 | J17: 100.1 | K17: 102.4 | L17: 104.9 | M17: 106.8 | N17: 108.6
A18: AFW | B18: BB3905MH | C18: Consumer Price Index (with housing) for March | D18: nr | E18: Price Review 2019 | F18: 95.4 | G18: 97.8 | H18: 99.3 | I18: 99.6 | J18: 100.4 | K18: 102.7 | L18: 105.1 | M18: 107 | N18: 108.6
A19: AFW | B19: BB3805AL | C19: Retail Price Index for April | D19: nr | E19: Price Review 2019 | F19: 234.4 | G19: 242.5 | H19: 249.5 | I19: 255.7 | J19: 258 | K19: 261.4 | L19: 270.6 | M19: 279.7 | N19: 288.2
A20: AFW | B20: BB3805MY | C20: Retail Price Index for May | D20: nr | E20: Price Review 2019 | F20: 235.2 | G20: 242.4 | H20: 250 | I20: 255.9 | J20: 258.5 | K20: 262.1 | L20: 271.7 | M20: 280.7 | N20: 289.2
A21: AFW | B21: BB3805JN | C21: Retail Price Index for June | D21: nr | E21: Price Review 2019 | F21: 235.2 | G21: 241.8 | H21: 249.7 | I21: 256.3 | J21: 258.9 | K21: 263.1 | L21: 272.3 | M21: 281.5 | N21: 289.6
A22: AFW | B22: BB3805JL | C22: Retail Price Index for July | D22: nr | E22: Price Review 2019 | F22: 234.7 | G22: 242.1 | H22: 249.7 | I22: 256 | J22: 258.6 | K22: 263.4 | L22: 272.9 | M22: 281.7 | N22: 289.5
A23: AFW | B23: BB3805AT | C23: Retail Price Index for August | D23: nr | E23: Price Review 2019 | F23: 236.1 | G23: 243 | H23: 251 | I23: 257 | J23: 259.8 | K23: 264.4 | L23: 274.7 | M23: 284.2 | N23: 291.7
A24: AFW | B24: BB3805SR | C24: Retail Price Index for September | D24: nr | E24: Price Review 2019 | F24: 237.9 | G24: 244.2 | H24: 251.9 | I24: 257.6 | J24: 259.6 | K24: 264.9 | L24: 275.1 | M24: 284.1 | N24: 291
A25: AFW | B25: BB3805OR | C25: Retail Price Index for October | D25: nr | E25: Price Review 2019 | F25: 238 | G25: 245.6 | H25: 251.9 | I25: 257.7 | J25: 259.5 | K25: 264.8 | L25: 275.3 | M25: 284.5 | N25: 290.4
A26: AFW | B26: BB3805NR | C26: Retail Price Index for November | D26: nr | E26: Price Review 2019 | F26: 238.5 | G26: 245.6 | H26: 252.1 | I26: 257.1 | J26: 259.8 | K26: 265.5 | L26: 275.8 | M26: 284.6 | N26: 291
A27: AFW | B27: BB3805DR | C27: Retail Price Index for December | D27: nr | E27: Price Review 2019 | F27: 239.4 | G27: 246.8 | H27: 253.4 | I27: 257.5 | J27: 260.6 | K27: 267.1 | L27: 278.1 | M27: 285.6 | N27: 291.9
A28: AFW | B28: BB3805JY | C28: Retail Price Index for January | D28: nr | E28: Price Review 2019 | F28: 238 | G28: 245.8 | H28: 252.6 | I28: 255.4 | J28: 258.8 | K28: 265.5 | L28: 276 | M28: 283 | N28: 290.6
A29: AFW | B29: BB3805FY | C29: Retail Price Index for February | D29: nr | E29: Price Review 2019 | F29: 239.9 | G29: 247.6 | H29: 254.2 | I29: 256.7 | J29: 260 | K29: 268.4 | L29: 278.1 | M29: 285 | N29: 292
A30: AFW | B30: BB3805MH | C30: Retail Price Index for March | D30: nr | E30: Price Review 2019 | F30: 240.8 | G30: 248.7 | H30: 254.8 | I30: 257.1 | J30: 261.1 | K30: 269.3 | L30: 278.3 | M30: 285.1 | N30: 292.6
A31: AFW | B31: APP8001W | C31: RCV year end balances - Water RCV closing balance at 31 March 2020 - Wholesale water closing RCV at 31 March 2020 in 2012-13 prices (from PR14 FD) | D31: £m | E31: Price Review 2019 | N31: 1030.679533
A32: AFW | B32: C00572_L021 | C32: Water - Total Adjustment RCV carry forward to PR19 | D32: £m | E32: Price Review 2019 | P32: -8.995
A33: AFW | B33: APP25001 | C33: Further 2010-15 reconciliation adjustments - Water ~ CIS RCV inflation correction | D33: £m | E33: Price Review 2019 | P33: -22.636
A34: AFW | B34: C_APP27029_PD002 | C34: Net performance payment / (penalty) applied to RCV for end of period ODI adjustments ~ Water resources | D34: £m | E34: Price Review 2019 | J34: 0 | K34: 0 | L34: 0 | M34: 0 | N34: 0 | R34: 0
A35: AFW | B35: C_APP27030_PD002 | C35: Net performance payment / (penalty) applied to RCV for end of period ODI adjustments ~ Water network plus | D35: £m | E35: Price Review 2019 | J35: 0 | K35: 0 | L35: 0 | M35: 0 | N35: 0 | R35: 0
A36: AFW | B36: APP27029 | C36: End of period ODI RCV adjustments allocated to PR19 price controls (2012-13 prices) - Net performance payment / (penalty) applied to RCV for end of period ODI adjustments ~ Water resources | D36: £m | E36: Price Review 2019 | J36: 0 | K36: 0 | L36: 0 | M36: 0 | N36: 0 | R36: 0
A37: AFW | B37: APP27030 | C37: End of period ODI RCV adjustments allocated to PR19 price controls (2012-13 prices) - Net performance payment / (penalty) applied to RCV for end of period ODI adjustments ~ Water network plus | D37: £m | E37: Price Review 2019 | J37: 0 | K37: 0 | L37: 0 | M37: 0 | N37: 0 | R37: 0
A38: AFW | B38: B_APP27029_PR19PD019_BYFD | C38: Net blind year intervention (2012-13 prices) applied to RCV for end of period ODI adjustments - Water resources | D38: £m | E38: Price Review 2019 | N38: 0 | R38: 0
A39: AFW | B39: B_APP27030_PR19PD019_BYFD | C39: Net blind year intervention (2012-13 prices) applied to RCV for end of period ODI adjustments - Water network plus | D39: £m | E39: Price Review 2019 | N39: 0 | R39: 0
A40: AFW | B40: C_WS15025_PR19PD006 | C40: Water: RCV adjustment from totex menu model | D40: £m | E40: Price Review 2019 | N40: 4.980016771
A41: AFW | B41: APP8009W | C41: RCV year end balances - Water RCV closing balance at 31 March 2020 - Water ~ Other adjustment to wholesale RCV | D41: £m | E41: Price Review 2019 | N41: 0
A42: AFW | B42: C_A7010W_PR19PD003 | C42: NPV effect of 50% of proceeds from disposals of interest in land | D42: £m | E42: Price Review 2019 | N42: -0.7138671158
A43: AFW | B43: WS12019WR | C43: RCV ~ 31 March 2020 ( % of total wholesale water) - Water resources | D43: % | E43: Price Review 2019 | L43: 0.1099675352
A44: AFW | B44: APP33021WR | C44: Water resources - RCV adjustment | D44: £m | E44: Price Review 2019 | N44: 0
A45: AFW | B45: APP33021WNP | C45: Water network plus - RCV adjustment | D45: £m | E45: Price Review 2019 | N45: 12.59759155
A46: AFW | B46: APP8001WW | C46: RCV year end balances - Wastewater RCV closing balance at 31 March 2020 - Wholesale wastewater closing RCV at 31 March 2020 in 2012-13 prices (PR14 FD) | D46: £m | E46: Price Review 2019 | N46: 0
A47: AFW | B47: C00579_L021 | C47: Wastewater - Total Adjustment RCV carry forward to PR19 | D47: £m | E47: Price Review 2019 | P47: 0
A48: AFW | B48: APP25002 | C48: Further 2010-15 reconciliation adjustments - Wastewater ~ CIS RCV inflation correction | D48: £m | E48: Price Review 2019 | P48: 0
A49: AFW | B49: C_APP27031_PD002 | C49: Net performance payment / (penalty) applied to RCV for end of period ODI adjustments ~ Wastewater network plus | D49: £m | E49: Price Review 2019 | J49: 0 | K49: 0 | L49: 0 | M49: 0 | N49: 0 | R49: 0
A50: AFW | B50: APP27031 | C50: End of period ODI RCV adjustments allocated to PR19 price controls (2012-13 prices) - Net performance payment / (penalty) applied to RCV for end of period ODI adjustments ~ Wastewater network plus | D50: £m | E50: Price Review 2019 | J50: 0 | K50: 0 | L50: 0 | M50: 0 | N50: 0 | R50: 0
A51: AFW | B51: B_APP27031_PR19PD019_BYFD | C51: Net blind year intervention (2012-13 prices) applied to RCV for end of period ODI adjustments - Wastewater network plus | D51: £m | E51: Price Review 2019 | N51: 0 | R51: 0
A52: AFW | B52: C_WWS15020_PR19PD006 | C52: Wastewater: RCV adjustment from totex menu model | D52: £m | E52: Price Review 2019 | N52: 0
A53: AFW | B53: APP8009WW | C53: RCV year end balances - Wastewater RCV closing balance at 31 March 2020 - Wastewater ~ Other adjustment to wholesale RCV | D53: £m | E53: Price Review 2019 | N53: 0
A54: AFW | B54: C_A7010WW_PR19PD003 | C54: NPV effect of 50% of proceeds from disposals of interest in land | D54: £m | E54: Price Review 2019 | N54: 0
A55: AFW | B55: WWS12016BIO | C55: RCV split 31 March 2020 - RCV (prior to midnight adjustments) - Bioresources | D55: £m | E55: Price Review 2019 | L55: 0
A56: AFW | B56: APP33021BIO | C56: Bioresources - RCV adjustment | D56: £m | E56: Price Review 2019 | N56: 0
A57: AFW | B57: APP33021WWNP | C57: Wastewater network plus - RCV adjustment | D57: £m | E57: Price Review 2019 | N57: 0
A58: AFW | B58: RCV1011DMMY | C58: RCV year end balances - Dummy RCV - Dummy RCV (prior to midnight adjustments) 31 March 2020 | D58: £m | E58: Price Review 2019 | N58: 0
A59: AFW | B59: C_APP27032_PD002 | C59: Net performance payment / (penalty) applied to RCV for end of period ODI adjustments ~ Thames Tideway | D59: £m | E59: Price Review 2019 | J59: 0 | K59: 0 | L59: 0 | M59: 0 | N59: 0 | R59: 0
A60: AFW | B60: APP27032 | C60: End of period ODI RCV adjustments allocated to PR19 price controls (2012-13 prices) - Net performance payment / (penalty) applied to RCV for end of period ODI adjustments ~ Thames Tideway | D60: £m | E60: Price Review 2019 | J60: 0 | K60: 0 | L60: 0 | M60: 0 | N60: 0 | R60: 0
A61: AFW | B61: B_APP27032_PR19PD019_BYFD | C61: Net blind year intervention (2012-13 prices) applied to RCV for end of period ODI adjustments - Dummy control (Thames Tideway) | D61: £m | E61: Price Review 2019 | N61: 0 | R61: 0
A62: AFW | B62: C_WWS15020_DMMY_PR19PD006 | C62: Wastewater: RCV adjustment from totex menu model (TTT) | D62: £m | E62: Price Review 2019 | N62: 0
A63: AFW | B63: APP8009DMMY | C63: RCV year end balances - Dummy RCV - Dummy ~ Other adjustment to wholesale RCV | D63: £m | E63: Price Review 2019 | N63: 0
A64: AFW | B64: APP33021DMMY | C64: Dummy - RCV adjustment | D64: £m | E64: Price Review 2019 | N64: 0
B65: C_APP8010W_PR19PD010 | C65: Total wholesale water RCV at 31 March 2020 post midnight adjustments before allocation to price control units at 2017-18 FYE CPIH deflated price base | D65: £m | E65: Price Review 2019 | N65: 1161.258124
B66: C_APP8010WW_PR19PD010 | C66: Total wholesale wastewater RCV at 31 March 2020 post midnight adjustments before allocation to price control units at 2017-18 FYE CPIH deflated price base | D66: £m | E66: Price Review 2019 | N66: 0
B67: C_APP8010DMMY_PR19PD010 | C67: Total dummy RCV at 31 March 2020 post midnight adjustments at 2017-18 FYE CPIH deflated price base | D67: £m | E67: Price Review 2019 | N67: 0
B68: PR19PD010 'Calc' row 117 | C68: Water resources 2020 RCV RPI inflated ~ 1 April (opening balance excluding IFRS16 and Other adjustment) at 2017-18 CPIH deflated price base | D68: £m | E68: Price Review 2019 | N68: 63.31370418
B69: PR19PD010 'Calc' row 118 | C69: Water resources 2020 RCV CPIH inflated ~ 1 April (opening balance excluding IFRS16 and Other adjustment) at 2017-18 CPIH deflated price base | D69: £m | E69: Price Review 2019 | N69: 63.31370418
B70: PR19PD010 'Calc' row 40 | C70: Water resources IFRS16 RCV adjustment at 2017-18 FYA CPIH deflated price base | D70: £m | E70: Price Review 2019 | N70: 0
B71: PR19PD010 'Calc' row 166 | C71: Water network plus RCV RPI inflated ~ 1 April (opening balance excluding IFRS16 and other adjustment) at 2017-18 CPIH deflated price base | D71: £m | E71: Price Review 2019 | N71: 512.4353482
B72: PR19PD010 'Calc' row 167 | C72: Water network plus RCV CPIH inflated ~ 1 April (opening balance excluding IFRS16 and other adjustment) at 2017-18 CPIH deflated price base | D72: £m | E72: Price Review 2019 | N72: 512.4353482
B73: PR19PD010 'Calc' row 41 | C73: Water network plus IFRS16 RCV adjustment at 2017-18 FYA CPIH deflated price base | D73: £m | E73: Price Review 2019 | N73: 12.49171265
B74: PR19PD010 'Calc' row 306 | C74: Wastewater network plus RCV RPI inflated ~ 1 April (opening balance excluding IFRS16 and other adjustment) at 2017-18 CPIH deflated price base | D74: £m | E74: Price Review 2019 | N74: 0
B75: PR19PD010 'Calc' row 307 | C75: Wastewater network plus RCV CPIH inflated ~ 1 April (opening balance excluding IFRS16 and other adjustment) at 2017-18 CPIH deflated price base | D75: £m | E75: Price Review 2019 | N75: 0
B76: PR19PD010 'Calc' row 231 | C76: Wastewater network plus IFRS16 RCV adjustment at 2017-18 FYA CPIH deflated price base | D76: £m | E76: Price Review 2019 | N76: 0
B77: PR19PD010 'Calc' row 358 | C77: Bioresources 2020 RCV RPI inflated ~ 1 April (opening balance) at 2017-18 CPIH deflated price base | D77: £m | E77: Price Review 2019 | N77: 0
B78: PR19PD010 'Calc' row 362 | C78: Bioresources 2020 RCV CPIH inflated ~ 1 April (opening balance) at 2017-18 CPIH deflated price base | D78: £m | E78: Price Review 2019 | N78: 0
B79: PR19PD010 'Calc' row 230 | C79: Bioresources IFRS16 RCV adjustment at 2017-18 FYA CPIH deflated price base | D79: £m | E79: Price Review 2019 | N79: 0
B80: PR19PD010 'Calc' row 450 | C80: Dummy 2020 RCV RPI inflated ~ 1 April (opening balance excluding IFRS16 and other adjustment) at 2017-18 CPIH deflated price base | D80: £m | E80: Price Review 2019 | N80: 0
B81: PR19PD010 'Calc' row 451 | C81: Dummy 2020 RCV CPIH inflated ~ 1 April (opening balance excluding IFRS16 and other adjustment) at 2017-18 CPIH deflated price base | D81: £m | E81: Price Review 2019 | N81: 0
B82: PR19PD010 'Calc' row 398 | C82: Dummy IFRS16 RCV adjustment at 2017-18 FYA CPIH deflated price base | D82: £m | E82: Price Review 2019 | N82: 0
A83: AFW | B83: C_APP27015_PD002 | C83: Net performance payment / (penalty) applied to revenue for in-period ODI adjustments ~ Water resources | D83: £m | E83: Price Review 2019 | J83: 0 | K83: 0 | L83: 0 | M83: 0 | N83: 0 | R83: 0
A84: AFW | B84: C_APP27022_PD002 | C84: Net performance payment / (penalty) applied to revenue for end of period ODI adjustments ~ Water resources | D84: £m | E84: Price Review 2019 | J84: 0 | K84: 0 | L84: 1.2648 | M84: 0 | N84: 0 | R84: 1.2648
A85: AFW | B85: APP27015 | C85: In-period ODI revenue adjustments allocated to PR19 price controls (2012-13 prices) - Net performance payment / (penalty) applied to revenue for in-period ODI adjustments ~ Water resources | D85: £m | E85: Price Review 2019 | J85: 0 | K85: 0 | L85: 0 | M85: 0 | N85: 0 | R85: 0
A86: AFW | B86: APP27022 | C86: End of period ODI revenue adjustments allocated to PR19 price controls (2012-13 prices) - Net performance payment / (penalty) applied to revenue for end of period ODI adjustments ~ Water resources | D86: £m | E86: Price Review 2019 | J86: 0 | K86: 0 | L86: 1.2648 | M86: 0 | N86: 0 | R86: 0
A87: AFW | B87: B_APP27015_PR19PD019_BYFD | C87: Net blind year intervention (2012-13 prices) applied to revenue for in-period ODI adjustments - Water resources | D87: £m | E87: Price Review 2019 | N87: 0 | R87: 0
A88: AFW | B88: B_APP27022_PR19PD019_BYFD | C88: Net blind year intervention (2012-13 prices) applied to revenue for end of period ODI adjustments - Water resources | D88: £m | E88: Price Review 2019 | N88: 0 | R88: 0
A89: AFW | B89: C_WS17013_PR19D007 | C89: Incentives to be paid at PR19 - Water resources control - Export incentives (2012-13 prices) | D89: £m | E89: Price Review 2019 | G89: 0 | R89: 0
A90: AFW | B90: C_WS17025_PR19D007 | C90: Incentives to be paid at PR19 - Water resources control - Import incentives (2012-13 prices) | D90: £m | E90: Price Review 2019 | G90: 0 | R90: 0
A91: AFW | B91: C00578_L021 | C91: Water - Total Adjustment Revenue carry forward to PR19 | D91: £m | E91: Price Review 2019 | P91: 0.869
A92: AFW | B92: C_APP27016_PD002 | C92: Net performance payment / (penalty) applied to revenue for in-period ODI adjustments ~ Water network plus | D92: £m | E92: Price Review 2019 | J92: 0 | K92: 0 | L92: 0 | M92: 0 | N92: 0 | R92: 0
A93: AFW | B93: C_APP27023_PD002 | C93: Net performance payment / (penalty) applied to revenue for end of period ODI adjustments ~ Water network plus | D93: £m | E93: Price Review 2019 | J93: -1.63755 | K93: -1.63755 | L93: -2.66355 | M93: -6.972 | N93: 0 | R93: -12.91065
A94: AFW | B94: APP27016 | C94: In-period ODI revenue adjustments allocated to PR19 price controls (2012-13 prices) - Net performance payment / (penalty) applied to revenue for in-period ODI adjustments ~ Water network plus | D94: £m | E94: Price Review 2019 | J94: 0 | K94: 0 | L94: 0 | M94: 0 | N94: 0 | R94: 0
A95: AFW | B95: APP27023 | C95: End of period ODI revenue adjustments allocated to PR19 price controls (2012-13 prices) - Net performance payment / (penalty) applied to revenue for end of period ODI adjustments ~ Water network plus | D95: £m | E95: Price Review 2019 | J95: -1.63755 | K95: -1.63755 | L95: -2.66355 | M95: -6.972 | N95: -1.7374 | R95: 0
A96: AFW | B96: B_APP27016_PR19PD019_BYFD | C96: Net blind year intervention (2012-13 prices) applied to revenue for in-period ODI adjustments - Water network plus | D96: £m | E96: Price Review 2019 | N96: 0 | R96: 0
A97: AFW | B97: B_APP27023_PR19PD019_BYFD | C97: Net blind year intervention (2012-13 prices) applied to revenue for end of period ODI adjustments - Water network plus | D97: £m | E97: Price Review 2019 | N97: 0 | R97: 0
A98: AFW | B98: C_WS15024_PR19PD006 | C98: Water: revenue adjustment from totex menu model | D98: £m | E98: Price Review 2019 | R98: 0.8138517416
A99: AFW | B99: C_WS17014_PR19D007 | C99: Incentives to be paid at PR19 - Network plus water control - Export incentives (2012-13 prices) | D99: £m | E99: Price Review 2019 | G99: 0 | R99: 0
A100: AFW | B100: C_WS17026_PR19D007 | C100: Incentives to be paid at PR19 - Network plus water control - Import incentives (2012-13 prices) | D100: £m | E100: Price Review 2019 | G100: 0 | R100: 0
A101: AFW | B101: C_WS13026_PR19PD005 | C101: Total reward / (penalty) at the end of AMP6 - water | D101: £m | E101: Price Review 2019 | N101: 4.818183671 | R101: 4.818183671
A102: AFW | B102: C_APP27018_PD002 | C102: Net performance payment / (penalty) applied to revenue for in-period ODI adjustments ~ Bioresources | D102: £m | E102: Price Review 2019 | J102: 0 | K102: 0 | L102: 0 | M102: 0 | N102: 0 | R102: 0
A103: AFW | B103: C_APP27025_PD002 | C103: Net performance payment / (penalty) applied to revenue for end of period ODI adjustments ~ Bioresources | D103: £m | E103: Price Review 2019 | J103: 0 | K103: 0 | L103: 0 | M103: 0 | N103: 0 | R103: 0
A104: AFW | B104: APP27018 | C104: In-period ODI revenue adjustments allocated to PR19 price controls (2012-13 prices) - Net performance payment / (penalty) applied to revenue for in-period ODI adjustments ~ Bioresources | D104: £m | E104: Price Review 2019 | J104: 0 | K104: 0 | L104: 0 | M104: 0 | N104: 0 | R104: 0
A105: AFW | B105: APP27025 | C105: End of period ODI revenue adjustments allocated to PR19 price controls (2012-13 prices) - Net performance payment / (penalty) applied to revenue for end of period ODI adjustments ~ Bioresources | D105: £m | E105: Price Review 2019 | J105: 0 | K105: 0 | L105: 0 | M105: 0 | N105: 0 | R105: 0
A106: AFW | B106: B_APP27018_PR19PD019_BYFD | C106: Net blind year intervention (2012-13 prices) applied to revenue for in-period ODI adjustments - Bioresources (sludge) | D106: £m | E106: Price Review 2019 | N106: 0 | R106: 0
A107: AFW | B107: B_APP27025_PR19PD019_BYFD | C107: Net blind year intervention (2012-13 prices) applied to revenue for end of period ODI adjustments - Bioresources (sludge) | D107: £m | E107: Price Review 2019 | N107: 0 | R107: 0
A108: AFW | B108: C00585_L021 | C108: Wastewater - Total Adjustment Revenue carry forward to PR19 | D108: £m | E108: Price Review 2019 | P108: 0
A109: AFW | B109: C_APP27017_PD002 | C109: Net performance payment / (penalty) applied to revenue for in-period ODI adjustments ~ Wastewater network plus | D109: £m | E109: Price Review 2019 | J109: 0 | K109: 0 | L109: 0 | M109: 0 | N109: 0 | R109: 0
A110: AFW | B110: C_APP27024_PD002 | C110: Net performance payment / (penalty) applied to revenue for end of period ODI adjustments ~ Wastewater network plus | D110: £m | E110: Price Review 2019 | J110: 0 | K110: 0 | L110: 0 | M110: 0 | N110: 0 | R110: 0
A111: AFW | B111: APP27017 | C111: In-period ODI revenue adjustments allocated to PR19 price controls (2012-13 prices) - Net performance payment / (penalty) applied to revenue for in-period ODI adjustments ~ Wastewater network plus | D111: £m | E111: Price Review 2019 | J111: 0 | K111: 0 | L111: 0 | M111: 0 | N111: 0 | R111: 0
A112: AFW | B112: APP27024 | C112: End of period ODI revenue adjustments allocated to PR19 price controls (2012-13 prices) - Net performance payment / (penalty) applied to revenue for end of period ODI adjustments ~ Wastewater network plus | D112: £m | E112: Price Review 2019 | J112: 0 | K112: 0 | L112: 0 | M112: 0 | N112: 0 | R112: 0
A113: AFW | B113: B_APP27017_PR19PD019_BYFD | C113: Net blind year intervention (2012-13 prices) applied to revenue for in-period ODI adjustments - Wastewater network plus | D113: £m | E113: Price Review 2019 | N113: 0 | R113: 0
A114: AFW | B114: B_APP27024_PR19PD019_BYFD | C114: Net blind year intervention (2012-13 prices) applied to revenue for end of period ODI adjustments - Wastewater network plus | D114: £m | E114: Price Review 2019 | N114: 0 | R114: 0
A115: AFW | B115: C_WWS15019_PR19PD006 | C115: Wastewater: revenue adjustment from totex menu model | D115: £m | E115: Price Review 2019 | R115: 0
A116: AFW | B116: C_WWS13026_PR19PD005 | C116: Total reward / (penalty) at the end of AMP6 - waste | D116: £m | E116: Price Review 2019 | N116: 0 | R116: 0
A117: AFW | B117: APP27019 | C117: In-period ODI revenue adjustments allocated to PR19 price controls (2012-13 prices) - Net performance payment / (penalty) applied to revenue for in-period ODI adjustments ~ Residential retail | D117: £m | E117: Price Review 2019 | J117: 0 | K117: 0 | L117: 0 | M117: 0 | N117: 0
A118: AFW | B118: APP27026 | C118: End of period ODI revenue adjustments allocated to PR19 price controls (2012-13 prices) - Net performance payment / (penalty) applied to revenue for end of period ODI adjustments ~ Residential retail | D118: £m | E118: Price Review 2019 | J118: 0 | K118: 0 | L118: 0 | M118: 0 | N118: 0
A119: AFW | B119: B_APP27019_PR19PD019_BYFD | C119: Net blind year intervention (2012-13 prices) applied to revenue for in-period ODI adjustments - Residential retail | D119: £m | E119: Price Review 2019 | N119: 0 | R119: 0
A120: AFW | B120: B_APP27026_PR19PD019_BYFD | C120: Net blind year intervention (2012-13 prices) applied to revenue for end of period ODI adjustments - Residential retail | D120: £m | E120: Price Review 2019 | N120: 0 | R120: 0
A121: AFW | B121: C_WWS15019_DMMY_PR19PD006 | C121: Wastewater: revenue adjustment from totex menu model (TTT) | D121: £m | E121: Price Review 2019 | R121: 0
A122: AFW | B122: C_WWS13026_DMMY_PR19PD005 | C122: Total reward / (penalty) at the end of AMP6 - dmmy | D122: £m | E122: Price Review 2019 | N122: 0 | R122: 0
A123: AFW | B123: C_APP27019_PD002 | C123: Net performance payment / (penalty) applied to revenue for in-period ODI adjustments ~ Residential retail | D123: £m | E123: Price Review 2019 | J123: 0 | K123: 0 | L123: 0 | M123: 0 | N123: 0 | R123: 0
A124: AFW | B124: C_APP27026_PD002 | C124: Net performance payment / (penalty) applied to revenue for end of period ODI adjustments ~ Residential retail | D124: £m | E124: Price Review 2019 | J124: 0 | K124: 0 | L124: 0 | M124: 0 | N124: 0 | R124: 0
A125: AFW | B125: C_R9045_PR19PD008 | C125: Total reward / (penalty) at the end of AMP6 - Residential retail revenue adjustment at the end of AMP6 | D125: £m | E125: Price Review 2019 | N125: 1.94947582 | R125: 1.94947582
A126: AFW | B126: C_R10009_PR19PD009 | C126: SIM adjustment - Household retail £m | D126: £m | E126: Price Review 2019 | O126: -2.2383752 | R126: -11.191876
A127: AFW | B127: C_APP27020_PD002 | C127: Net performance payment / (penalty) applied to revenue for in-period ODI adjustments ~ Business retail | D127: £m | E127: Price Review 2019 | J127: 0 | K127: 0 | L127: 0 | M127: 0 | N127: 0 | R127: 0
A128: AFW | B128: C_APP27027_PD002 | C128: Net performance payment / (penalty) applied to revenue for end of period ODI adjustments ~ Business retail | D128: £m | E128: Price Review 2019 | J128: 0 | K128: 0 | L128: 0 | M128: 0 | N128: 0 | R128: 0
A129: AFW | B129: APP27020 | C129: In-period ODI revenue adjustments allocated to PR19 price controls (2012-13 prices) - Net performance payment / (penalty) applied to revenue for in-period ODI adjustments ~ Business retail | D129: £m | E129: Price Review 2019 | J129: 0 | K129: 0 | L129: 0 | M129: 0 | N129: 0 | R129: 0
A130: AFW | B130: APP27027 | C130: End of period ODI revenue adjustments allocated to PR19 price controls (2012-13 prices) - Net performance payment / (penalty) applied to revenue for end of period ODI adjustments ~ Business retail | D130: £m | E130: Price Review 2019 | J130: 0 | K130: 0 | L130: 0 | M130: 0 | N130: 0 | R130: 0
A131: AFW | B131: B_APP27020_PR19PD019_BYFD | C131: Net blind year intervention (2012-13 prices) applied to revenue for in-period ODI adjustments - Business retail | D131: £m | E131: Price Review 2019 | N131: 0 | R131: 0
A132: AFW | B132: B_APP27027_PR19PD019_BYFD | C132: Net blind year intervention (2012-13 prices) applied to revenue for end of period ODI adjustments - Business retail | D132: £m | E132: Price Review 2019 | N132: 0 | R132: 0
A133: AFW | B133: C_004_PR19PD014 | C133: Non-household SIM adjustment - business retail £m | D133: £m | E133: Price Review 2019 | R133: 0
A134: AFW | B134: C003_PR19PD015 | C134: Other revenue adjustment - water network plus | D134: £m | E134: Price Review 2019 | R134: 0
A135: AFW | B135: C006_PR19PD015 | C135: Other revenue adjustment - wastewater network plus | D135: £m | E135: Price Review 2019 | R135: 0
C136: Has the company deferred taking any of its 2015-18 in-period ODI payments? | D136: nr | E136: Price Review 2019 | R136: 0

Sheet InpActive
A1: =RIGHT(CELL("FILENAME", $A$1), LEN(CELL("FILENAME", $A$1)) - SEARCH("]", CELL("FILENAME", $A$1))) -> InpActive
E2: =Time!E$25 -> Model period ending | J2: =Time!J$25 -> 2013-03-31 | K2: =Time!K$25 -> 2014-03-31 | L2: =Time!L$25 -> 2015-03-31 | M2: =Time!M$25 -> 2016-03-31 | N2: =Time!N$25 -> 2017-03-31 | O2: =Time!O$25 -> 2018-03-31 | P2: =Time!P$25 -> 2019-03-31 | Q2: =Time!Q$25 -> 2020-03-31 | R2: =Time!R$25 -> 2021-03-31 | S2: =Time!S$25 -> 2022-03-31 | T2: =Time!T$25 -> 2023-03-31 | U2: =Time!U$25 -> 2024-03-31
E3: =Time!E$80 -> Timeline label | J3: =Time!J$80 -> Pre-Fcst | K3: =Time!K$80 -> Pre-Fcst | L3: =Time!L$80 -> Pre-Fcst | M3: =Time!M$80 -> Pre-Fcst | N3: =Time!N$80 -> Pre-Fcst | O3: =Time!O$80 -> Pre-Fcst | P3: =Time!P$80 -> Pre-Fcst | Q3: =Time!Q$80 -> Pre-Fcst | R3: =Time!R$80 -> Forecast | S3: =Time!S$80 -> Forecast | T3: =Time!T$80 -> Forecast | U3: =Time!U$80 -> Forecast
E4: =Time!E$103 -> Financial year ending | J4: =Time!J$103 -> 2013 | K4: =Time!K$103 -> 2014 | L4: =Time!L$103 -> 2015 | M4: =Time!M$103 -> 2016 | N4: =Time!N$103 -> 2017 | O4: =Time!O$103 -> 2018 | P4: =Time!P$103 -> 2019 | Q4: =Time!Q$103 -> 2020 | R4: =Time!R$103 -> 2021 | S4: =Time!S$103 -> 2022 | T4: =Time!T$103 -> 2023 | U4: =Time!U$103 -> 2024
A5: =IF(COUNTIF(A6:A81,"< 0") + COUNTIF(A6:A81,">0") <> 0, 1, 0) -> 0 | D5: Input references | E5: =Time!E$10 -> Model column counter | F5: Constant | G5: Unit | H5: Total | J5: =Time!J$10 -> 1 | K5: =Time!K$10 -> 2 | L5: =Time!L$10 -> 3 | M5: =Time!M$10 -> 4 | N5: =Time!N$10 -> 5 | O5: =Time!O$10 -> 6 | P5: =Time!P$10 -> 7 | Q5: =Time!Q$10 -> 8 | R5: =Time!R$10 -> 9 | S5: =Time!S$10 -> 10 | T5: =Time!T$10 -> 11 | U5: =Time!U$10 -> 12
E6: [Used in formula range - Do not delete]
A8: A: TIME
B10: Timeline setup
C12: Timeline start dates
A13: C001 | E13: 1st model column start date | F13: 2012-04-01 | G13: date | H13: Date should be the first date of the financial year
C15: Financial year inputs
A16: C002 | E16: First modelling column financial year# | F16: 2013 | G16: year # | H16: Financial model start year
A17: C003 | E17: Financial year end month number | F17: 3 | G17: month # | H17: Month of financial year end for financial model
C19: Timeline labels
A20: C004 | E20: Pre - forecast period | F20: Pre-Fcst | G20: label
A21: C005 | E21: Forecast period | F21: Forecast | G21: label
A22: C006 | E22: Post - forecast period | F22: Post-Fcst | G22: label
B24: Project dates
A26: C007 | E26: Forecast start date | F26: 2020-04-01 | G26: date
A27: C008 | E27: Forecast duration | F27: 5 | G27: years
A28: C009 | E28: Forecast duration (text) | F28: =YEAR(F26) & "-" & TEXT(DATE(YEAR(F26) + F27, 1, 1), "yy") -> 2020-25 | G28: years #
A31: B: INDEXATION - ACTUAL
B33: CPIH INDEXATION | J33: Linked to F_Inputs RunBY and feeds Indexation
A35: ='F_Inputs Run8'!B7 -> BB3905AL | E35: Consumer Price Index for April | G35: index | J35: =F_Inputs_BY!G7 -> 95.9 | K35: =F_Inputs_BY!H7 -> 98 | L35: =F_Inputs_BY!I7 -> 99.6 | M35: =F_Inputs_BY!J7 -> 99.9 | N35: =F_Inputs_BY!K7 -> 100.6 | O35: =F_Inputs_BY!L7 -> 103.2 | P35: =F_Inputs_BY!M7 -> 105.5 | Q35: =F_Inputs_BY!N7 -> 107.6
A36: ='F_Inputs Run8'!B8 -> BB3905MY | E36: Consumer Price Index for May | G36: index | J36: =F_Inputs_BY!G8 -> 95.9 | K36: =F_Inputs_BY!H8 -> 98.2 | L36: =F_Inputs_BY!I8 -> 99.6 | M36: =F_Inputs_BY!J8 -> 100.1 | N36: =F_Inputs_BY!K8 -> 100.8 | O36: =F_Inputs_BY!L8 -> 103.5 | P36: =F_Inputs_BY!M8 -> 105.9 | Q36: =F_Inputs_BY!N8 -> 107.9
A37: ='F_Inputs Run8'!B9 -> BB3905JN | E37: Consumer Price Index for June | G37: index | J37: =F_Inputs_BY!G9 -> 95.6 | K37: =F_Inputs_BY!H9 -> 98 | L37: =F_Inputs_BY!I9 -> 99.8 | M37: =F_Inputs_BY!J9 -> 100.1 | N37: =F_Inputs_BY!K9 -> 101 | O37: =F_Inputs_BY!L9 -> 103.5 | P37: =F_Inputs_BY!M9 -> 105.9 | Q37: =F_Inputs_BY!N9 -> 107.9
A38: ='F_Inputs Run8'!B10 -> BB3905JL | E38: Consumer Price Index for July | G38: index | J38: =F_Inputs_BY!G10 -> 95.7 | K38: =F_Inputs_BY!H10 -> 98 | L38: =F_Inputs_BY!I10 -> 99.6 | M38: =F_Inputs_BY!J10 -> 100 | N38: =F_Inputs_BY!K10 -> 100.9 | O38: =F_Inputs_BY!L10 -> 103.5 | P38: =F_Inputs_BY!M10 -> 105.9 | Q38: =F_Inputs_BY!N10 -> 108
A39: ='F_Inputs Run8'!B11 -> BB3905AT | E39: Consumer Price Index for August | G39: index | J39: =F_Inputs_BY!G11 -> 96.1 | K39: =F_Inputs_BY!H11 -> 98.4 | L39: =F_Inputs_BY!I11 -> 99.9 | M39: =F_Inputs_BY!J11 -> 100.3 | N39: =F_Inputs_BY!K11 -> 101.2 | O39: =F_Inputs_BY!L11 -> 104 | P39: =F_Inputs_BY!M11 -> 106.5 | Q39: =F_Inputs_BY!N11 -> 108.3
A40: ='F_Inputs Run8'!B12 -> BB3905SR | E40: Consumer Price Index for September | G40: index | J40: =F_Inputs_BY!G12 -> 96.4 | K40: =F_Inputs_BY!H12 -> 98.7 | L40: =F_Inputs_BY!I12 -> 100 | M40: =F_Inputs_BY!J12 -> 100.2 | N40: =F_Inputs_BY!K12 -> 101.5 | O40: =F_Inputs_BY!L12 -> 104.3 | P40: =F_Inputs_BY!M12 -> 106.6 | Q40: =F_Inputs_BY!N12 -> 108.4
A41: ='F_Inputs Run8'!B13 -> BB3905OR | E41: Consumer Price Index for October | G41: index | J41: =F_Inputs_BY!G13 -> 96.8 | K41: =F_Inputs_BY!H13 -> 98.8 | L41: =F_Inputs_BY!I13 -> 100.1 | M41: =F_Inputs_BY!J13 -> 100.3 | N41: =F_Inputs_BY!K13 -> 101.6 | O41: =F_Inputs_BY!L13 -> 104.4 | P41: =F_Inputs_BY!M13 -> 106.7 | Q41: =F_Inputs_BY!N13 -> 108.3
A42: ='F_Inputs Run8'!B14 -> BB3905NR | E42: Consumer Price Index for November | G42: index | J42: =F_Inputs_BY!G14 -> 97 | K42: =F_Inputs_BY!H14 -> 98.8 | L42: =F_Inputs_BY!I14 -> 99.9 | M42: =F_Inputs_BY!J14 -> 100.3 | N42: =F_Inputs_BY!K14 -> 101.8 | O42: =F_Inputs_BY!L14 -> 104.7 | P42: =F_Inputs_BY!M14 -> 106.9 | Q42: =F_Inputs_BY!N14 -> 108.5
A43: ='F_Inputs Run8'!B15 -> BB3905DR | E43: Consumer Price Index for December | G43: index | J43: =F_Inputs_BY!G15 -> 97.3 | K43: =F_Inputs_BY!H15 -> 99.2 | L43: =F_Inputs_BY!I15 -> 99.9 | M43: =F_Inputs_BY!J15 -> 100.4 | N43: =F_Inputs_BY!K15 -> 102.2 | O43: =F_Inputs_BY!L15 -> 105 | P43: =F_Inputs_BY!M15 -> 107.1 | Q43: =F_Inputs_BY!N15 -> 108.5
A44: ='F_Inputs Run8'!B16 -> BB3905JY | E44: Consumer Price Index for January | G44: index | J44: =F_Inputs_BY!G16 -> 97 | K44: =F_Inputs_BY!H16 -> 98.7 | L44: =F_Inputs_BY!I16 -> 99.2 | M44: =F_Inputs_BY!J16 -> 99.9 | N44: =F_Inputs_BY!K16 -> 101.8 | O44: =F_Inputs_BY!L16 -> 104.5 | P44: =F_Inputs_BY!M16 -> 106.4 | Q44: =F_Inputs_BY!N16 -> 108.3
A45: ='F_Inputs Run8'!B17 -> BB3905FY | E45: Consumer Price Index for February | G45: index | J45: =F_Inputs_BY!G17 -> 97.5 | K45: =F_Inputs_BY!H17 -> 99.1 | L45: =F_Inputs_BY!I17 -> 99.5 | M45: =F_Inputs_BY!J17 -> 100.1 | N45: =F_Inputs_BY!K17 -> 102.4 | O45: =F_Inputs_BY!L17 -> 104.9 | P45: =F_Inputs_BY!M17 -> 106.8 | Q45: =F_Inputs_BY!N17 -> 108.6
A46: ='F_Inputs Run8'!B18 -> BB3905MH | E46: Consumer Price Index for March | G46: index | J46: =F_Inputs_BY!G18 -> 97.8 | K46: =F_Inputs_BY!H18 -> 99.3 | L46: =F_Inputs_BY!I18 -> 99.6 | M46: =F_Inputs_BY!J18 -> 100.4 | N46: =F_Inputs_BY!K18 -> 102.7 | O46: =F_Inputs_BY!L18 -> 105.1 | P46: =F_Inputs_BY!M18 -> 107 | Q46: =F_Inputs_BY!N18 -> 108.6
E48: CPIH: Assumed percentage increase for unpopulated monthly values | G48: %
B50: RPI INDEXATION
A52: ='F_Inputs Run8'!B19 -> BB3805AL | E52: Retail Price Index for April | G52: index | J52: =F_Inputs_BY!G19 -> 242.5 | K52: =F_Inputs_BY!H19 -> 249.5 | L52: =F_Inputs_BY!I19 -> 255.7 | M52: =F_Inputs_BY!J19 -> 258 | N52: =F_Inputs_BY!K19 -> 261.4 | O52: =F_Inputs_BY!L19 -> 270.6 | P52: =F_Inputs_BY!M19 -> 279.7 | Q52: =F_Inputs_BY!N19 -> 288.2
A53: ='F_Inputs Run8'!B20 -> BB3805MY | E53: Retail Price Index for May | G53: index | J53: =F_Inputs_BY!G20 -> 242.4 | K53: =F_Inputs_BY!H20 -> 250 | L53: =F_Inputs_BY!I20 -> 255.9 | M53: =F_Inputs_BY!J20 -> 258.5 | N53: =F_Inputs_BY!K20 -> 262.1 | O53: =F_Inputs_BY!L20 -> 271.7 | P53: =F_Inputs_BY!M20 -> 280.7 | Q53: =F_Inputs_BY!N20 -> 289.2
A54: ='F_Inputs Run8'!B21 -> BB3805JN | E54: Retail Price Index for June | G54: index | J54: =F_Inputs_BY!G21 -> 241.8 | K54: =F_Inputs_BY!H21 -> 249.7 | L54: =F_Inputs_BY!I21 -> 256.3 | M54: =F_Inputs_BY!J21 -> 258.9 | N54: =F_Inputs_BY!K21 -> 263.1 | O54: =F_Inputs_BY!L21 -> 272.3 | P54: =F_Inputs_BY!M21 -> 281.5 | Q54: =F_Inputs_BY!N21 -> 289.6
A55: ='F_Inputs Run8'!B22 -> BB3805JL | E55: Retail Price Index for July | G55: index | J55: =F_Inputs_BY!G22 -> 242.1 | K55: =F_Inputs_BY!H22 -> 249.7 | L55: =F_Inputs_BY!I22 -> 256 | M55: =F_Inputs_BY!J22 -> 258.6 | N55: =F_Inputs_BY!K22 -> 263.4 | O55: =F_Inputs_BY!L22 -> 272.9 | P55: =F_Inputs_BY!M22 -> 281.7 | Q55: =F_Inputs_BY!N22 -> 289.5
A56: ='F_Inputs Run8'!B23 -> BB3805AT | E56: Retail Price Index for August | G56: index | J56: =F_Inputs_BY!G23 -> 243 | K56: =F_Inputs_BY!H23 -> 251 | L56: =F_Inputs_BY!I23 -> 257 | M56: =F_Inputs_BY!J23 -> 259.8 | N56: =F_Inputs_BY!K23 -> 264.4 | O56: =F_Inputs_BY!L23 -> 274.7 | P56: =F_Inputs_BY!M23 -> 284.2 | Q56: =F_Inputs_BY!N23 -> 291.7
A57: ='F_Inputs Run8'!B24 -> BB3805SR | E57: Retail Price Index for September | G57: index | J57: =F_Inputs_BY!G24 -> 244.2 | K57: =F_Inputs_BY!H24 -> 251.9 | L57: =F_Inputs_BY!I24 -> 257.6 | M57: =F_Inputs_BY!J24 -> 259.6 | N57: =F_Inputs_BY!K24 -> 264.9 | O57: =F_Inputs_BY!L24 -> 275.1 | P57: =F_Inputs_BY!M24 -> 284.1 | Q57: =F_Inputs_BY!N24 -> 291
A58: ='F_Inputs Run8'!B25 -> BB3805OR | E58: Retail Price Index for October | G58: index | J58: =F_Inputs_BY!G25 -> 245.6 | K58: =F_Inputs_BY!H25 -> 251.9 | L58: =F_Inputs_BY!I25 -> 257.7 | M58: =F_Inputs_BY!J25 -> 259.5 | N58: =F_Inputs_BY!K25 -> 264.8 | O58: =F_Inputs_BY!L25 -> 275.3 | P58: =F_Inputs_BY!M25 -> 284.5 | Q58: =F_Inputs_BY!N25 -> 290.4
A59: ='F_Inputs Run8'!B26 -> BB3805NR | E59: Retail Price Index for November | G59: index | J59: =F_Inputs_BY!G26 -> 245.6 | K59: =F_Inputs_BY!H26 -> 252.1 | L59: =F_Inputs_BY!I26 -> 257.1 | M59: =F_Inputs_BY!J26 -> 259.8 | N59: =F_Inputs_BY!K26 -> 265.5 | O59: =F_Inputs_BY!L26 -> 275.8 | P59: =F_Inputs_BY!M26 -> 284.6 | Q59: =F_Inputs_BY!N26 -> 291
A60: ='F_Inputs Run8'!B27 -> BB3805DR | E60: Retail Price Index for December | G60: index | J60: =F_Inputs_BY!G27 -> 246.8 | K60: =F_Inputs_BY!H27 -> 253.4 | L60: =F_Inputs_BY!I27 -> 257.5 | M60: =F_Inputs_BY!J27 -> 260.6 | N60: =F_Inputs_BY!K27 -> 267.1 | O60: =F_Inputs_BY!L27 -> 278.1 | P60: =F_Inputs_BY!M27 -> 285.6 | Q60: =F_Inputs_BY!N27 -> 291.9
A61: ='F_Inputs Run8'!B28 -> BB3805JY | E61: Retail Price Index for January | G61: index | J61: =F_Inputs_BY!G28 -> 245.8 | K61: =F_Inputs_BY!H28 -> 252.6 | L61: =F_Inputs_BY!I28 -> 255.4 | M61: =F_Inputs_BY!J28 -> 258.8 | N61: =F_Inputs_BY!K28 -> 265.5 | O61: =F_Inputs_BY!L28 -> 276 | P61: =F_Inputs_BY!M28 -> 283 | Q61: =F_Inputs_BY!N28 -> 290.6
A62: ='F_Inputs Run8'!B29 -> BB3805FY | E62: Retail Price Index for February | G62: index | J62: =F_Inputs_BY!G29 -> 247.6 | K62: =F_Inputs_BY!H29 -> 254.2 | L62: =F_Inputs_BY!I29 -> 256.7 | M62: =F_Inputs_BY!J29 -> 260 | N62: =F_Inputs_BY!K29 -> 268.4 | O62: =F_Inputs_BY!L29 -> 278.1 | P62: =F_Inputs_BY!M29 -> 285 | Q62: =F_Inputs_BY!N29 -> 292
A63: ='F_Inputs Run8'!B30 -> BB3805MH | E63: Retail Price Index for March | G63: index | J63: =F_Inputs_BY!G30 -> 248.7 | K63: =F_Inputs_BY!H30 -> 254.8 | L63: =F_Inputs_BY!I30 -> 257.1 | M63: =F_Inputs_BY!J30 -> 261.1 | N63: =F_Inputs_BY!K30 -> 269.3 | O63: =F_Inputs_BY!L30 -> 278.3 | P63: =F_Inputs_BY!M30 -> 285.1 | Q63: =F_Inputs_BY!N30 -> 292.6
E65: RPI: Assumed percentage increase for unpopulated monthly values | G65: %
B67: Inflation
A69: C010 | E69: Year reference for FYA base price 1 | F69: 2013 | G69: year #
A70: C011 | E70: Year reference for FYA base price 2 | F70: 2018 | G70: year #
A71: C012 | E71: Year reference for FYE base price 1 | F71: 2018 | G71: year #
E72: Year reference for FYE base price 2 | F72: 2019 | G72: year #
E73: Year reference for FYE base price 3 | F73: 2020 | G73: year #
A74: C013 | E74: Year reference for FYE end price | F74: 2020 | G74: year #
B76: Deflation
A78: C014 | E78: Year reference for FYE base price | F78: 2020 | G78: year #
A79: C015 | E79: Year reference for FYA end price | F79: 2018 | G79: year #
E80: Year reference for RFI 'base year 2019-20 prices' | F80: 2019 | G80: year #
A81: C016 | E81: Year reference for FYE base price - IFRS 16 and Other | F81: 2018 | G81: year #
A83: B: INDEXATION - FD
B85: CPIH INDEXATION | J85: Linked to F_Inputs Run8. Corresponding blocks to be added to Indexation.
A87: ='F_Inputs Run8'!B62 -> C_WWS15020_DMMY_PR19PD006 | E87: Consumer Price Index for April | G87: index | J87: ='F_Inputs Run8'!G7 -> 95.9 | K87: ='F_Inputs Run8'!H7 -> 98 | L87: ='F_Inputs Run8'!I7 -> 99.6 | M87: ='F_Inputs Run8'!J7 -> 99.9 | N87: ='F_Inputs Run8'!K7 -> 100.6 | O87: ='F_Inputs Run8'!L7 -> 103.2 | P87: ='F_Inputs Run8'!M7 -> 105.5 | Q87: ='F_Inputs Run8'!N7 -> 107.6
A88: ='F_Inputs Run8'!B63 -> APP8009DMMY | E88: Consumer Price Index for May | G88: index | J88: ='F_Inputs Run8'!G8 -> 95.9 | K88: ='F_Inputs Run8'!H8 -> 98.2 | L88: ='F_Inputs Run8'!I8 -> 99.6 | M88: ='F_Inputs Run8'!J8 -> 100.1 | N88: ='F_Inputs Run8'!K8 -> 100.8 | O88: ='F_Inputs Run8'!L8 -> 103.5 | P88: ='F_Inputs Run8'!M8 -> 105.9 | Q88: ='F_Inputs Run8'!N8 -> 107.9
A89: ='F_Inputs Run8'!B64 -> APP33021DMMY | E89: Consumer Price Index for June | G89: index | J89: ='F_Inputs Run8'!G9 -> 95.6 | K89: ='F_Inputs Run8'!H9 -> 98 | L89: ='F_Inputs Run8'!I9 -> 99.8 | M89: ='F_Inputs Run8'!J9 -> 100.1 | N89: ='F_Inputs Run8'!K9 -> 101 | O89: ='F_Inputs Run8'!L9 -> 103.5 | P89: ='F_Inputs Run8'!M9 -> 105.9 | Q89: ='F_Inputs Run8'!N9 -> 108
A90: ='F_Inputs Run8'!B83 -> C_APP27015_PD002 | E90: Consumer Price Index for July | G90: index | J90: ='F_Inputs Run8'!G10 -> 95.7 | K90: ='F_Inputs Run8'!H10 -> 98 | L90: ='F_Inputs Run8'!I10 -> 99.6 | M90: ='F_Inputs Run8'!J10 -> 100 | N90: ='F_Inputs Run8'!K10 -> 100.9 | O90: ='F_Inputs Run8'!L10 -> 103.5 | P90: ='F_Inputs Run8'!M10 -> 105.9 | Q90: ='F_Inputs Run8'!N10 -> 108
A91: ='F_Inputs Run8'!B84 -> C_APP27022_PD002 | E91: Consumer Price Index for August | G91: index | J91: ='F_Inputs Run8'!G11 -> 96.1 | K91: ='F_Inputs Run8'!H11 -> 98.4 | L91: ='F_Inputs Run8'!I11 -> 99.9 | M91: ='F_Inputs Run8'!J11 -> 100.3 | N91: ='F_Inputs Run8'!K11 -> 101.2 | O91: ='F_Inputs Run8'!L11 -> 104 | P91: ='F_Inputs Run8'!M11 -> 106.5 | Q91: ='F_Inputs Run8'!N11 -> 108.6
A92: ='F_Inputs Run8'!B85 -> 0 | E92: Consumer Price Index for September | G92: index | J92: ='F_Inputs Run8'!G12 -> 96.4 | K92: ='F_Inputs Run8'!H12 -> 98.7 | L92: ='F_Inputs Run8'!I12 -> 100 | M92: ='F_Inputs Run8'!J12 -> 100.2 | N92: ='F_Inputs Run8'!K12 -> 101.5 | O92: ='F_Inputs Run8'!L12 -> 104.3 | P92: ='F_Inputs Run8'!M12 -> 106.6 | Q92: ='F_Inputs Run8'!N12 -> 108.7
A93: ='F_Inputs Run8'!B86 -> 0 | E93: Consumer Price Index for October | G93: index | J93: ='F_Inputs Run8'!G13 -> 96.8 | K93: ='F_Inputs Run8'!H13 -> 98.8 | L93: ='F_Inputs Run8'!I13 -> 100.1 | M93: ='F_Inputs Run8'!J13 -> 100.3 | N93: ='F_Inputs Run8'!K13 -> 101.6 | O93: ='F_Inputs Run8'!L13 -> 104.4 | P93: ='F_Inputs Run8'!M13 -> 106.7 | Q93: ='F_Inputs Run8'!N13 -> 108.8
A94: ='F_Inputs Run8'!B89 -> C_WS17013_PR19D007 | E94: Consumer Price Index for November | G94: index | J94: ='F_Inputs Run8'!G14 -> 97 | K94: ='F_Inputs Run8'!H14 -> 98.8 | L94: ='F_Inputs Run8'!I14 -> 99.9 | M94: ='F_Inputs Run8'!J14 -> 100.3 | N94: ='F_Inputs Run8'!K14 -> 101.8 | O94: ='F_Inputs Run8'!L14 -> 104.7 | P94: ='F_Inputs Run8'!M14 -> 106.9 | Q94: ='F_Inputs Run8'!N14 -> 109
A95: ='F_Inputs Run8'!B90 -> C_WS17025_PR19D007 | E95: Consumer Price Index for December | G95: index | J95: ='F_Inputs Run8'!G15 -> 97.3 | K95: ='F_Inputs Run8'!H15 -> 99.2 | L95: ='F_Inputs Run8'!I15 -> 99.9 | M95: ='F_Inputs Run8'!J15 -> 100.4 | N95: ='F_Inputs Run8'!K15 -> 102.2 | O95: ='F_Inputs Run8'!L15 -> 105 | P95: ='F_Inputs Run8'!M15 -> 107.1 | Q95: ='F_Inputs Run8'!N15 -> 109.2
A96: ='F_Inputs Run8'!B91 -> C00578_L021 | E96: Consumer Price Index for January | G96: index | J96: ='F_Inputs Run8'!G16 -> 97 | K96: ='F_Inputs Run8'!H16 -> 98.7 | L96: ='F_Inputs Run8'!I16 -> 99.2 | M96: ='F_Inputs Run8'!J16 -> 99.9 | N96: ='F_Inputs Run8'!K16 -> 101.8 | O96: ='F_Inputs Run8'!L16 -> 104.5 | P96: ='F_Inputs Run8'!M16 -> 106.4 | Q96: ='F_Inputs Run8'!N16 -> 108.5
A97: ='F_Inputs Run8'!B92 -> C_APP27016_PD002 | E97: Consumer Price Index for February | G97: index | J97: ='F_Inputs Run8'!G17 -> 97.5 | K97: ='F_Inputs Run8'!H17 -> 99.1 | L97: ='F_Inputs Run8'!I17 -> 99.5 | M97: ='F_Inputs Run8'!J17 -> 100.1 | N97: ='F_Inputs Run8'!K17 -> 102.4 | O97: ='F_Inputs Run8'!L17 -> 104.9 | P97: ='F_Inputs Run8'!M17 -> 106.8 | Q97: ='F_Inputs Run8'!N17 -> 109.1
A98: ='F_Inputs Run8'!B93 -> C_APP27023_PD002 | E98: Consumer Price Index for March | G98: index | J98: ='F_Inputs Run8'!G18 -> 97.8 | K98: ='F_Inputs Run8'!H18 -> 99.3 | L98: ='F_Inputs Run8'!I18 -> 99.6 | M98: ='F_Inputs Run8'!J18 -> 100.4 | N98: ='F_Inputs Run8'!K18 -> 102.7 | O98: ='F_Inputs Run8'!L18 -> 105.1 | P98: ='F_Inputs Run8'!M18 -> 107 | Q98: ='F_Inputs Run8'!N18 -> 109.3
E100: CPIH: Assumed percentage increase for unpopulated monthly values | G100: %
B102: RPI INDEXATION
A104: ='F_Inputs Run8'!B94 -> 0 | E104: Retail Price Index for April | G104: index | J104: ='F_Inputs Run8'!G19 -> 242.5 | K104: ='F_Inputs Run8'!H19 -> 249.5 | L104: ='F_Inputs Run8'!I19 -> 255.7 | M104: ='F_Inputs Run8'!J19 -> 258 | N104: ='F_Inputs Run8'!K19 -> 261.4 | O104: ='F_Inputs Run8'!L19 -> 270.6 | P104: ='F_Inputs Run8'!M19 -> 279.7 | Q104: ='F_Inputs Run8'!N19 -> 288.2
A105: ='F_Inputs Run8'!B95 -> 0 | E105: Retail Price Index for May | G105: index | J105: ='F_Inputs Run8'!G20 -> 242.4 | K105: ='F_Inputs Run8'!H20 -> 250 | L105: ='F_Inputs Run8'!I20 -> 255.9 | M105: ='F_Inputs Run8'!J20 -> 258.5 | N105: ='F_Inputs Run8'!K20 -> 262.1 | O105: ='F_Inputs Run8'!L20 -> 271.7 | P105: ='F_Inputs Run8'!M20 -> 280.7 | Q105: ='F_Inputs Run8'!N20 -> 289.2
A106: ='F_Inputs Run8'!B98 -> C_WS15024_PR19PD006 | E106: Retail Price Index for June | G106: index | J106: ='F_Inputs Run8'!G21 -> 241.8 | K106: ='F_Inputs Run8'!H21 -> 249.7 | L106: ='F_Inputs Run8'!I21 -> 256.3 | M106: ='F_Inputs Run8'!J21 -> 258.9 | N106: ='F_Inputs Run8'!K21 -> 263.1 | O106: ='F_Inputs Run8'!L21 -> 272.3 | P106: ='F_Inputs Run8'!M21 -> 281.5 | Q106: ='F_Inputs Run8'!N21 -> 289.9
A107: ='F_Inputs Run8'!B99 -> C_WS17014_PR19D007 | E107: Retail Price Index for July | G107: index | J107: ='F_Inputs Run8'!G22 -> 242.1 | K107: ='F_Inputs Run8'!H22 -> 249.7 | L107: ='F_Inputs Run8'!I22 -> 256 | M107: ='F_Inputs Run8'!J22 -> 258.6 | N107: ='F_Inputs Run8'!K22 -> 263.4 | O107: ='F_Inputs Run8'!L22 -> 272.9 | P107: ='F_Inputs Run8'!M22 -> 281.7 | Q107: ='F_Inputs Run8'!N22 -> 290.2
A108: ='F_Inputs Run8'!B100 -> C_WS17026_PR19D007 | E108: Retail Price Index for August | G108: index | J108: ='F_Inputs Run8'!G23 -> 243 | K108: ='F_Inputs Run8'!H23 -> 251 | L108: ='F_Inputs Run8'!I23 -> 257 | M108: ='F_Inputs Run8'!J23 -> 259.8 | N108: ='F_Inputs Run8'!K23 -> 264.4 | O108: ='F_Inputs Run8'!L23 -> 274.7 | P108: ='F_Inputs Run8'!M23 -> 284.2 | Q108: ='F_Inputs Run8'!N23 -> 292.7
A109: ='F_Inputs Run8'!B101 -> C_WS13026_PR19PD005 | E109: Retail Price Index for September | G109: index | J109: ='F_Inputs Run8'!G24 -> 244.2 | K109: ='F_Inputs Run8'!H24 -> 251.9 | L109: ='F_Inputs Run8'!I24 -> 257.6 | M109: ='F_Inputs Run8'!J24 -> 259.6 | N109: ='F_Inputs Run8'!K24 -> 264.9 | O109: ='F_Inputs Run8'!L24 -> 275.1 | P109: ='F_Inputs Run8'!M24 -> 284.1 | Q109: ='F_Inputs Run8'!N24 -> 292.6
A110: ='F_Inputs Run8'!B102 -> C_APP27018_PD002 | E110: Retail Price Index for October | G110: index | J110: ='F_Inputs Run8'!G25 -> 245.6 | K110: ='F_Inputs Run8'!H25 -> 251.9 | L110: ='F_Inputs Run8'!I25 -> 257.7 | M110: ='F_Inputs Run8'!J25 -> 259.5 | N110: ='F_Inputs Run8'!K25 -> 264.8 | O110: ='F_Inputs Run8'!L25 -> 275.3 | P110: ='F_Inputs Run8'!M25 -> 284.5 | Q110: ='F_Inputs Run8'!N25 -> 293
A111: ='F_Inputs Run8'!B103 -> C_APP27025_PD002 | E111: Retail Price Index for November | G111: index | J111: ='F_Inputs Run8'!G26 -> 245.6 | K111: ='F_Inputs Run8'!H26 -> 252.1 | L111: ='F_Inputs Run8'!I26 -> 257.1 | M111: ='F_Inputs Run8'!J26 -> 259.8 | N111: ='F_Inputs Run8'!K26 -> 265.5 | O111: ='F_Inputs Run8'!L26 -> 275.8 | P111: ='F_Inputs Run8'!M26 -> 284.6 | Q111: ='F_Inputs Run8'!N26 -> 293.1
A112: ='F_Inputs Run8'!B104 -> 0 | E112: Retail Price Index for December | G112: index | J112: ='F_Inputs Run8'!G27 -> 246.8 | K112: ='F_Inputs Run8'!H27 -> 253.4 | L112: ='F_Inputs Run8'!I27 -> 257.5 | M112: ='F_Inputs Run8'!J27 -> 260.6 | N112: ='F_Inputs Run8'!K27 -> 267.1 | O112: ='F_Inputs Run8'!L27 -> 278.1 | P112: ='F_Inputs Run8'!M27 -> 285.6 | Q112: ='F_Inputs Run8'!N27 -> 294.2
A113: ='F_Inputs Run8'!B105 -> 0 | E113: Retail Price Index for January | G113: index | J113: ='F_Inputs Run8'!G28 -> 245.8 | K113: ='F_Inputs Run8'!H28 -> 252.6 | L113: ='F_Inputs Run8'!I28 -> 255.4 | M113: ='F_Inputs Run8'!J28 -> 258.8 | N113: ='F_Inputs Run8'!K28 -> 265.5 | O113: ='F_Inputs Run8'!L28 -> 276 | P113: ='F_Inputs Run8'!M28 -> 283 | Q113: ='F_Inputs Run8'!N28 -> 291.5
A114: ='F_Inputs Run8'!B108 -> C00585_L021 | E114: Retail Price Index for February | G114: index | J114: ='F_Inputs Run8'!G29 -> 247.6 | K114: ='F_Inputs Run8'!H29 -> 254.2 | L114: ='F_Inputs Run8'!I29 -> 256.7 | M114: ='F_Inputs Run8'!J29 -> 260 | N114: ='F_Inputs Run8'!K29 -> 268.4 | O114: ='F_Inputs Run8'!L29 -> 278.1 | P114: ='F_Inputs Run8'!M29 -> 285 | Q114: ='F_Inputs Run8'!N29 -> 295
A115: ='F_Inputs Run8'!B109 -> C_APP27017_PD002 | E115: Retail Price Index for March | G115: index | J115: ='F_Inputs Run8'!G30 -> 248.7 | K115: ='F_Inputs Run8'!H30 -> 254.8 | L115: ='F_Inputs Run8'!I30 -> 257.1 | M115: ='F_Inputs Run8'!J30 -> 261.1 | N115: ='F_Inputs Run8'!K30 -> 269.3 | O115: ='F_Inputs Run8'!L30 -> 278.3 | P115: ='F_Inputs Run8'!M30 -> 285.1 | Q115: ='F_Inputs Run8'!N30 -> 295.2
E117: RPI: Assumed percentage increase for unpopulated monthly values | G117: %
B119: Inflation
A121: C010 | E121: Year reference for FYA base price 1 | F121: 2013 | G121: year #
A122: C011 | E122: Year reference for FYA base price 2 | F122: 2018 | G122: year #
A123: C012 | E123: Year reference for FYE base price 1 | F123: 2018 | G123: year #
E124: Year reference for FYE base price 2 | F124: 2019 | G124: year #
E125: Year reference for FYE base price 3 | F125: 2020 | G125: year #
A126: C013 | E126: Year reference for FYE end price | F126: 2020 | G126: year #
B128: Deflation
A130: C014 | E130: Year reference for FYE base price | F130: 2020 | G130: year #
A131: C015 | E131: Year reference for FYA end price | F131: 2018 | G131: year #
A132: C016 | E132: Year reference for FYE base price - IFRS 16 and Other | F132: 2018 | G132: year #
A134: C: RCV INPUTS
B136: Water
E138: % of RCV to index by RPI - water services | F138: 0.5 | G138: %
C140: Final Determinations (Run 8)
E141: Wholesale water closing RCV at 31 March 2020 (from PR14 FD) - Final Determination | F141: ='F_Inputs Run8'!N31 -> 1030.679533 | G141: £m | H141: 2012/13 FYA
E142: Water ~ Total Adjustment RCV carry forward to PR19 - Final Determination | F142: ='F_Inputs Run8'!P32 -> -8.994541666 | G142: £m | H142: 2012/13 FYA
E143: Water ~ CIS RCV inflation correction - Final Determination | F143: ='F_Inputs Run8'!P33 -> -22.63556146 | G143: £m | H143: 2012/13 FYA
E144: Net performance payment / (penalty) applied to RCV for end of period ODI adjustments ~ Water resources - Final Determination | F144: ='F_Inputs Run8'!R34 -> 0 | G144: £m | H144: 2012/13 FYA
E145: Net performance payment / (penalty) applied to RCV for end of period ODI adjustments ~ Water network plus - Final Determination | F145: ='F_Inputs Run8'!R35 -> 0 | G145: £m | H145: 2012/13 FYA
E146: Water: RCV adjustment from totex menu model - Final Determination | F146: ='F_Inputs Run8'!N40 -> 3.485711856 | G146: £m | H146: 2012/13 FYA
E147: Water ~ Other adjustment to wholesale RCV - Final Determination | F147: ='F_Inputs Run8'!N41 -> 0 | G147: £m | H147: 2017/18 FYE
E148: Water ~ NPV effect of 50% of proceeds from disposals of interest in land - Final Determination | F148: ='F_Inputs Run8'!N42 -> -0.7762475104 | G148: £m | H148: 2017/18 FYA
E149: Water resources % of total wholesale water RCV ~ 31 March 2020 - Final Determination | F149: ='F_Inputs Run8'!L43 -> 0.1099675352 | G149: %
E150: Water resources IFRS16 RCV adjustment - Final Determination | F150: ='F_Inputs Run8'!N44 -> 0 | G150: £m | H150: 2017/18 FYE
E151: Water network plus IFRS16 RCV adjustment - Final Determination | F151: ='F_Inputs Run8'!N45 -> 12.59759155 | G151: £m | H151: 2017/18 FYE
E152: ='F_Inputs Run8'!C65 & " - Final Determination" -> Total wholesale water RCV at 31 March 2020 post midnight adjustments before allocation to price control units at 2017-18 FYE CPIH deflated price base - Final Determination | F152: ='F_Inputs Run8'!N65 -> 1162.276685 | G152: £m | H152: 2017/18 FYE
E153: ='F_Inputs Run8'!C68 & " - Final Determination" -> Water resources 2020 RCV RPI inflated ~ 1 April (opening balance excluding IFRS16 and Other adjustment) at 2017-18 CPIH deflated price base - Final Determination | F153: ='F_Inputs Run8'!N68 -> 63.36923777 | G153: £m | H153: 2017/18 FYA
E154: ='F_Inputs Run8'!C69 & " - Final Determination" -> Water resources 2020 RCV CPIH inflated ~ 1 April (opening balance excluding IFRS16 and Other adjustment) at 2017-18 CPIH deflated price base - Final Determination | F154: ='F_Inputs Run8'!N69 -> 63.36923777 | G154: £m | H154: 2017/18 FYA
E155: ='F_Inputs Run8'!C70 & " - Final Determination" -> Water resources IFRS16 RCV adjustment at 2017-18 FYA CPIH deflated price base - Final Determination | F155: ='F_Inputs Run8'!N70 -> 0 | G155: £m | H155: 2017/18 FYA
E156: ='F_Inputs Run8'!C71 & " - Final Determination" -> Water network plus RCV RPI inflated ~ 1 April (opening balance excluding IFRS16 and other adjustment) at 2017-18 CPIH deflated price base - Final Determination | F156: ='F_Inputs Run8'!N71 -> 512.8848146 | G156: £m | H156: 2017/18 FYA
E157: ='F_Inputs Run8'!C72 & " - Final Determination" -> Water network plus RCV CPIH inflated ~ 1 April (opening balance excluding IFRS16 and other adjustment) at 2017-18 CPIH deflated price base - Final Determination | F157: ='F_Inputs Run8'!N72 -> 512.8848146 | G157: £m | H157: 2017/18 FYA
E158: ='F_Inputs Run8'!C73 & " - Final Determination" -> Water network plus IFRS16 RCV adjustment at 2017-18 FYA CPIH deflated price base - Final Determination | F158: ='F_Inputs Run8'!N73 -> 12.49171265 | G158: £m | H158: 2017/18 FYA
C160: Blind Year (Run BY)
E161: Wholesale water closing RCV at 31 March 2020 (from PR14 FD) - Blind Year | F161: =F_Inputs_BY!N31 -> 1030.679533 | G161: £m | H161: 2012/13 FYA
E162: Water ~ Total Adjustment RCV carry forward to PR19 - Blind Year | F162: =F_Inputs_BY!P32 -> -8.995 | G162: £m | H162: 2012/13 FYA
E163: Water ~ CIS RCV inflation correction - Blind Year | F163: =F_Inputs_BY!P33 -> -22.636 | G163: £m | H163: 2012/13 FYA
E164: Net performance payment / (penalty) applied to RCV for end of period ODI adjustments ~ Water resources - Blind Year | F164: =SUM(F_Inputs_BY!J34:M34) + F_Inputs_BY!N36 + F_Inputs_BY!N38 -> 0 | G164: £m | H164: 2012/13 FYA
E165: Net performance payment / (penalty) applied to RCV for end of period ODI adjustments ~ Water network plus - Blind Year | F165: =SUM(F_Inputs_BY!J35:M35) + F_Inputs_BY!N37 + F_Inputs_BY!N39 -> 0 | G165: £m | H165: 2012/13 FYA
E166: Water: RCV adjustment from totex menu model - Blind Year | F166: =F_Inputs_BY!N40 -> 4.980016771 | G166: £m | H166: 2012/13 FYA
E167: Water ~ Other adjustment to wholesale RCV - Blind Year | F167: =F_Inputs_BY!N41 -> 0 | G167: £m | H167: 2017/18 FYE
E168: Water ~ NPV effect of 50% of proceeds from disposals of interest in land - Blind Year | F168: =F_Inputs_BY!N42 -> -0.7138671158 | G168: £m | H168: 2017/18 FYA
E169: Water resources % of total wholesale water RCV ~ 31 March 2020 - Blind Year | F169: =F_Inputs_BY!L43 -> 0.1099675352 | G169: %
E170: Water resources IFRS16 RCV adjustment - Blind Year | F170: =F_Inputs_BY!N44 -> 0 | G170: £m | H170: 2017/18 FYE
E171: Water network plus IFRS16 RCV adjustment - Blind Year | F171: =F_Inputs_BY!N45 -> 12.59759155 | G171: £m | H171: 2017/18 FYE
E172: =F_Inputs_BY!C65 & " - Blind Year" -> Total wholesale water RCV at 31 March 2020 post midnight adjustments before allocation to price control units at 2017-18 FYE CPIH deflated price base - Blind Year | F172: =F_Inputs_BY!N65 -> 1161.258124 | G172: £m | H172: 2017/18 FYE
E173: =F_Inputs_BY!C68 & " - Blind Year" -> Water resources 2020 RCV RPI inflated ~ 1 April (opening balance excluding IFRS16 and Other adjustment) at 2017-18 CPIH deflated price base - Blind Year | F173: =F_Inputs_BY!N68 -> 63.31370418 | G173: £m | H173: 2017/18 FYA
E174: =F_Inputs_BY!C69 & " - Blind Year" -> Water resources 2020 RCV CPIH inflated ~ 1 April (opening balance excluding IFRS16 and Other adjustment) at 2017-18 CPIH deflated price base - Blind Year | F174: =F_Inputs_BY!N69 -> 63.31370418 | G174: £m | H174: 2017/18 FYA
E175: =F_Inputs_BY!C70 & " - Blind Year" -> Water resources IFRS16 RCV adjustment at 2017-18 FYA CPIH deflated price base - Blind Year | F175: =F_Inputs_BY!N70 -> 0 | G175: £m | H175: 2017/18 FYA
E176: =F_Inputs_BY!C71 & " - Blind Year" -> Water network plus RCV RPI inflated ~ 1 April (opening balance excluding IFRS16 and other adjustment) at 2017-18 CPIH deflated price base - Blind Year | F176: =F_Inputs_BY!N71 -> 512.4353482 | G176: £m | H176: 2017/18 FYA
E177: =F_Inputs_BY!C72 & " - Blind Year" -> Water network plus RCV CPIH inflated ~ 1 April (opening balance excluding IFRS16 and other adjustment) at 2017-18 CPIH deflated price base - Blind Year | F177: =F_Inputs_BY!N72 -> 512.4353482 | G177: £m | H177: 2017/18 FYA
E178: =F_Inputs_BY!C73 & " - Blind Year" -> Water network plus IFRS16 RCV adjustment at 2017-18 FYA CPIH deflated price base - Blind Year | F178: =F_Inputs_BY!N73 -> 12.49171265 | G178: £m | H178: 2017/18 FYA
B181: Wastewater
E183: % of RCV to index by RPI - wastewater services | F183: 0.5 | G183: %
C185: Final Determinations (Run 8)
E186: Wholesale wastewater closing RCV at 31 March 2020 (from PR14 FD) - Final Determination | F186: ='F_Inputs Run8'!N46 -> 0 | G186: £m | H186: 2012/13 FYA
E187: Wastewater ~ Total Adjustment RCV carry forward to PR19 - Final Determination | F187: ='F_Inputs Run8'!P47 -> 0 | G187: £m | H187: 2012/13 FYA
E188: Wastewater ~ CIS RCV inflation correction - Final Determination | F188: ='F_Inputs Run8'!P48 -> 0 | G188: £m | H188: 2012/13 FYA
E189: Net performance payment / (penalty) applied to RCV for end of period ODI adjustments ~ Wastewater network plus - Final Determination | F189: ='F_Inputs Run8'!R49 -> 0 | G189: £m | H189: 2012/13 FYA
E190: Wastewater: RCV adjustment from totex menu model - Final Determination | F190: ='F_Inputs Run8'!N52 -> 0 | G190: £m | H190: 2012/13 FYA
E191: Wastewater ~ Other adjustment to wholesale RCV - Final Determination | F191: ='F_Inputs Run8'!N53 -> 0 | G191: £m | H191: 2017/18 FYE
E192: Wastewater ~ NPV effect of 50% of proceeds from disposals of interest in land - Final Determination | F192: ='F_Inputs Run8'!N54 -> 0 | G192: £m | H192: 2017/18 FYA
E193: Bioresources RCV (prior to midnight adjustments) 31 March 2020 - Final Determination | F193: ='F_Inputs Run8'!L55 -> 0 | G193: £m | H193: 2017/18 FYE
E194: Bioresources IFRS16 RCV adjustment - Final Determination | F194: ='F_Inputs Run8'!N56 -> 0 | G194: £m | H194: 2017/18 FYE
E195: Wastewater network plus IFRS16 RCV adjustment - Final Determination | F195: ='F_Inputs Run8'!N57 -> 0 | G195: £m | H195: 2017/18 FYE
E196: ='F_Inputs Run8'!C66 & " - Final Determination" -> Total wholesale wastewater RCV at 31 March 2020 post midnight adjustments before allocation to price control units at 2017-18 FYE CPIH deflated price base - Final Determination | F196: ='F_Inputs Run8'!N66 -> 0 | G196: £m | H196: 2017/18 FYE
E197: ='F_Inputs Run8'!C74 & " - Final Determination" -> Wastewater network plus RCV RPI inflated ~ 1 April (opening balance excluding IFRS16 and other adjustment) at 2017-18 CPIH deflated price base - Final Determination | F197: ='F_Inputs Run8'!N74 -> 0 | G197: £m | H197: 2017/18 FYA
E198: ='F_Inputs Run8'!C75 & " - Final Determination" -> Wastewater network plus RCV CPIH inflated ~ 1 April (opening balance excluding IFRS16 and other adjustment) at 2017-18 CPIH deflated price base - Final Determination | F198: ='F_Inputs Run8'!N75 -> 0 | G198: £m | H198: 2017/18 FYA
E199: ='F_Inputs Run8'!C76 & " - Final Determination" -> Wastewater network plus IFRS16 RCV adjustment at 2017-18 FYA CPIH deflated price base - Final Determination | F199: ='F_Inputs Run8'!N76 -> 0 | G199: £m | H199: 2017/18 FYA
E200: ='F_Inputs Run8'!C77 & " - Final Determination" -> Bioresources 2020 RCV RPI inflated ~ 1 April (opening balance) at 2017-18 CPIH deflated price base - Final Determination | F200: ='F_Inputs Run8'!N77 -> 0 | G200: £m | H200: 2017/18 FYA
E201: ='F_Inputs Run8'!C78 & " - Final Determination" -> Bioresources 2020 RCV CPIH inflated ~ 1 April (opening balance) at 2017-18 CPIH deflated price base - Final Determination | F201: ='F_Inputs Run8'!N78 -> 0 | G201: £m | H201: 2017/18 FYA
E202: ='F_Inputs Run8'!C79 & " - Final Determination" -> Bioresources IFRS16 RCV adjustment at 2017-18 FYA CPIH deflated price base - Final Determination | F202: ='F_Inputs Run8'!N79 -> 0 | G202: £m | H202: 2017/18 FYA
C204: Blind Year (Run BY)
E205: Wholesale wastewater closing RCV at 31 March 2020 (from PR14 FD) - Blind Year | F205: =F_Inputs_BY!N46 -> 0 | G205: £m | H205: 2012/13 FYA
E206: Wastewater ~ Total Adjustment RCV carry forward to PR19 - Blind Year | F206: =F_Inputs_BY!P47 -> 0 | G206: £m | H206: 2012/13 FYA
E207: Wastewater ~ CIS RCV inflation correction - Blind Year | F207: =F_Inputs_BY!P48 -> 0 | G207: £m | H207: 2012/13 FYA
E208: Net performance payment / (penalty) applied to RCV for end of period ODI adjustments ~ Wastewater network plus - Blind Year | F208: =SUM(F_Inputs_BY!J49:M49) + F_Inputs_BY!N50 + F_Inputs_BY!N51 -> 0 | G208: £m | H208: 2012/13 FYA
E209: Wastewater: RCV adjustment from totex menu model - Blind Year | F209: =F_Inputs_BY!N52 -> 0 | G209: £m | H209: 2012/13 FYA
E210: Wastewater ~ Other adjustment to wholesale RCV - Blind Year | F210: =F_Inputs_BY!N53 -> 0 | G210: £m | H210: 2017/18 FYE
E211: Wastewater ~ NPV effect of 50% of proceeds from disposals of interest in land - Blind Year | F211: =F_Inputs_BY!N54 -> 0 | G211: £m | H211: 2017/18 FYA
E212: Bioresources RCV (prior to midnight adjustments) 31 March 2020 - Blind Year | F212: =F_Inputs_BY!L55 -> 0 | G212: £m | H212: 2017/18 FYE
E213: Bioresources IFRS16 RCV adjustment - Blind Year | F213: =F_Inputs_BY!N56 -> 0 | G213: £m | H213: 2017/18 FYE
E214: Wastewater network plus IFRS16 RCV adjustment - Blind Year | F214: =F_Inputs_BY!N57 -> 0 | G214: £m | H214: 2017/18 FYE
E215: =F_Inputs_BY!C66 & " - Blind Year" -> Total wholesale wastewater RCV at 31 March 2020 post midnight adjustments before allocation to price control units at 2017-18 FYE CPIH deflated price base - Blind Year | F215: =F_Inputs_BY!N66 -> 0 | G215: £m | H215: 2017/18 FYE
E216: =F_Inputs_BY!C74 & " - Blind Year" -> Wastewater network plus RCV RPI inflated ~ 1 April (opening balance excluding IFRS16 and other adjustment) at 2017-18 CPIH deflated price base - Blind Year | F216: =F_Inputs_BY!N74 -> 0 | G216: £m | H216: 2017/18 FYA
E217: =F_Inputs_BY!C75 & " - Blind Year" -> Wastewater network plus RCV CPIH inflated ~ 1 April (opening balance excluding IFRS16 and other adjustment) at 2017-18 CPIH deflated price base - Blind Year | F217: =F_Inputs_BY!N75 -> 0 | G217: £m | H217: 2017/18 FYA
E218: =F_Inputs_BY!C76 & " - Blind Year" -> Wastewater network plus IFRS16 RCV adjustment at 2017-18 FYA CPIH deflated price base - Blind Year | F218: =F_Inputs_BY!N76 -> 0 | G218: £m | H218: 2017/18 FYA
E219: =F_Inputs_BY!C77 & " - Blind Year" -> Bioresources 2020 RCV RPI inflated ~ 1 April (opening balance) at 2017-18 CPIH deflated price base - Blind Year | F219: =F_Inputs_BY!N77 -> 0 | G219: £m | H219: 2017/18 FYA
E220: =F_Inputs_BY!C78 & " - Blind Year" -> Bioresources 2020 RCV CPIH inflated ~ 1 April (opening balance) at 2017-18 CPIH deflated price base - Blind Year | F220: =F_Inputs_BY!N78 -> 0 | G220: £m | H220: 2017/18 FYA
E221: =F_Inputs_BY!C79 & " - Blind Year" -> Bioresources IFRS16 RCV adjustment at 2017-18 FYA CPIH deflated price base - Blind Year | F221: =F_Inputs_BY!N79 -> 0 | G221: £m | H221: 2017/18 FYA
B224: Dummy Control
E226: % of RCV to index by RPI - dummy | F226: 0.5 | G226: %
C228: Final Determinations (Run 8)
E229: Dummy RCV (prior to midnight adjustments) 31 March 2020 - Final Determination | F229: ='F_Inputs Run8'!N58 -> 0 | G229: £m | H229: 2017/18 FYE
E230: Net performance payment / (penalty) applied to RCV for end of period ODI adjustments ~ Thames Tideway - Final Determination | F230: ='F_Inputs Run8'!R59 -> 0 | G230: £m | H230: 2012/13 FYA
E231: Dummy: RCV adjustment from totex menu model - Final Determination | F231: ='F_Inputs Run8'!N62 -> 0 | G231: £m | H231: 2012/13 FYA
E232: Dummy ~ Other adjustment to wholesale RCV - Final Determination | F232: ='F_Inputs Run8'!N63 -> 0 | G232: £m | H232: 2017/18 FYE
E233: Dummy: NPV effect of 100% of proceeds from disposals of interest in land - Final Determination | G233: £m | H233: 2017/18 FYA | J233: Manual input if required
E234: Dummy IFRS16 RCV adjustment - Final Determination | F234: ='F_Inputs Run8'!N64 -> 0 | G234: £m | H234: 2017/18 FYE
E235: ='F_Inputs Run8'!C67 & " - Final Determination" -> Total dummy RCV at 31 March 2020 post midnight adjustments at 2017-18 FYE CPIH deflated price base - Final Determination | F235: ='F_Inputs Run8'!N67 -> 0 | G235: £m | H235: 2017/18 FYE
E236: ='F_Inputs Run8'!C80 & " - Final Determination" -> Dummy 2020 RCV RPI inflated ~ 1 April (opening balance excluding IFRS16 and other adjustment) at 2017-18 CPIH deflated price base - Final Determination | F236: ='F_Inputs Run8'!N80 -> 0 | G236: £m | H236: 2017/18 FYA
E237: ='F_Inputs Run8'!C81 & " - Final Determination" -> Dummy 2020 RCV CPIH inflated ~ 1 April (opening balance excluding IFRS16 and other adjustment) at 2017-18 CPIH deflated price base - Final Determination | F237: ='F_Inputs Run8'!N81 -> 0 | G237: £m | H237: 2017/18 FYA
E238: ='F_Inputs Run8'!C82 & " - Final Determination" -> Dummy IFRS16 RCV adjustment at 2017-18 FYA CPIH deflated price base - Final Determination | F238: ='F_Inputs Run8'!N82 -> 0 | G238: £m | H238: 2017/18 FYA
C241: Blind Year (Run BY)
E242: Dummy RCV (prior to midnight adjustments) 31 March 2020 - Blind Year | F242: =F_Inputs_BY!N58 -> 0 | G242: £m | H242: 2017/18 FYE
E243: Net performance payment / (penalty) applied to RCV for end of period ODI adjustments ~ Thames Tideway - Blind Year | F243: =SUM(F_Inputs_BY!J59:M59) + F_Inputs_BY!N60 + F_Inputs_BY!N61 -> 0 | G243: £m | H243: 2012/13 FYA
E244: Dummy: RCV adjustment from totex menu model - Blind Year | F244: =F_Inputs_BY!N62 -> 0 | G244: £m | H244: 2012/13 FYA
E245: Dummy ~ Other adjustment to wholesale RCV - Blind Year | F245: =F_Inputs_BY!N63 -> 0 | G245: £m | H245: 2017/18 FYE
E246: Dummy: NPV effect of 100% of proceeds from disposals of interest in land - Blind Year | G246: £m | H246: 2017/18 FYA | J246: Manual input if required
... 92 more rows

Sheet Global>>

Sheet Time
A1: =RIGHT(CELL("FILENAME", $A$1), LEN(CELL("FILENAME", $A$1)) - SEARCH("]", CELL("FILENAME", $A$1))) -> Time
E2: =Time!E$25 -> Model period ending | J2: =Time!J$25 -> 2013-03-31 | K2: =Time!K$25 -> 2014-03-31 | L2: =Time!L$25 -> 2015-03-31 | M2: =Time!M$25 -> 2016-03-31 | N2: =Time!N$25 -> 2017-03-31 | O2: =Time!O$25 -> 2018-03-31 | P2: =Time!P$25 -> 2019-03-31 | Q2: =Time!Q$25 -> 2020-03-31 | R2: =Time!R$25 -> 2021-03-31 | S2: =Time!S$25 -> 2022-03-31 | T2: =Time!T$25 -> 2023-03-31 | U2: =Time!U$25 -> 2024-03-31 | V2: =Time!V$25 -> 2025-03-31
E3: =Time!E$80 -> Timeline label | J3: =Time!J$80 -> Pre-Fcst | K3: =Time!K$80 -> Pre-Fcst | L3: =Time!L$80 -> Pre-Fcst | M3: =Time!M$80 -> Pre-Fcst | N3: =Time!N$80 -> Pre-Fcst | O3: =Time!O$80 -> Pre-Fcst | P3: =Time!P$80 -> Pre-Fcst | Q3: =Time!Q$80 -> Pre-Fcst | R3: =Time!R$80 -> Forecast | S3: =Time!S$80 -> Forecast | T3: =Time!T$80 -> Forecast | U3: =Time!U$80 -> Forecast | V3: =Time!V$80 -> Forecast
E4: =Time!E$103 -> Financial year ending | J4: =Time!J$103 -> 2013 | K4: =Time!K$103 -> 2014 | L4: =Time!L$103 -> 2015 | M4: =Time!M$103 -> 2016 | N4: =Time!N$103 -> 2017 | O4: =Time!O$103 -> 2018 | P4: =Time!P$103 -> 2019 | Q4: =Time!Q$103 -> 2020 | R4: =Time!R$103 -> 2021 | S4: =Time!S$103 -> 2022 | T4: =Time!T$103 -> 2023 | U4: =Time!U$103 -> 2024 | V4: =Time!V$103 -> 2025
E5: =Time!E$10 -> Model column counter | F5: Constant | G5: Unit | H5: Total | J5: =Time!J$10 -> 1 | K5: =Time!K$10 -> 2 | L5: =Time!L$10 -> 3 | M5: =Time!M$10 -> 4 | N5: =Time!N$10 -> 5 | O5: =Time!O$10 -> 6 | P5: =Time!P$10 -> 7 | Q5: =Time!Q$10 -> 8 | R5: =Time!R$10 -> 9 | S5: =Time!S$10 -> 10 | T5: =Time!T$10 -> 11 | U5: =Time!U$10 -> 12 | V5: =Time!V$10 -> 13
A7: MODEL PERIOD
B9: Model column counter
E10: Model column counter | G10: counter | J10: =I10 + 1 -> 1 | K10: 2 | L10: 3 | M10: 4 | N10: 5 | O10: 6 | P10: 7 | Q10: 8 | R10: 9 | S10: =R10 + 1 -> 10 | T10: =S10 + 1 -> 11 | U10: =T10 + 1 -> 12 | V10: =U10 + 1 -> 13
E11: Model column total | F11: =MAX(J10:U10) -> 12 | G11: columns
E13: =E$10 -> Model column counter | F13: 0 | G13: counter | H13: 0 | I13: 0 | J13: 1 | K13: 2 | L13: 3 | M13: 4 | N13: 5 | O13: 6 | P13: 7 | Q13: 8 | R13: 9 | S13: 10 | T13: 11 | U13: 12 | V13: 13
E14: 1st model column flag | G14: flag | H14: =SUM(J14:U14) -> 1 | J14: =IF(J13 = 1, 1, 0) -> 1 | K14: 0 | L14: 0 | M14: 0 | N14: 0 | O14: 0 | P14: 0 | Q14: 0 | R14: 0 | S14: =IF(S13 = 1, 1, 0) -> 0 | T14: =IF(T13 = 1, 1, 0) -> 0 | U14: =IF(U13 = 1, 1, 0) -> 0 | V14: =IF(V13 = 1, 1, 0) -> 0
B16: Model period beginning
E17: =InpActive!E$13 -> 1st model column start date | F17: =InpActive!F$13 -> 2012-04-01 | G17: =InpActive!G$13 -> date
E18: =InpActive!E$374 -> Months per model period | F18: =InpActive!F$374 -> 12 | G18: =InpActive!G$374 -> months
E19: =E$14 -> 1st model column flag | F19: 0 | G19: flag | H19: 1 | I19: 0 | J19: 1 | K19: 0 | L19: 0 | M19: 0 | N19: 0 | O19: 0 | P19: 0 | Q19: 0 | R19: 0 | S19: 0 | T19: 0 | U19: 0 | V19: 0
E20: Model period beginning | G20: date | J20: =IF(J19 = 1, $F17, DATE(YEAR(I20), MONTH(I20) + $F18, DAY(1))) -> 2012-04-01 | K20: 2013-04-01 | L20: 2014-04-01 | M20: 2015-04-01 | N20: 2016-04-01 | O20: 2017-04-01 | P20: 2018-04-01 | Q20: 2019-04-01 | R20: 2020-04-01 | S20: =IF(S19 = 1, $F17, DATE(YEAR(R20), MONTH(R20) + $F18, DAY(1))) -> 2021-04-01 | T20: =IF(T19 = 1, $F17, DATE(YEAR(S20), MONTH(S20) + $F18, DAY(1))) -> 2022-04-01 | U20: =IF(U19 = 1, $F17, DATE(YEAR(T20), MONTH(T20) + $F18, DAY(1))) -> 2023-04-01 | V20: =IF(V19 = 1, $F17, DATE(YEAR(U20), MONTH(U20) + $F18, DAY(1))) -> 2024-04-01
B22: Model period ending
E23: =InpActive!E$374 -> Months per model period | F23: =InpActive!F$374 -> 12 | G23: =InpActive!G$374 -> months
E24: =E$20 -> Model period beginning | F24: 00:00:00 | G24: date | H24: 00:00:00 | I24: 00:00:00 | J24: 2012-04-01 | K24: 2013-04-01 | L24: 2014-04-01 | M24: 2015-04-01 | N24: 2016-04-01 | O24: 2017-04-01 | P24: 2018-04-01 | Q24: 2019-04-01 | R24: 2020-04-01 | S24: 2021-04-01 | T24: 2022-04-01 | U24: 2023-04-01 | V24: 2024-04-01
E25: Model period ending | G25: date | J25: =DATE(YEAR(J24), MONTH(J24) + $F23, DAY(J24) - 1) -> 2013-03-31 | K25: 2014-03-31 | L25: 2015-03-31 | M25: 2016-03-31 | N25: 2017-03-31 | O25: 2018-03-31 | P25: 2019-03-31 | Q25: 2020-03-31 | R25: 2021-03-31 | S25: =DATE(YEAR(S24), MONTH(S24) + $F23, DAY(S24) - 1) -> 2022-03-31 | T25: =DATE(YEAR(T24), MONTH(T24) + $F23, DAY(T24) - 1) -> 2023-03-31 | U25: =DATE(YEAR(U24), MONTH(U24) + $F23, DAY(U24) - 1) -> 2024-03-31 | V25: =DATE(YEAR(V24), MONTH(V24) + $F23, DAY(V24) - 1) -> 2025-03-31
A28: FORECAST PERIOD
B30: Forecast start period flag
E31: =InpActive!E$26 -> Forecast start date | F31: =InpActive!F$26 -> 2020-04-01 | G31: =InpActive!G$26 -> date
E32: =E$20 -> Model period beginning | F32: 00:00:00 | G32: date | H32: 00:00:00 | I32: 00:00:00 | J32: 2012-04-01 | K32: 2013-04-01 | L32: 2014-04-01 | M32: 2015-04-01 | N32: 2016-04-01 | O32: 2017-04-01 | P32: 2018-04-01 | Q32: 2019-04-01 | R32: 2020-04-01 | S32: 2021-04-01 | T32: 2022-04-01 | U32: 2023-04-01 | V32: 2024-04-01
E33: =E$25 -> Model period ending | F33: 00:00:00 | G33: date | H33: 00:00:00 | I33: 00:00:00 | J33: 2013-03-31 | K33: 2014-03-31 | L33: 2015-03-31 | M33: 2016-03-31 | N33: 2017-03-31 | O33: 2018-03-31 | P33: 2019-03-31 | Q33: 2020-03-31 | R33: 2021-03-31 | S33: 2022-03-31 | T33: 2023-03-31 | U33: 2024-03-31 | V33: 2025-03-31
E34: Forecast start period flag | G34: flag | H34: =SUM(J34:U34) -> 1 | J34: =IF(AND($F31 >= J32, $F31 <= J33), 1, 0) -> 0 | K34: =IF(AND($F31 >= K32, $F31 <= K33), 1, 0) -> 0 | L34: 0 | M34: 0 | N34: 0 | O34: 0 | P34: 0 | Q34: 0 | R34: 1 | S34: =IF(AND($F31 >= S32, $F31 <= S33), 1, 0) -> 0 | T34: =IF(AND($F31 >= T32, $F31 <= T33), 1, 0) -> 0 | U34: =IF(AND($F31 >= U32, $F31 <= U33), 1, 0) -> 0 | V34: =IF(AND($F31 >= V32, $F31 <= V33), 1, 0) -> 0
B36: Forecast end period flag
E37: =InpActive!E$26 -> Forecast start date | F37: =InpActive!F$26 -> 2020-04-01 | G37: =InpActive!G$26 -> date
E38: =InpActive!E$27 -> Forecast duration | F38: =InpActive!F$27 -> 5 | G38: =InpActive!G$27 -> years
E39: Forecast end date | F39: =DATE(YEAR(F37) + F38, MONTH(F37), DAY(F37) - 1) -> 2025-03-31 | G39: date
E41: =E$39 -> Forecast end date | F41: =F$39 -> 2025-03-31 | G41: =G$39 -> date
E42: =E$20 -> Model period beginning | F42: 00:00:00 | G42: date | H42: 00:00:00 | I42: 00:00:00 | J42: 2012-04-01 | K42: 2013-04-01 | L42: 2014-04-01 | M42: 2015-04-01 | N42: 2016-04-01 | O42: 2017-04-01 | P42: 2018-04-01 | Q42: 2019-04-01 | R42: 2020-04-01 | S42: 2021-04-01 | T42: 2022-04-01 | U42: 2023-04-01 | V42: 2024-04-01
E43: =E$25 -> Model period ending | F43: 00:00:00 | G43: date | H43: 00:00:00 | I43: 00:00:00 | J43: 2013-03-31 | K43: 2014-03-31 | L43: 2015-03-31 | M43: 2016-03-31 | N43: 2017-03-31 | O43: 2018-03-31 | P43: 2019-03-31 | Q43: 2020-03-31 | R43: 2021-03-31 | S43: 2022-03-31 | T43: 2023-03-31 | U43: 2024-03-31 | V43: 2025-03-31
E44: Forecast end period flag | G44: flag | H44: =SUM(J44:U44) -> 0 | J44: =IF(AND($F41 >= J42, $F41 <= J43), 1, 0) -> 0 | K44: 0 | L44: 0 | M44: 0 | N44: 0 | O44: 0 | P44: 0 | Q44: 0 | R44: 0 | S44: 0 | T44: 0 | U44: 0 | V44: =IF(AND($F41 >= V42, $F41 <= V43), 1, 0) -> 1
B46: Forecast period flag
E47: =E$34 -> Forecast start period flag | F47: =F$34 -> 0 | G47: flag | H47: 1 | I47: 0 | J47: 0 | K47: 0 | L47: 0 | M47: 0 | N47: 0 | O47: 0 | P47: 0 | Q47: 0 | R47: 1 | S47: 0 | T47: 0 | U47: 0 | V47: 0
E48: =E$44 -> Forecast end period flag | F48: =F$44 -> 0 | G48: flag | H48: 0 | I48: 0 | J48: 0 | K48: 0 | L48: 0 | M48: 0 | N48: 0 | O48: 0 | P48: 0 | Q48: 0 | R48: 0 | S48: 0 | T48: 0 | U48: 0 | V48: 1
E49: Forecast period flag | G49: flag | H49: =SUM(J49:U49) -> 4 | J49: =J47 + I49 - I48 -> 0 | K49: =K47 + J49 - J48 -> 0 | L49: 0 | M49: 0 | N49: 0 | O49: 0 | P49: 0 | Q49: 0 | R49: 1 | S49: =S47 + R49 - R48 -> 1 | T49: =T47 + S49 - S48 -> 1 | U49: =U47 + T49 - T48 -> 1 | V49: =V47 + U49 - U48 -> 1
E50: Total number of forecast periods | F50: =SUM(J49:U49) -> 4 | G50: periods
B52: Pre-forecast period flag
E53: =E$14 -> 1st model column flag | F53: =F$14 -> 0 | G53: flag | H53: 1 | I53: 0 | J53: 1 | K53: 0 | L53: 0 | M53: 0 | N53: 0 | O53: 0 | P53: 0 | Q53: 0 | R53: 0 | S53: 0 | T53: 0 | U53: 0 | V53: 0
E54: =E$34 -> Forecast start period flag | F54: =F$34 -> 0 | G54: flag | H54: 1 | I54: 0 | J54: 0 | K54: 0 | L54: 0 | M54: 0 | N54: 0 | O54: 0 | P54: 0 | Q54: 0 | R54: 1 | S54: 0 | T54: 0 | U54: 0 | V54: 0
E55: Pre-forecast period flag | G55: flag | H55: =SUM(J55:U55) -> 8 | J55: =J53 + I55 - J54 -> 1 | K55: =K53 + J55 - K54 -> 1 | L55: 1 | M55: 1 | N55: 1 | O55: 1 | P55: 1 | Q55: 1 | R55: 0 | S55: =S53 + R55 - S54 -> 0 | T55: =T53 + S55 - T54 -> 0 | U55: =U53 + T55 - U54 -> 0 | V55: =V53 + U55 - V54 -> 0
E56: Pre-forecast period flag - total | F56: =SUM(J55:U55) -> 8 | G56: periods
B58: First post-forecast period flag
E59: =E$44 -> Forecast end period flag | F59: =F$44 -> 0 | G59: flag | H59: 0 | I59: 0 | J59: 0 | K59: 0 | L59: 0 | M59: 0 | N59: 0 | O59: 0 | P59: 0 | Q59: 0 | R59: 0 | S59: 0 | T59: 0 | U59: 0 | V59: 1
E60: First post-forecast period flag | G60: flag | H60: =SUM(J60:U60) -> 0 | J60: =I59 -> 0 | K60: =J59 -> 0 | L60: 0 | M60: 0 | N60: 0 | O60: 0 | P60: 0 | Q60: 0 | R60: 0 | S60: =R59 -> 0 | T60: =S59 -> 0 | U60: =T59 -> 0 | V60: =U59 -> 0
B62: Post-forecast period flag
E63: =E$60 -> First post-forecast period flag | F63: 0 | G63: flag | H63: 0 | I63: 0 | J63: 0 | K63: 0 | L63: 0 | M63: 0 | N63: 0 | O63: 0 | P63: 0 | Q63: 0 | R63: 0 | S63: 0 | T63: 0 | U63: 0 | V63: 0
E64: Post-forecast period flag | G64: flag | H64: =SUM(J64:U64) -> 0 | J64: =J63 + I64 -> 0 | K64: =K63 + J64 -> 0 | L64: 0 | M64: 0 | N64: 0 | O64: 0 | P64: 0 | Q64: 0 | R64: 0 | S64: =S63 + R64 -> 0 | T64: =T63 + S64 -> 0 | U64: =U63 + T64 -> 0 | V64: =V63 + U64 -> 0
E65: Post-forecast period - total | F65: =SUM(J64:U64) -> 0 | G65: periods
A67: MODEL TIMELINE
B70: Timeline label
E71: =E$14 -> 1st model column flag | F71: 0 | G71: flag | H71: 1 | I71: 0 | J71: 1 | K71: 0 | L71: 0 | M71: 0 | N71: 0 | O71: 0 | P71: 0 | Q71: 0 | R71: 0 | S71: 0 | T71: 0 | U71: 0 | V71: 0
E72: =E$34 -> Forecast start period flag | F72: =F$34 -> 0 | G72: flag | H72: 1 | I72: 0 | J72: 0 | K72: 0 | L72: 0 | M72: 0 | N72: 0 | O72: 0 | P72: 0 | Q72: 0 | R72: 1 | S72: 0 | T72: 0 | U72: 0 | V72: 0
E73: =E$60 -> First post-forecast period flag | F73: 0 | G73: flag | H73: 0 | I73: 0 | J73: 0 | K73: 0 | L73: 0 | M73: 0 | N73: 0 | O73: 0 | P73: 0 | Q73: 0 | R73: 0 | S73: 0 | T73: 0 | U73: 0 | V73: 0
E74: Timeline label counter | G74: counter | J74: =I74 + SUM(J71:J73) -> 1 | K74: 1 | L74: 1 | M74: 1 | N74: 1 | O74: 1 | P74: 1 | Q74: 1 | R74: 2 | S74: =R74 + SUM(S71:S73) -> 2 | T74: =S74 + SUM(T71:T73) -> 2 | U74: =T74 + SUM(U71:U73) -> 2 | V74: =U74 + SUM(V71:V73) -> 2
E76: =InpActive!E$20 -> Pre - forecast period | F76: =InpActive!F$20 -> Pre-Fcst | G76: =InpActive!G$20 -> label
E77: =InpActive!E$21 -> Forecast period | F77: =InpActive!F$21 -> Forecast | G77: =InpActive!G$21 -> label
E78: =InpActive!E$22 -> Post - forecast period | F78: =InpActive!F$22 -> Post-Fcst | G78: =InpActive!G$22 -> label
E79: =E$74 -> Timeline label counter | F79: 0 | G79: counter | H79: 0 | I79: 0 | J79: 1 | K79: 1 | L79: 1 | M79: 1 | N79: 1 | O79: 1 | P79: 1 | Q79: 1 | R79: 2 | S79: 2 | T79: 2 | U79: 2 | V79: 2
E80: Timeline label | G80: label | J80: =INDEX($F76:$F78, J79) -> Pre-Fcst | K80: Pre-Fcst | L80: Pre-Fcst | M80: Pre-Fcst | N80: Pre-Fcst | O80: Pre-Fcst | P80: Pre-Fcst | Q80: Pre-Fcst | R80: Forecast | S80: =INDEX($F76:$F78, S79) -> Forecast | T80: =INDEX($F76:$F78, T79) -> Forecast | U80: =INDEX($F76:$F78, U79) -> Forecast | V80: =INDEX($F76:$F78, V79) -> Forecast
B82: Modelling period check
E83: =E$55 -> Pre-forecast period flag | F83: =F$55 -> 0 | G83: flag | H83: 8 | I83: 0 | J83: 1 | K83: 1 | L83: 1 | M83: 1 | N83: 1 | O83: 1 | P83: 1 | Q83: 1 | R83: 0 | S83: 0 | T83: 0 | U83: 0 | V83: 0
E84: =E$49 -> Forecast period flag | F84: =F$49 -> 0 | G84: flag | H84: 4 | I84: 0 | J84: 0 | K84: 0 | L84: 0 | M84: 0 | N84: 0 | O84: 0 | P84: 0 | Q84: 0 | R84: 1 | S84: 1 | T84: 1 | U84: 1 | V84: 1
E85: =E$64 -> Post-forecast period flag | F85: 0 | G85: flag | H85: 0 | I85: 0 | J85: 0 | K85: 0 | L85: 0 | M85: 0 | N85: 0 | O85: 0 | P85: 0 | Q85: 0 | R85: 0 | S85: 0 | T85: 0 | U85: 0 | V85: 0
E86: No. of overlapping in flags | G86: # | H86: =SUM(J86:U86) -> 0 | J86: =MAX(0, SUM(J83:J85) - 1) -> 0 | K86: 0 | L86: 0 | M86: 0 | N86: 0 | O86: 0 | P86: 0 | Q86: 0 | R86: 0 | S86: =MAX(0, SUM(S83:S85) - 1) -> 0 | T86: =MAX(0, SUM(T83:T85) - 1) -> 0 | U86: =MAX(0, SUM(U83:U85) - 1) -> 0 | V86: =MAX(0, SUM(V83:V85) - 1) -> 0
E87: Overlapping in periods - total | F87: =SUM(J86:U86) -> 0 | G87: periods
E89: =E$11 -> Model column total | F89: =F$11 -> 12 | G89: =G$11 -> columns
E90: =E$87 -> Overlapping in periods - total | F90: =F$87 -> 0 | G90: =G$87 -> periods
E91: =E$56 -> Pre-forecast period flag - total | F91: =F$56 -> 8 | G91: =G$56 -> periods
E92: =E$50 -> Total number of forecast periods | F92: =F$50 -> 4 | G92: =G$50 -> periods
E93: =E$65 -> Post-forecast period - total | F93: =F$65 -> 0 | G93: =G$65 -> periods
E94: Modelling period check | F94: =IF(SUM(F89:F90) - SUM(F91:F93) <> 0, 1, 0) -> 0 | G94: check
A97: FINANCIAL YEAR
E99: =InpActive!E$16 -> First modelling column financial year# | F99: =InpActive!F$16 -> 2013 | G99: =InpActive!G$16 -> year #
E100: =InpActive!E$17 -> Financial year end month number | F100: =InpActive!F$17 -> 3 | G100: =InpActive!G$17 -> month #
E101: =E$25 -> Model period ending | F101: 00:00:00 | G101: date | H101: 00:00:00 | I101: 00:00:00 | J101: 2013-03-31 | K101: 2014-03-31 | L101: 2015-03-31 | M101: 2016-03-31 | N101: 2017-03-31 | O101: 2018-03-31 | P101: 2019-03-31 | Q101: 2020-03-31 | R101: 2021-03-31 | S101: 2022-03-31 | T101: 2023-03-31 | U101: 2024-03-31 | V101: 2025-03-31
E102: =E$14 -> 1st model column flag | F102: 0 | G102: flag | H102: 1 | I102: 0 | J102: 1 | K102: 0 | L102: 0 | M102: 0 | N102: 0 | O102: 0 | P102: 0 | Q102: 0 | R102: 0 | S102: 0 | T102: 0 | U102: 0 | V102: 0
E103: Financial year ending | G103: year # | J103: =IF(J102 = 1, $F99, IF(J101 > (DATE(I103, $F100 + 1, 1) - 1), I103 + 1, I103)) -> 2013 | K103: 2014 | L103: 2015 | M103: 2016 | N103: 2017 | O103: 2018 | P103: 2019 | Q103: 2020 | R103: 2021 | S103: =IF(S102 = 1, $F99, IF(S101 > (DATE(R103, $F100 + 1, 1) - 1), R103 + 1, R103)) -> 2022 | T103: =IF(T102 = 1, $F99, IF(T101 > (DATE(S103, $F100 + 1, 1) - 1), S103 + 1, S103)) -> 2023 | U103: =IF(U102 = 1, $F99, IF(U101 > (DATE(T103, $F100 + 1, 1) - 1), T103 + 1, T103)) -> 2024 | V103: =IF(V102 = 1, $F99, IF(V101 > (DATE(U103, $F100 + 1, 1) - 1), U103 + 1, U103)) -> 2025
A106: End of sheet

Sheet Indexation
A1: =RIGHT(CELL("filename", $A$1), LEN(CELL("filename", $A$1)) - SEARCH("]", CELL("filename", $A$1))) -> Indexation
E2: =Time!E$25 -> Model period ending | J2: =Time!J$25 -> 2013-03-31 | K2: =Time!K$25 -> 2014-03-31 | L2: =Time!L$25 -> 2015-03-31 | M2: =Time!M$25 -> 2016-03-31 | N2: =Time!N$25 -> 2017-03-31 | O2: =Time!O$25 -> 2018-03-31 | P2: =Time!P$25 -> 2019-03-31 | Q2: =Time!Q$25 -> 2020-03-31 | R2: =Time!R$25 -> 2021-03-31 | S2: =Time!S$25 -> 2022-03-31 | T2: =Time!T$25 -> 2023-03-31 | U2: =Time!U$25 -> 2024-03-31 | V2: =Time!V$25 -> 2025-03-31
E3: =Time!E$80 -> Timeline label | J3: =Time!J$80 -> Pre-Fcst | K3: =Time!K$80 -> Pre-Fcst | L3: =Time!L$80 -> Pre-Fcst | M3: =Time!M$80 -> Pre-Fcst | N3: =Time!N$80 -> Pre-Fcst | O3: =Time!O$80 -> Pre-Fcst | P3: =Time!P$80 -> Pre-Fcst | Q3: =Time!Q$80 -> Pre-Fcst | R3: =Time!R$80 -> Forecast | S3: =Time!S$80 -> Forecast | T3: =Time!T$80 -> Forecast | U3: =Time!U$80 -> Forecast | V3: =Time!V$80 -> Forecast
E4: =Time!E$103 -> Financial year ending | J4: =Time!J$103 -> 2013 | K4: =Time!K$103 -> 2014 | L4: =Time!L$103 -> 2015 | M4: =Time!M$103 -> 2016 | N4: =Time!N$103 -> 2017 | O4: =Time!O$103 -> 2018 | P4: =Time!P$103 -> 2019 | Q4: =Time!Q$103 -> 2020 | R4: =Time!R$103 -> 2021 | S4: =Time!S$103 -> 2022 | T4: =Time!T$103 -> 2023 | U4: =Time!U$103 -> 2024 | V4: =Time!V$103 -> 2025
E5: =Time!E$10 -> Model column counter | F5: Constant | G5: Unit | H5: Total | J5: =Time!J$10 -> 1 | K5: =Time!K$10 -> 2 | L5: =Time!L$10 -> 3 | M5: =Time!M$10 -> 4 | N5: =Time!N$10 -> 5 | O5: =Time!O$10 -> 6 | P5: =Time!P$10 -> 7 | Q5: =Time!Q$10 -> 8 | R5: =Time!R$10 -> 9 | S5: =Time!S$10 -> 10 | T5: =Time!T$10 -> 11 | U5: =Time!U$10 -> 12 | V5: =Time!V$10 -> 13
A7: CPIH INDEXATION - ACTUAL
B9: CPIH: Index value series
E10: =InpActive!E$35 -> Consumer Price Index for April | F10: =InpActive!F$35 -> 0 | G10: =InpActive!G$35 -> index | H10: =InpActive!H$35 -> 0 | I10: =InpActive!I$35 -> 0 | J10: =InpActive!J$35 -> 95.9 | K10: =InpActive!K$35 -> 98 | L10: =InpActive!L$35 -> 99.6 | M10: =InpActive!M$35 -> 99.9 | N10: =InpActive!N$35 -> 100.6 | O10: =InpActive!O$35 -> 103.2 | P10: =InpActive!P$35 -> 105.5 | Q10: =InpActive!Q$35 -> 107.6 | R10: =InpActive!R$35 -> 0 | S10: =InpActive!S$35 -> 0 | T10: =InpActive!T$35 -> 0 | U10: =InpActive!U$35 -> 0 | V10: =InpActive!V$35 -> 0
E11: =InpActive!E$36 -> Consumer Price Index for May | F11: =InpActive!F$36 -> 0 | G11: =InpActive!G$36 -> index | H11: =InpActive!H$36 -> 0 | I11: =InpActive!I$36 -> 0 | J11: =InpActive!J$36 -> 95.9 | K11: =InpActive!K$36 -> 98.2 | L11: =InpActive!L$36 -> 99.6 | M11: =InpActive!M$36 -> 100.1 | N11: =InpActive!N$36 -> 100.8 | O11: =InpActive!O$36 -> 103.5 | P11: =InpActive!P$36 -> 105.9 | Q11: =InpActive!Q$36 -> 107.9 | R11: =InpActive!R$36 -> 0 | S11: =InpActive!S$36 -> 0 | T11: =InpActive!T$36 -> 0 | U11: =InpActive!U$36 -> 0 | V11: =InpActive!V$36 -> 0
E12: =InpActive!E$37 -> Consumer Price Index for June | F12: =InpActive!F$37 -> 0 | G12: =InpActive!G$37 -> index | H12: =InpActive!H$37 -> 0 | I12: =InpActive!I$37 -> 0 | J12: =InpActive!J$37 -> 95.6 | K12: =InpActive!K$37 -> 98 | L12: =InpActive!L$37 -> 99.8 | M12: =InpActive!M$37 -> 100.1 | N12: =InpActive!N$37 -> 101 | O12: =InpActive!O$37 -> 103.5 | P12: =InpActive!P$37 -> 105.9 | Q12: =InpActive!Q$37 -> 107.9 | R12: =InpActive!R$37 -> 0 | S12: =InpActive!S$37 -> 0 | T12: =InpActive!T$37 -> 0 | U12: =InpActive!U$37 -> 0 | V12: =InpActive!V$37 -> 0
E13: =InpActive!E$38 -> Consumer Price Index for July | F13: =InpActive!F$38 -> 0 | G13: =InpActive!G$38 -> index | H13: =InpActive!H$38 -> 0 | I13: =InpActive!I$38 -> 0 | J13: =InpActive!J$38 -> 95.7 | K13: =InpActive!K$38 -> 98 | L13: =InpActive!L$38 -> 99.6 | M13: =InpActive!M$38 -> 100 | N13: =InpActive!N$38 -> 100.9 | O13: =InpActive!O$38 -> 103.5 | P13: =InpActive!P$38 -> 105.9 | Q13: =InpActive!Q$38 -> 108 | R13: =InpActive!R$38 -> 0 | S13: =InpActive!S$38 -> 0 | T13: =InpActive!T$38 -> 0 | U13: =InpActive!U$38 -> 0 | V13: =InpActive!V$38 -> 0
E14: =InpActive!E$39 -> Consumer Price Index for August | F14: =InpActive!F$39 -> 0 | G14: =InpActive!G$39 -> index | H14: =InpActive!H$39 -> 0 | I14: =InpActive!I$39 -> 0 | J14: =InpActive!J$39 -> 96.1 | K14: =InpActive!K$39 -> 98.4 | L14: =InpActive!L$39 -> 99.9 | M14: =InpActive!M$39 -> 100.3 | N14: =InpActive!N$39 -> 101.2 | O14: =InpActive!O$39 -> 104 | P14: =InpActive!P$39 -> 106.5 | Q14: =InpActive!Q$39 -> 108.3 | R14: =InpActive!R$39 -> 0 | S14: =InpActive!S$39 -> 0 | T14: =InpActive!T$39 -> 0 | U14: =InpActive!U$39 -> 0 | V14: =InpActive!V$39 -> 0
E15: =InpActive!E$40 -> Consumer Price Index for September | F15: =InpActive!F$40 -> 0 | G15: =InpActive!G$40 -> index | H15: =InpActive!H$40 -> 0 | I15: =InpActive!I$40 -> 0 | J15: =InpActive!J$40 -> 96.4 | K15: =InpActive!K$40 -> 98.7 | L15: =InpActive!L$40 -> 100 | M15: =InpActive!M$40 -> 100.2 | N15: =InpActive!N$40 -> 101.5 | O15: =InpActive!O$40 -> 104.3 | P15: =InpActive!P$40 -> 106.6 | Q15: =InpActive!Q$40 -> 108.4 | R15: =InpActive!R$40 -> 0 | S15: =InpActive!S$40 -> 0 | T15: =InpActive!T$40 -> 0 | U15: =InpActive!U$40 -> 0 | V15: =InpActive!V$40 -> 0
E16: =InpActive!E$41 -> Consumer Price Index for October | F16: =InpActive!F$41 -> 0 | G16: =InpActive!G$41 -> index | H16: =InpActive!H$41 -> 0 | I16: =InpActive!I$41 -> 0 | J16: =InpActive!J$41 -> 96.8 | K16: =InpActive!K$41 -> 98.8 | L16: =InpActive!L$41 -> 100.1 | M16: =InpActive!M$41 -> 100.3 | N16: =InpActive!N$41 -> 101.6 | O16: =InpActive!O$41 -> 104.4 | P16: =InpActive!P$41 -> 106.7 | Q16: =InpActive!Q$41 -> 108.3 | R16: =InpActive!R$41 -> 0 | S16: =InpActive!S$41 -> 0 | T16: =InpActive!T$41 -> 0 | U16: =InpActive!U$41 -> 0 | V16: =InpActive!V$41 -> 0
E17: =InpActive!E$42 -> Consumer Price Index for November | F17: =InpActive!F$42 -> 0 | G17: =InpActive!G$42 -> index | H17: =InpActive!H$42 -> 0 | I17: =InpActive!I$42 -> 0 | J17: =InpActive!J$42 -> 97 | K17: =InpActive!K$42 -> 98.8 | L17: =InpActive!L$42 -> 99.9 | M17: =InpActive!M$42 -> 100.3 | N17: =InpActive!N$42 -> 101.8 | O17: =InpActive!O$42 -> 104.7 | P17: =InpActive!P$42 -> 106.9 | Q17: =InpActive!Q$42 -> 108.5 | R17: =InpActive!R$42 -> 0 | S17: =InpActive!S$42 -> 0 | T17: =InpActive!T$42 -> 0 | U17: =InpActive!U$42 -> 0 | V17: =InpActive!V$42 -> 0
E18: =InpActive!E$43 -> Consumer Price Index for December | F18: =InpActive!F$43 -> 0 | G18: =InpActive!G$43 -> index | H18: =InpActive!H$43 -> 0 | I18: =InpActive!I$43 -> 0 | J18: =InpActive!J$43 -> 97.3 | K18: =InpActive!K$43 -> 99.2 | L18: =InpActive!L$43 -> 99.9 | M18: =InpActive!M$43 -> 100.4 | N18: =InpActive!N$43 -> 102.2 | O18: =InpActive!O$43 -> 105 | P18: =InpActive!P$43 -> 107.1 | Q18: =InpActive!Q$43 -> 108.5 | R18: =InpActive!R$43 -> 0 | S18: =InpActive!S$43 -> 0 | T18: =InpActive!T$43 -> 0 | U18: =InpActive!U$43 -> 0 | V18: =InpActive!V$43 -> 0
E19: =InpActive!E$44 -> Consumer Price Index for January | F19: =InpActive!F$44 -> 0 | G19: =InpActive!G$44 -> index | H19: =InpActive!H$44 -> 0 | I19: =InpActive!I$44 -> 0 | J19: =InpActive!J$44 -> 97 | K19: =InpActive!K$44 -> 98.7 | L19: =InpActive!L$44 -> 99.2 | M19: =InpActive!M$44 -> 99.9 | N19: =InpActive!N$44 -> 101.8 | O19: =InpActive!O$44 -> 104.5 | P19: =InpActive!P$44 -> 106.4 | Q19: =InpActive!Q$44 -> 108.3 | R19: =InpActive!R$44 -> 0 | S19: =InpActive!S$44 -> 0 | T19: =InpActive!T$44 -> 0 | U19: =InpActive!U$44 -> 0 | V19: =InpActive!V$44 -> 0
E20: =InpActive!E$45 -> Consumer Price Index for February | F20: =InpActive!F$45 -> 0 | G20: =InpActive!G$45 -> index | H20: =InpActive!H$45 -> 0 | I20: =InpActive!I$45 -> 0 | J20: =InpActive!J$45 -> 97.5 | K20: =InpActive!K$45 -> 99.1 | L20: =InpActive!L$45 -> 99.5 | M20: =InpActive!M$45 -> 100.1 | N20: =InpActive!N$45 -> 102.4 | O20: =InpActive!O$45 -> 104.9 | P20: =InpActive!P$45 -> 106.8 | Q20: =InpActive!Q$45 -> 108.6 | R20: =InpActive!R$45 -> 0 | S20: =InpActive!S$45 -> 0 | T20: =InpActive!T$45 -> 0 | U20: =InpActive!U$45 -> 0 | V20: =InpActive!V$45 -> 0
E21: =InpActive!E$46 -> Consumer Price Index for March | F21: =InpActive!F$46 -> 0 | G21: =InpActive!G$46 -> index | H21: =InpActive!H$46 -> 0 | I21: =InpActive!I$46 -> 0 | J21: =InpActive!J$46 -> 97.8 | K21: =InpActive!K$46 -> 99.3 | L21: =InpActive!L$46 -> 99.6 | M21: =InpActive!M$46 -> 100.4 | N21: =InpActive!N$46 -> 102.7 | O21: =InpActive!O$46 -> 105.1 | P21: =InpActive!P$46 -> 107 | Q21: =InpActive!Q$46 -> 108.6 | R21: =InpActive!R$46 -> 0 | S21: =InpActive!S$46 -> 0 | T21: =InpActive!T$46 -> 0 | U21: =InpActive!U$46 -> 0 | V21: =InpActive!V$46 -> 0
E23: =InpActive!E$48 -> CPIH: Assumed percentage increase for unpopulated monthly values | F23: =InpActive!F$48 -> 0 | G23: =InpActive!G$48 -> % | H23: =InpActive!H$48 -> 0 | I23: =InpActive!I$48 -> 0 | J23: =InpActive!J$48 -> 0 | K23: =InpActive!K$48 -> 0 | L23: =InpActive!L$48 -> 0 | M23: =InpActive!M$48 -> 0 | N23: =InpActive!N$48 -> 0 | O23: =InpActive!O$48 -> 0 | P23: =InpActive!P$48 -> 0 | Q23: =InpActive!Q$48 -> 0 | R23: =InpActive!R$48 -> 0 | S23: =InpActive!S$48 -> 0 | T23: =InpActive!T$48 -> 0 | U23: =InpActive!U$48 -> 0 | V23: =InpActive!V$48 -> 0
E25: CPIH: April - index | G25: index | J25: =IF(J10 > 0, J10, I25 * (1 + J$23)) -> 95.9 | K25: =IF(K10 > 0, K10, J25 * (1 + K$23)) -> 98 | L25: 99.6 | M25: 99.9 | N25: 100.6 | O25: 103.2 | P25: 105.5 | Q25: 107.6 | R25: 107.6 | S25: 107.6 | T25: 107.6 | U25: 107.6 | V25: =IF(V10 > 0, V10, U25 * (1 + V$23)) -> 107.6
E26: CPIH: May - index | G26: index | J26: =IF(J11 > 0, J11, I26 * (1 + J$23)) -> 95.9 | K26: 98.2 | L26: 99.6 | M26: 100.1 | N26: 100.8 | O26: 103.5 | P26: 105.9 | Q26: 107.9 | R26: 107.9 | S26: 107.9 | T26: 107.9 | U26: 107.9 | V26: 107.9
E27: CPIH: June - index | G27: index | J27: 95.6 | K27: 98 | L27: 99.8 | M27: 100.1 | N27: 101 | O27: 103.5 | P27: 105.9 | Q27: 107.9 | R27: 107.9 | S27: 107.9 | T27: 107.9 | U27: 107.9 | V27: 107.9
E28: CPIH: July - index | G28: index | J28: 95.7 | K28: 98 | L28: 99.6 | M28: 100 | N28: 100.9 | O28: 103.5 | P28: 105.9 | Q28: 108 | R28: 108 | S28: 108 | T28: 108 | U28: 108 | V28: 108
E29: CPIH: August - index | G29: index | J29: 96.1 | K29: 98.4 | L29: 99.9 | M29: 100.3 | N29: 101.2 | O29: 104 | P29: 106.5 | Q29: 108.3 | R29: 108.3 | S29: 108.3 | T29: 108.3 | U29: 108.3 | V29: 108.3
E30: CPIH: September- index | G30: index | J30: 96.4 | K30: 98.7 | L30: 100 | M30: 100.2 | N30: 101.5 | O30: 104.3 | P30: 106.6 | Q30: 108.4 | R30: 108.4 | S30: 108.4 | T30: 108.4 | U30: 108.4 | V30: 108.4
E31: CPIH: October - index | G31: index | J31: 96.8 | K31: 98.8 | L31: 100.1 | M31: 100.3 | N31: 101.6 | O31: 104.4 | P31: 106.7 | Q31: 108.3 | R31: 108.3 | S31: 108.3 | T31: 108.3 | U31: 108.3 | V31: 108.3
E32: CPIH: November - index | G32: index | J32: 97 | K32: 98.8 | L32: 99.9 | M32: 100.3 | N32: 101.8 | O32: 104.7 | P32: 106.9 | Q32: 108.5 | R32: 108.5 | S32: 108.5 | T32: 108.5 | U32: 108.5 | V32: 108.5
E33: CPIH: December - index | G33: index | J33: 97.3 | K33: 99.2 | L33: 99.9 | M33: 100.4 | N33: 102.2 | O33: 105 | P33: 107.1 | Q33: 108.5 | R33: 108.5 | S33: 108.5 | T33: 108.5 | U33: 108.5 | V33: 108.5
E34: CPIH: January - index | G34: index | J34: 97 | K34: 98.7 | L34: 99.2 | M34: 99.9 | N34: 101.8 | O34: 104.5 | P34: 106.4 | Q34: 108.3 | R34: 108.3 | S34: 108.3 | T34: 108.3 | U34: 108.3 | V34: 108.3
E35: CPIH: February - index | G35: index | J35: 97.5 | K35: 99.1 | L35: 99.5 | M35: 100.1 | N35: 102.4 | O35: 104.9 | P35: 106.8 | Q35: 108.6 | R35: 108.6 | S35: 108.6 | T35: 108.6 | U35: 108.6 | V35: 108.6
E36: CPIH: March - index | G36: index | J36: 97.8 | K36: 99.3 | L36: 99.6 | M36: 100.4 | N36: 102.7 | O36: 105.1 | P36: 107 | Q36: 108.6 | R36: 108.6 | S36: 108.6 | T36: 108.6 | U36: 108.6 | V36: 108.6
E38: CPIH: Financial year average - index | G38: index | J38: =AVERAGE(J25:J36) -> 96.58333333 | K38: 98.6 | L38: 99.725 | M38: 100.1666667 | N38: 101.5416667 | O38: 104.2166667 | P38: 106.4333333 | Q38: 108.2416667 | R38: 108.2416667 | S38: 108.2416667 | T38: 108.2416667 | U38: 108.2416667 | V38: =AVERAGE(V25:V36) -> 108.2416667
A41: RPI INDEXATION - ACTUAL
B43: RPI: Index value series
E44: =InpActive!E$52 -> Retail Price Index for April | F44: =InpActive!F$52 -> 0 | G44: =InpActive!G$52 -> index | H44: =InpActive!H$52 -> 0 | I44: =InpActive!I$52 -> 0 | J44: =InpActive!J$52 -> 242.5 | K44: =InpActive!K$52 -> 249.5 | L44: =InpActive!L$52 -> 255.7 | M44: =InpActive!M$52 -> 258 | N44: =InpActive!N$52 -> 261.4 | O44: =InpActive!O$52 -> 270.6 | P44: =InpActive!P$52 -> 279.7 | Q44: =InpActive!Q$52 -> 288.2 | R44: =InpActive!R$52 -> 0 | S44: =InpActive!S$52 -> 0 | T44: =InpActive!T$52 -> 0 | U44: =InpActive!U$52 -> 0 | V44: =InpActive!V$52 -> 0
E45: =InpActive!E$53 -> Retail Price Index for May | F45: =InpActive!F$53 -> 0 | G45: =InpActive!G$53 -> index | H45: =InpActive!H$53 -> 0 | I45: =InpActive!I$53 -> 0 | J45: =InpActive!J$53 -> 242.4 | K45: =InpActive!K$53 -> 250 | L45: =InpActive!L$53 -> 255.9 | M45: =InpActive!M$53 -> 258.5 | N45: =InpActive!N$53 -> 262.1 | O45: =InpActive!O$53 -> 271.7 | P45: =InpActive!P$53 -> 280.7 | Q45: =InpActive!Q$53 -> 289.2 | R45: =InpActive!R$53 -> 0 | S45: =InpActive!S$53 -> 0 | T45: =InpActive!T$53 -> 0 | U45: =InpActive!U$53 -> 0 | V45: =InpActive!V$53 -> 0
E46: =InpActive!E$54 -> Retail Price Index for June | F46: =InpActive!F$54 -> 0 | G46: =InpActive!G$54 -> index | H46: =InpActive!H$54 -> 0 | I46: =InpActive!I$54 -> 0 | J46: =InpActive!J$54 -> 241.8 | K46: =InpActive!K$54 -> 249.7 | L46: =InpActive!L$54 -> 256.3 | M46: =InpActive!M$54 -> 258.9 | N46: =InpActive!N$54 -> 263.1 | O46: =InpActive!O$54 -> 272.3 | P46: =InpActive!P$54 -> 281.5 | Q46: =InpActive!Q$54 -> 289.6 | R46: =InpActive!R$54 -> 0 | S46: =InpActive!S$54 -> 0 | T46: =InpActive!T$54 -> 0 | U46: =InpActive!U$54 -> 0 | V46: =InpActive!V$54 -> 0
E47: =InpActive!E$55 -> Retail Price Index for July | F47: =InpActive!F$55 -> 0 | G47: =InpActive!G$55 -> index | H47: =InpActive!H$55 -> 0 | I47: =InpActive!I$55 -> 0 | J47: =InpActive!J$55 -> 242.1 | K47: =InpActive!K$55 -> 249.7 | L47: =InpActive!L$55 -> 256 | M47: =InpActive!M$55 -> 258.6 | N47: =InpActive!N$55 -> 263.4 | O47: =InpActive!O$55 -> 272.9 | P47: =InpActive!P$55 -> 281.7 | Q47: =InpActive!Q$55 -> 289.5 | R47: =InpActive!R$55 -> 0 | S47: =InpActive!S$55 -> 0 | T47: =InpActive!T$55 -> 0 | U47: =InpActive!U$55 -> 0 | V47: =InpActive!V$55 -> 0
E48: =InpActive!E$56 -> Retail Price Index for August | F48: =InpActive!F$56 -> 0 | G48: =InpActive!G$56 -> index | H48: =InpActive!H$56 -> 0 | I48: =InpActive!I$56 -> 0 | J48: =InpActive!J$56 -> 243 | K48: =InpActive!K$56 -> 251 | L48: =InpActive!L$56 -> 257 | M48: =InpActive!M$56 -> 259.8 | N48: =InpActive!N$56 -> 264.4 | O48: =InpActive!O$56 -> 274.7 | P48: =InpActive!P$56 -> 284.2 | Q48: =InpActive!Q$56 -> 291.7 | R48: =InpActive!R$56 -> 0 | S48: =InpActive!S$56 -> 0 | T48: =InpActive!T$56 -> 0 | U48: =InpActive!U$56 -> 0 | V48: =InpActive!V$56 -> 0
E49: =InpActive!E$57 -> Retail Price Index for September | F49: =InpActive!F$57 -> 0 | G49: =InpActive!G$57 -> index | H49: =InpActive!H$57 -> 0 | I49: =InpActive!I$57 -> 0 | J49: =InpActive!J$57 -> 244.2 | K49: =InpActive!K$57 -> 251.9 | L49: =InpActive!L$57 -> 257.6 | M49: =InpActive!M$57 -> 259.6 | N49: =InpActive!N$57 -> 264.9 | O49: =InpActive!O$57 -> 275.1 | P49: =InpActive!P$57 -> 284.1 | Q49: =InpActive!Q$57 -> 291 | R49: =InpActive!R$57 -> 0 | S49: =InpActive!S$57 -> 0 | T49: =InpActive!T$57 -> 0 | U49: =InpActive!U$57 -> 0 | V49: =InpActive!V$57 -> 0
E50: =InpActive!E$58 -> Retail Price Index for October | F50: =InpActive!F$58 -> 0 | G50: =InpActive!G$58 -> index | H50: =InpActive!H$58 -> 0 | I50: =InpActive!I$58 -> 0 | J50: =InpActive!J$58 -> 245.6 | K50: =InpActive!K$58 -> 251.9 | L50: =InpActive!L$58 -> 257.7 | M50: =InpActive!M$58 -> 259.5 | N50: =InpActive!N$58 -> 264.8 | O50: =InpActive!O$58 -> 275.3 | P50: =InpActive!P$58 -> 284.5 | Q50: =InpActive!Q$58 -> 290.4 | R50: =InpActive!R$58 -> 0 | S50: =InpActive!S$58 -> 0 | T50: =InpActive!T$58 -> 0 | U50: =InpActive!U$58 -> 0 | V50: =InpActive!V$58 -> 0
E51: =InpActive!E$59 -> Retail Price Index for November | F51: =InpActive!F$59 -> 0 | G51: =InpActive!G$59 -> index | H51: =InpActive!H$59 -> 0 | I51: =InpActive!I$59 -> 0 | J51: =InpActive!J$59 -> 245.6 | K51: =InpActive!K$59 -> 252.1 | L51: =InpActive!L$59 -> 257.1 | M51: =InpActive!M$59 -> 259.8 | N51: =InpActive!N$59 -> 265.5 | O51: =InpActive!O$59 -> 275.8 | P51: =InpActive!P$59 -> 284.6 | Q51: =InpActive!Q$59 -> 291 | R51: =InpActive!R$59 -> 0 | S51: =InpActive!S$59 -> 0 | T51: =InpActive!T$59 -> 0 | U51: =InpActive!U$59 -> 0 | V51: =InpActive!V$59 -> 0
E52: =InpActive!E$60 -> Retail Price Index for December | F52: =InpActive!F$60 -> 0 | G52: =InpActive!G$60 -> index | H52: =InpActive!H$60 -> 0 | I52: =InpActive!I$60 -> 0 | J52: =InpActive!J$60 -> 246.8 | K52: =InpActive!K$60 -> 253.4 | L52: =InpActive!L$60 -> 257.5 | M52: =InpActive!M$60 -> 260.6 | N52: =InpActive!N$60 -> 267.1 | O52: =InpActive!O$60 -> 278.1 | P52: =InpActive!P$60 -> 285.6 | Q52: =InpActive!Q$60 -> 291.9 | R52: =InpActive!R$60 -> 0 | S52: =InpActive!S$60 -> 0 | T52: =InpActive!T$60 -> 0 | U52: =InpActive!U$60 -> 0 | V52: =InpActive!V$60 -> 0
E53: =InpActive!E$61 -> Retail Price Index for January | F53: =InpActive!F$61 -> 0 | G53: =InpActive!G$61 -> index | H53: =InpActive!H$61 -> 0 | I53: =InpActive!I$61 -> 0 | J53: =InpActive!J$61 -> 245.8 | K53: =InpActive!K$61 -> 252.6 | L53: =InpActive!L$61 -> 255.4 | M53: =InpActive!M$61 -> 258.8 | N53: =InpActive!N$61 -> 265.5 | O53: =InpActive!O$61 -> 276 | P53: =InpActive!P$61 -> 283 | Q53: =InpActive!Q$61 -> 290.6 | R53: =InpActive!R$61 -> 0 | S53: =InpActive!S$61 -> 0 | T53: =InpActive!T$61 -> 0 | U53: =InpActive!U$61 -> 0 | V53: =InpActive!V$61 -> 0
E54: =InpActive!E$62 -> Retail Price Index for February | F54: =InpActive!F$62 -> 0 | G54: =InpActive!G$62 -> index | H54: =InpActive!H$62 -> 0 | I54: =InpActive!I$62 -> 0 | J54: =InpActive!J$62 -> 247.6 | K54: =InpActive!K$62 -> 254.2 | L54: =InpActive!L$62 -> 256.7 | M54: =InpActive!M$62 -> 260 | N54: =InpActive!N$62 -> 268.4 | O54: =InpActive!O$62 -> 278.1 | P54: =InpActive!P$62 -> 285 | Q54: =InpActive!Q$62 -> 292 | R54: =InpActive!R$62 -> 0 | S54: =InpActive!S$62 -> 0 | T54: =InpActive!T$62 -> 0 | U54: =InpActive!U$62 -> 0 | V54: =InpActive!V$62 -> 0
E55: =InpActive!E$63 -> Retail Price Index for March | F55: =InpActive!F$63 -> 0 | G55: =InpActive!G$63 -> index | H55: =InpActive!H$63 -> 0 | I55: =InpActive!I$63 -> 0 | J55: =InpActive!J$63 -> 248.7 | K55: =InpActive!K$63 -> 254.8 | L55: =InpActive!L$63 -> 257.1 | M55: =InpActive!M$63 -> 261.1 | N55: =InpActive!N$63 -> 269.3 | O55: =InpActive!O$63 -> 278.3 | P55: =InpActive!P$63 -> 285.1 | Q55: =InpActive!Q$63 -> 292.6 | R55: =InpActive!R$63 -> 0 | S55: =InpActive!S$63 -> 0 | T55: =InpActive!T$63 -> 0 | U55: =InpActive!U$63 -> 0 | V55: =InpActive!V$63 -> 0
E57: =InpActive!E$65 -> RPI: Assumed percentage increase for unpopulated monthly values | F57: =InpActive!F$65 -> 0 | G57: =InpActive!G$65 -> % | H57: =InpActive!H$65 -> 0 | I57: =InpActive!I$65 -> 0 | J57: =InpActive!J$65 -> 0 | K57: =InpActive!K$65 -> 0 | L57: =InpActive!L$65 -> 0 | M57: =InpActive!M$65 -> 0 | N57: =InpActive!N$65 -> 0 | O57: =InpActive!O$65 -> 0 | P57: =InpActive!P$65 -> 0 | Q57: =InpActive!Q$65 -> 0 | R57: =InpActive!R$65 -> 0 | S57: =InpActive!S$65 -> 0 | T57: =InpActive!T$65 -> 0 | U57: =InpActive!U$65 -> 0 | V57: =InpActive!V$65 -> 0
E59: RPI: April - index | G59: index | J59: =IF(J44 > 0, J44, I59 * (1 + J$57)) -> 242.5 | K59: =IF(K44 > 0, K44, J59 * (1 + K$57)) -> 249.5 | L59: 255.7 | M59: 258 | N59: 261.4 | O59: 270.6 | P59: 279.7 | Q59: 288.2 | R59: 288.2 | S59: 288.2 | T59: 288.2 | U59: 288.2 | V59: =IF(V44 > 0, V44, U59 * (1 + V$57)) -> 288.2
E60: RPI: May - index | G60: index | J60: =IF(J45 > 0, J45, I60 * (1 + J$57)) -> 242.4 | K60: 250 | L60: 255.9 | M60: 258.5 | N60: 262.1 | O60: 271.7 | P60: 280.7 | Q60: 289.2 | R60: 289.2 | S60: 289.2 | T60: 289.2 | U60: 289.2 | V60: 289.2
E61: RPI: June - index | G61: index | J61: =IF(J46 > 0, J46, I61 * (1 + J$57)) -> 241.8 | K61: 249.7 | L61: 256.3 | M61: 258.9 | N61: 263.1 | O61: 272.3 | P61: 281.5 | Q61: 289.6 | R61: 289.6 | S61: 289.6 | T61: 289.6 | U61: 289.6 | V61: 289.6
E62: RPI: July - index | G62: index | J62: =IF(J47 > 0, J47, I62 * (1 + J$57)) -> 242.1 | K62: 249.7 | L62: 256 | M62: 258.6 | N62: 263.4 | O62: 272.9 | P62: 281.7 | Q62: 289.5 | R62: 289.5 | S62: 289.5 | T62: 289.5 | U62: 289.5 | V62: 289.5
E63: RPI: August - index | G63: index | J63: =IF(J48 > 0, J48, I63 * (1 + J$57)) -> 243 | K63: 251 | L63: 257 | M63: 259.8 | N63: 264.4 | O63: 274.7 | P63: 284.2 | Q63: 291.7 | R63: 291.7 | S63: 291.7 | T63: 291.7 | U63: 291.7 | V63: 291.7
E64: RPI: September- index | G64: index | J64: =IF(J49 > 0, J49, I64 * (1 + J$57)) -> 244.2 | K64: 251.9 | L64: 257.6 | M64: 259.6 | N64: 264.9 | O64: 275.1 | P64: 284.1 | Q64: 291 | R64: 291 | S64: 291 | T64: 291 | U64: 291 | V64: 291
E65: RPI: October - index | G65: index | J65: =IF(J50 > 0, J50, I65 * (1 + J$57)) -> 245.6 | K65: 251.9 | L65: 257.7 | M65: 259.5 | N65: 264.8 | O65: 275.3 | P65: 284.5 | Q65: 290.4 | R65: 290.4 | S65: 290.4 | T65: 290.4 | U65: 290.4 | V65: 290.4
E66: RPI: November - index | G66: index | J66: =IF(J51 > 0, J51, I66 * (1 + J$57)) -> 245.6 | K66: 252.1 | L66: 257.1 | M66: 259.8 | N66: 265.5 | O66: 275.8 | P66: 284.6 | Q66: 291 | R66: 291 | S66: 291 | T66: 291 | U66: 291 | V66: =IF(V51 > 0, V51, U66 * (1 + V$57)) -> 291
E67: RPI: December - index | G67: index | J67: =IF(J52 > 0, J52, I67 * (1 + J$57)) -> 246.8 | K67: 253.4 | L67: 257.5 | M67: 260.6 | N67: 267.1 | O67: 278.1 | P67: 285.6 | Q67: 291.9 | R67: 291.9 | S67: 291.9 | T67: 291.9 | U67: 291.9 | V67: 291.9
E68: RPI: January - index | G68: index | J68: =IF(J53 > 0, J53, I68 * (1 + J$57)) -> 245.8 | K68: 252.6 | L68: 255.4 | M68: 258.8 | N68: 265.5 | O68: 276 | P68: 283 | Q68: 290.6 | R68: 290.6 | S68: 290.6 | T68: 290.6 | U68: 290.6 | V68: 290.6
E69: RPI: February - index | G69: index | J69: =IF(J54 > 0, J54, I69 * (1 + J$57)) -> 247.6 | K69: 254.2 | L69: 256.7 | M69: 260 | N69: 268.4 | O69: 278.1 | P69: 285 | Q69: 292 | R69: 292 | S69: 292 | T69: 292 | U69: 292 | V69: 292
E70: RPI: March - index | G70: index | J70: =IF(J55 > 0, J55, I70 * (1 + J$57)) -> 248.7 | K70: 254.8 | L70: 257.1 | M70: 261.1 | N70: 269.3 | O70: 278.3 | P70: 285.1 | Q70: 292.6 | R70: 292.6 | S70: 292.6 | T70: 292.6 | U70: 292.6 | V70: 292.6
E72: RPI: Financial year average - index | G72: index | J72: =AVERAGE(J59:J70) -> 244.675 | K72: 251.7333333 | L72: 256.6666667 | M72: 259.4333333 | N72: 264.9916667 | O72: 274.9083333 | P72: 283.3083333 | Q72: 290.6416667 | R72: 290.6416667 | S72: 290.6416667 | T72: 290.6416667 | U72: 290.6416667 | V72: =AVERAGE(V59:V70) -> 290.6416667
A75: INFLATION - ACTUAL
B77: Inflation of 2013 base prices FYA - RPI
E78: =InpActive!E$69 -> Year reference for FYA base price 1 | F78: =InpActive!F$69 -> 2013 | G78: =InpActive!G$69 -> year #
E79: =InpActive!E$74 -> Year reference for FYE end price | F79: =InpActive!F$74 -> 2020 | G79: =InpActive!G$74 -> year #
E80: =E$72 -> RPI: Financial year average - index | F80: 0 | G80: index | H80: 0 | I80: 0 | J80: 244.675 | K80: 251.7333333 | L80: 256.6666667 | M80: 259.4333333 | N80: 264.9916667 | O80: 274.9083333 | P80: 283.3083333 | Q80: 290.6416667 | R80: 290.6416667 | S80: 290.6416667 | T80: 290.6416667 | U80: 290.6416667 | V80: 290.6416667
E81: =E$70 -> RPI: March - index | F81: 0 | G81: index | H81: 0 | I81: 0 | J81: 248.7 | K81: 254.8 | L81: 257.1 | M81: 261.1 | N81: 269.3 | O81: 278.3 | P81: 285.1 | Q81: 292.6 | R81: 292.6 | S81: 292.6 | T81: 292.6 | U81: 292.6 | V81: 292.6
E82: ="RPI inflate from " & F78 & " FYA to " & F79 & " FYE - Blind Year" -> RPI inflate from 2013 FYA to 2020 FYE - Blind Year | F82: =INDEX($J81:$U81, 1, MATCH($F79,$J$4:$U$4)) / INDEX($J80:$U80, 1, MATCH($F78,$J$4:$U$4)) -> 1.195872075 | G82: factor
B84: Inflation of 2018 base prices FYA - RPI
E85: =InpActive!E$70 -> Year reference for FYA base price 2 | F85: =InpActive!F$70 -> 2018 | G85: =InpActive!G$70 -> year #
E86: =InpActive!E$74 -> Year reference for FYE end price | F86: =InpActive!F$74 -> 2020 | G86: =InpActive!G$74 -> year #
E87: =E$72 -> RPI: Financial year average - index | F87: 0 | G87: index | H87: 0 | I87: 0 | J87: 244.675 | K87: 251.7333333 | L87: 256.6666667 | M87: 259.4333333 | N87: 264.9916667 | O87: 274.9083333 | P87: 283.3083333 | Q87: 290.6416667 | R87: 290.6416667 | S87: 290.6416667 | T87: 290.6416667 | U87: 290.6416667 | V87: 290.6416667
E88: =E$70 -> RPI: March - index | F88: 0 | G88: index | H88: 0 | I88: 0 | J88: 248.7 | K88: 254.8 | L88: 257.1 | M88: 261.1 | N88: 269.3 | O88: 278.3 | P88: 285.1 | Q88: 292.6 | R88: 292.6 | S88: 292.6 | T88: 292.6 | U88: 292.6 | V88: 292.6
E89: ="RPI inflate from " & F85 & " FYA to " & F86 & " FYE - Blind Year" -> RPI inflate from 2018 FYA to 2020 FYE - Blind Year | F89: =INDEX($J88:$U88, 1, MATCH($F86,$J$4:$U$4)) / INDEX($J87:$U87, 1, MATCH($F85,$J$4:$U$4)) -> 1.064354785 | G89: factor
B91: ="Inflation from " & F92 & " FYE to " & F93 & " FYE - RPI" -> Inflation from 2020 FYE to 2020 FYE - RPI
E92: =InpActive!E73 -> Year reference for FYE base price 3 | F92: =InpActive!F73 -> 2020 | G92: =InpActive!G73 -> year #
E93: =InpActive!E74 -> Year reference for FYE end price | F93: =InpActive!F74 -> 2020 | G93: =InpActive!G74 -> year #
E94: =Indexation!E$70 -> RPI: March - index | F94: =Indexation!F$70 -> 0 | G94: =Indexation!G$70 -> index | H94: =Indexation!H$70 -> 0 | I94: =Indexation!I$70 -> 0 | J94: =Indexation!J$70 -> 248.7 | K94: =Indexation!K$70 -> 254.8 | L94: =Indexation!L$70 -> 257.1 | M94: =Indexation!M$70 -> 261.1 | N94: =Indexation!N$70 -> 269.3 | O94: =Indexation!O$70 -> 278.3 | P94: =Indexation!P$70 -> 285.1 | Q94: =Indexation!Q$70 -> 292.6 | R94: =Indexation!R$70 -> 292.6 | S94: =Indexation!S$70 -> 292.6 | T94: =Indexation!T$70 -> 292.6 | U94: =Indexation!U$70 -> 292.6 | V94: =Indexation!V$70 -> 292.6
E95: ="RPI inflate from " & F92 & " FYE to " & F93 & " FYE - Blind Year" -> RPI inflate from 2020 FYE to 2020 FYE - Blind Year | F95: =INDEX($J94:$V94, 1, MATCH($F93,Indexation!$J$4:$V$4)) / INDEX($J94:$V94, 1, MATCH($F92,Indexation!$J$4:$V$4)) -> 1 | G95: factor
B97: Inflation of 2018 base prices FYE - RPI
E98: =InpActive!E$71 -> Year reference for FYE base price 1 | F98: =InpActive!F$71 -> 2018 | G98: =InpActive!G$71 -> year #
E99: =InpActive!E$74 -> Year reference for FYE end price | F99: =InpActive!F$74 -> 2020 | G99: =InpActive!G$74 -> year #
E100: =E$70 -> RPI: March - index | F100: 0 | G100: index | H100: 0 | I100: 0 | J100: 248.7 | K100: 254.8 | L100: 257.1 | M100: 261.1 | N100: 269.3 | O100: 278.3 | P100: 285.1 | Q100: 292.6 | R100: 292.6 | S100: 292.6 | T100: 292.6 | U100: 292.6 | V100: 292.6
E101: ="RPI inflate from " & F98 & " FYE to " & F99 & " FYE - Blind Year" -> RPI inflate from 2018 FYE to 2020 FYE - Blind Year | F101: =INDEX($J100:$U100, 1, MATCH($F99,$J$4:$U$4)) / INDEX($J100:$U100, 1, MATCH($F98,$J$4:$U$4)) -> 1.051383399 | G101: factor
B103: ="Inflation from November " & F104 & " FYE to " & F105 & " FYE - RPI" -> Inflation from November 2019 FYE to 2020 FYE - RPI
E104: =InpActive!E72 -> Year reference for FYE base price 2 | F104: =InpActive!F72 -> 2019 | G104: =InpActive!G72 -> year #
E105: =InpActive!E74 -> Year reference for FYE end price | F105: =InpActive!F74 -> 2020 | G105: =InpActive!G74 -> year #
E106: =Indexation!E$66 -> RPI: November - index | F106: =Indexation!F$66 -> 0 | G106: =Indexation!G$66 -> index | H106: =Indexation!H$66 -> 0 | I106: =Indexation!I$66 -> 0 | J106: =Indexation!J$66 -> 245.6 | K106: =Indexation!K$66 -> 252.1 | L106: =Indexation!L$66 -> 257.1 | M106: =Indexation!M$66 -> 259.8 | N106: =Indexation!N$66 -> 265.5 | O106: =Indexation!O$66 -> 275.8 | P106: =Indexation!P$66 -> 284.6 | Q106: =Indexation!Q$66 -> 291 | R106: =Indexation!R$66 -> 291 | S106: =Indexation!S$66 -> 291 | T106: =Indexation!T$66 -> 291 | U106: =Indexation!U$66 -> 291 | V106: =Indexation!V$66 -> 291
E107: =Indexation!E$70 -> RPI: March - index | F107: =Indexation!F$70 -> 0 | G107: =Indexation!G$70 -> index | H107: =Indexation!H$70 -> 0 | I107: =Indexation!I$70 -> 0 | J107: =Indexation!J$70 -> 248.7 | K107: =Indexation!K$70 -> 254.8 | L107: =Indexation!L$70 -> 257.1 | M107: =Indexation!M$70 -> 261.1 | N107: =Indexation!N$70 -> 269.3 | O107: =Indexation!O$70 -> 278.3 | P107: =Indexation!P$70 -> 285.1 | Q107: =Indexation!Q$70 -> 292.6 | R107: =Indexation!R$70 -> 292.6 | S107: =Indexation!S$70 -> 292.6 | T107: =Indexation!T$70 -> 292.6 | U107: =Indexation!U$70 -> 292.6 | V107: =Indexation!V$70 -> 292.6
E108: ="RPI inflate from November " & Indexation!F104 & " FYE to " & Indexation!F105 & " FYE - Blind Year" -> RPI inflate from November 2019 FYE to 2020 FYE - Blind Year | F108: =INDEX(Indexation!$J107:$V107, 1, MATCH(Indexation!$F105,Indexation!$J$4:$V$4)) / INDEX(Indexation!$J106:$V106, 1, MATCH(Indexation!$F104,Indexation!$J$4:$V$4)) -> 1.028109628 | G108: factor
A111: DEFLATION - ACTUAL
E113: =InpActive!E$78 -> Year reference for FYE base price | F113: =InpActive!F$78 -> 2020 | G113: =InpActive!G$78 -> year #
E114: =InpActive!E$79 -> Year reference for FYA end price | F114: =InpActive!F$79 -> 2018 | G114: =InpActive!G$79 -> year #
E115: =InpActive!E$80 -> Year reference for RFI 'base year 2019-20 prices' | F115: =InpActive!F$80 -> 2019 | G115: =InpActive!G$80 -> year #
E116: =InpActive!E$81 -> Year reference for FYE base price - IFRS 16 and Other | F116: =InpActive!F$81 -> 2018 | G116: =InpActive!G$81 -> year #
E117: =E$36 -> CPIH: March - index | F117: =F$36 -> 0 | G117: index | H117: 0 | I117: 0 | J117: 97.8 | K117: 99.3 | L117: 99.6 | M117: 100.4 | N117: 102.7 | O117: 105.1 | P117: 107 | Q117: 108.6 | R117: 108.6 | S117: 108.6 | T117: 108.6 | U117: 108.6 | V117: 108.6
E118: =E$32 -> CPIH: November - index | F118: 0 | G118: index | H118: 0 | I118: 0 | J118: 97 | K118: 98.8 | L118: 99.9 | M118: 100.3 | N118: 101.8 | O118: 104.7 | P118: 106.9 | Q118: 108.5 | R118: 108.5 | S118: 108.5 | T118: 108.5 | U118: 108.5 | V118: 108.5
E119: =E$38 -> CPIH: Financial year average - index | F119: 0 | G119: index | H119: 0 | I119: 0 | J119: 96.58333333 | K119: 98.6 | L119: 99.725 | M119: 100.1666667 | N119: 101.5416667 | O119: 104.2166667 | P119: 106.4333333 | Q119: 108.2416667 | R119: 108.2416667 | S119: 108.2416667 | T119: 108.2416667 | U119: 108.2416667 | V119: 108.2416667
E120: ="CPIH deflate from " & F113 & " FYE to " & F114 & " FYA - Blind Year" -> CPIH deflate from 2020 FYE to 2018 FYA - Blind Year | F120: =INDEX($J119:$U119, 1, MATCH($F114,$J$4:$U$4)) / INDEX($J117:$U117, 1, MATCH($F113,$J$4:$U$4)) -> 0.9596378146 | G120: factor
E121: ="CPIH deflate from " & F113 & " FYE to " & F114 & " FYE - Blind Year" -> CPIH deflate from 2020 FYE to 2018 FYE - Blind Year | F121: =INDEX($J117:$U117, 1, MATCH($F114,$J$4:$U$4)) / INDEX($J117:$U117, 1, MATCH($F113,$J$4:$U$4)) -> 0.967771639 | G121: factor
E122: ="CPIH deflate from " & F$113 & " FYE to " & F$113 & " FYA - Blind Year" -> CPIH deflate from 2020 FYE to 2020 FYA - Blind Year | F122: =INDEX($J$119:$U$119, 1, MATCH($F$113,$J$4:$U$4)) / INDEX($J$117:$U$117, 1, MATCH($F$113,$J$4:$U$4)) -> 0.9967004297 | G122: factor
E123: CPIH deflate from 2018 FYE to 2018 FYA - IFRS 16 and Other - Blind Year | F123: =INDEX($J119:$U119, 1, MATCH($F114,$J$4:$U$4)) / INDEX($J117:$U117, 1, MATCH($F116,$J$4:$U$4)) -> 0.9915953061 | G123: factor
A126: CPIH INDEXATION - FORECAST
B128: CPIH: Index value series
E129: =InpActive!E87 -> Consumer Price Index for April | F129: =InpActive!F87 -> 0 | G129: =InpActive!G87 -> index | H129: =InpActive!H87 -> 0 | I129: =InpActive!I87 -> 0 | J129: =InpActive!J87 -> 95.9 | K129: =InpActive!K87 -> 98 | L129: =InpActive!L87 -> 99.6 | M129: =InpActive!M87 -> 99.9 | N129: =InpActive!N87 -> 100.6 | O129: =InpActive!O87 -> 103.2 | P129: =InpActive!P87 -> 105.5 | Q129: =InpActive!Q87 -> 107.6 | R129: =InpActive!R87 -> 0 | S129: =InpActive!S87 -> 0 | T129: =InpActive!T87 -> 0 | U129: =InpActive!U87 -> 0 | V129: =InpActive!V87 -> 0
E130: =InpActive!E88 -> Consumer Price Index for May | F130: =InpActive!F88 -> 0 | G130: =InpActive!G88 -> index | H130: =InpActive!H88 -> 0 | I130: =InpActive!I88 -> 0 | J130: =InpActive!J88 -> 95.9 | K130: =InpActive!K88 -> 98.2 | L130: =InpActive!L88 -> 99.6 | M130: =InpActive!M88 -> 100.1 | N130: =InpActive!N88 -> 100.8 | O130: =InpActive!O88 -> 103.5 | P130: =InpActive!P88 -> 105.9 | Q130: =InpActive!Q88 -> 107.9 | R130: =InpActive!R88 -> 0 | S130: =InpActive!S88 -> 0 | T130: =InpActive!T88 -> 0 | U130: =InpActive!U88 -> 0 | V130: =InpActive!V88 -> 0
E131: =InpActive!E89 -> Consumer Price Index for June | F131: =InpActive!F89 -> 0 | G131: =InpActive!G89 -> index | H131: =InpActive!H89 -> 0 | I131: =InpActive!I89 -> 0 | J131: =InpActive!J89 -> 95.6 | K131: =InpActive!K89 -> 98 | L131: =InpActive!L89 -> 99.8 | M131: =InpActive!M89 -> 100.1 | N131: =InpActive!N89 -> 101 | O131: =InpActive!O89 -> 103.5 | P131: =InpActive!P89 -> 105.9 | Q131: =InpActive!Q89 -> 108 | R131: =InpActive!R89 -> 0 | S131: =InpActive!S89 -> 0 | T131: =InpActive!T89 -> 0 | U131: =InpActive!U89 -> 0 | V131: =InpActive!V89 -> 0
E132: =InpActive!E90 -> Consumer Price Index for July | F132: =InpActive!F90 -> 0 | G132: =InpActive!G90 -> index | H132: =InpActive!H90 -> 0 | I132: =InpActive!I90 -> 0 | J132: =InpActive!J90 -> 95.7 | K132: =InpActive!K90 -> 98 | L132: =InpActive!L90 -> 99.6 | M132: =InpActive!M90 -> 100 | N132: =InpActive!N90 -> 100.9 | O132: =InpActive!O90 -> 103.5 | P132: =InpActive!P90 -> 105.9 | Q132: =InpActive!Q90 -> 108 | R132: =InpActive!R90 -> 0 | S132: =InpActive!S90 -> 0 | T132: =InpActive!T90 -> 0 | U132: =InpActive!U90 -> 0 | V132: =InpActive!V90 -> 0
E133: =InpActive!E91 -> Consumer Price Index for August | F133: =InpActive!F91 -> 0 | G133: =InpActive!G91 -> index | H133: =InpActive!H91 -> 0 | I133: =InpActive!I91 -> 0 | J133: =InpActive!J91 -> 96.1 | K133: =InpActive!K91 -> 98.4 | L133: =InpActive!L91 -> 99.9 | M133: =InpActive!M91 -> 100.3 | N133: =InpActive!N91 -> 101.2 | O133: =InpActive!O91 -> 104 | P133: =InpActive!P91 -> 106.5 | Q133: =InpActive!Q91 -> 108.6 | R133: =InpActive!R91 -> 0 | S133: =InpActive!S91 -> 0 | T133: =InpActive!T91 -> 0 | U133: =InpActive!U91 -> 0 | V133: =InpActive!V91 -> 0
E134: =InpActive!E92 -> Consumer Price Index for September | F134: =InpActive!F92 -> 0 | G134: =InpActive!G92 -> index | H134: =InpActive!H92 -> 0 | I134: =InpActive!I92 -> 0 | J134: =InpActive!J92 -> 96.4 | K134: =InpActive!K92 -> 98.7 | L134: =InpActive!L92 -> 100 | M134: =InpActive!M92 -> 100.2 | N134: =InpActive!N92 -> 101.5 | O134: =InpActive!O92 -> 104.3 | P134: =InpActive!P92 -> 106.6 | Q134: =InpActive!Q92 -> 108.7 | R134: =InpActive!R92 -> 0 | S134: =InpActive!S92 -> 0 | T134: =InpActive!T92 -> 0 | U134: =InpActive!U92 -> 0 | V134: =InpActive!V92 -> 0
E135: =InpActive!E93 -> Consumer Price Index for October | F135: =InpActive!F93 -> 0 | G135: =InpActive!G93 -> index | H135: =InpActive!H93 -> 0 | I135: =InpActive!I93 -> 0 | J135: =InpActive!J93 -> 96.8 | K135: =InpActive!K93 -> 98.8 | L135: =InpActive!L93 -> 100.1 | M135: =InpActive!M93 -> 100.3 | N135: =InpActive!N93 -> 101.6 | O135: =InpActive!O93 -> 104.4 | P135: =InpActive!P93 -> 106.7 | Q135: =InpActive!Q93 -> 108.8 | R135: =InpActive!R93 -> 0 | S135: =InpActive!S93 -> 0 | T135: =InpActive!T93 -> 0 | U135: =InpActive!U93 -> 0 | V135: =InpActive!V93 -> 0
E136: =InpActive!E94 -> Consumer Price Index for November | F136: =InpActive!F94 -> 0 | G136: =InpActive!G94 -> index | H136: =InpActive!H94 -> 0 | I136: =InpActive!I94 -> 0 | J136: =InpActive!J94 -> 97 | K136: =InpActive!K94 -> 98.8 | L136: =InpActive!L94 -> 99.9 | M136: =InpActive!M94 -> 100.3 | N136: =InpActive!N94 -> 101.8 | O136: =InpActive!O94 -> 104.7 | P136: =InpActive!P94 -> 106.9 | Q136: =InpActive!Q94 -> 109 | R136: =InpActive!R94 -> 0 | S136: =InpActive!S94 -> 0 | T136: =InpActive!T94 -> 0 | U136: =InpActive!U94 -> 0 | V136: =InpActive!V94 -> 0
E137: =InpActive!E95 -> Consumer Price Index for December | F137: =InpActive!F95 -> 0 | G137: =InpActive!G95 -> index | H137: =InpActive!H95 -> 0 | I137: =InpActive!I95 -> 0 | J137: =InpActive!J95 -> 97.3 | K137: =InpActive!K95 -> 99.2 | L137: =InpActive!L95 -> 99.9 | M137: =InpActive!M95 -> 100.4 | N137: =InpActive!N95 -> 102.2 | O137: =InpActive!O95 -> 105 | P137: =InpActive!P95 -> 107.1 | Q137: =InpActive!Q95 -> 109.2 | R137: =InpActive!R95 -> 0 | S137: =InpActive!S95 -> 0 | T137: =InpActive!T95 -> 0 | U137: =InpActive!U95 -> 0 | V137: =InpActive!V95 -> 0
E138: =InpActive!E96 -> Consumer Price Index for January | F138: =InpActive!F96 -> 0 | G138: =InpActive!G96 -> index | H138: =InpActive!H96 -> 0 | I138: =InpActive!I96 -> 0 | J138: =InpActive!J96 -> 97 | K138: =InpActive!K96 -> 98.7 | L138: =InpActive!L96 -> 99.2 | M138: =InpActive!M96 -> 99.9 | N138: =InpActive!N96 -> 101.8 | O138: =InpActive!O96 -> 104.5 | P138: =InpActive!P96 -> 106.4 | Q138: =InpActive!Q96 -> 108.5 | R138: =InpActive!R96 -> 0 | S138: =InpActive!S96 -> 0 | T138: =InpActive!T96 -> 0 | U138: =InpActive!U96 -> 0 | V138: =InpActive!V96 -> 0
E139: =InpActive!E97 -> Consumer Price Index for February | F139: =InpActive!F97 -> 0 | G139: =InpActive!G97 -> index | H139: =InpActive!H97 -> 0 | I139: =InpActive!I97 -> 0 | J139: =InpActive!J97 -> 97.5 | K139: =InpActive!K97 -> 99.1 | L139: =InpActive!L97 -> 99.5 | M139: =InpActive!M97 -> 100.1 | N139: =InpActive!N97 -> 102.4 | O139: =InpActive!O97 -> 104.9 | P139: =InpActive!P97 -> 106.8 | Q139: =InpActive!Q97 -> 109.1 | R139: =InpActive!R97 -> 0 | S139: =InpActive!S97 -> 0 | T139: =InpActive!T97 -> 0 | U139: =InpActive!U97 -> 0 | V139: =InpActive!V97 -> 0
E140: =InpActive!E98 -> Consumer Price Index for March | F140: =InpActive!F98 -> 0 | G140: =InpActive!G98 -> index | H140: =InpActive!H98 -> 0 | I140: =InpActive!I98 -> 0 | J140: =InpActive!J98 -> 97.8 | K140: =InpActive!K98 -> 99.3 | L140: =InpActive!L98 -> 99.6 | M140: =InpActive!M98 -> 100.4 | N140: =InpActive!N98 -> 102.7 | O140: =InpActive!O98 -> 105.1 | P140: =InpActive!P98 -> 107 | Q140: =InpActive!Q98 -> 109.3 | R140: =InpActive!R98 -> 0 | S140: =InpActive!S98 -> 0 | T140: =InpActive!T98 -> 0 | U140: =InpActive!U98 -> 0 | V140: =InpActive!V98 -> 0
E142: =InpActive!E$100 -> CPIH: Assumed percentage increase for unpopulated monthly values | F142: =InpActive!F$100 -> 0 | G142: =InpActive!G$100 -> % | H142: =InpActive!H$100 -> 0 | I142: =InpActive!I$100 -> 0 | J142: =InpActive!J$100 -> 0 | K142: =InpActive!K$100 -> 0 | L142: =InpActive!L$100 -> 0 | M142: =InpActive!M$100 -> 0 | N142: =InpActive!N$100 -> 0 | O142: =InpActive!O$100 -> 0 | P142: =InpActive!P$100 -> 0 | Q142: =InpActive!Q$100 -> 0 | R142: =InpActive!R$100 -> 0 | S142: =InpActive!S$100 -> 0 | T142: =InpActive!T$100 -> 0 | U142: =InpActive!U$100 -> 0 | V142: =InpActive!V$100 -> 0
E144: CPIH: April - index | G144: index | J144: =IF(J129 > 0, J129, I144 * (1 + J$142)) -> 95.9 | K144: 98 | L144: 99.6 | M144: 99.9 | N144: 100.6 | O144: 103.2 | P144: 105.5 | Q144: 107.6 | R144: 107.6 | S144: 107.6 | T144: 107.6 | U144: 107.6 | V144: 107.6
E145: CPIH: May - index | G145: index | J145: =IF(J130 > 0, J130, I145 * (1 + J$142)) -> 95.9 | K145: 98.2 | L145: 99.6 | M145: 100.1 | N145: 100.8 | O145: 103.5 | P145: 105.9 | Q145: 107.9 | R145: 107.9 | S145: 107.9 | T145: 107.9 | U145: 107.9 | V145: 107.9
E146: CPIH: June - index | G146: index | J146: =IF(J131 > 0, J131, I146 * (1 + J$142)) -> 95.6 | K146: 98 | L146: 99.8 | M146: 100.1 | N146: 101 | O146: 103.5 | P146: 105.9 | Q146: 108 | R146: 108 | S146: 108 | T146: 108 | U146: 108 | V146: 108
E147: CPIH: July - index | G147: index | J147: =IF(J132 > 0, J132, I147 * (1 + J$142)) -> 95.7 | K147: 98 | L147: 99.6 | M147: 100 | N147: 100.9 | O147: 103.5 | P147: 105.9 | Q147: 108 | R147: 108 | S147: 108 | T147: 108 | U147: 108 | V147: 108
E148: CPIH: August - index | G148: index | J148: =IF(J133 > 0, J133, I148 * (1 + J$142)) -> 96.1 | K148: 98.4 | L148: 99.9 | M148: 100.3 | N148: 101.2 | O148: 104 | P148: 106.5 | Q148: 108.6 | R148: 108.6 | S148: 108.6 | T148: 108.6 | U148: 108.6 | V148: 108.6
E149: CPIH: September- index | G149: index | J149: =IF(J134 > 0, J134, I149 * (1 + J$142)) -> 96.4 | K149: 98.7 | L149: 100 | M149: 100.2 | N149: 101.5 | O149: 104.3 | P149: 106.6 | Q149: 108.7 | R149: 108.7 | S149: 108.7 | T149: 108.7 | U149: 108.7 | V149: 108.7
E150: CPIH: October - index | G150: index | J150: =IF(J135 > 0, J135, I150 * (1 + J$142)) -> 96.8 | K150: 98.8 | L150: 100.1 | M150: 100.3 | N150: 101.6 | O150: 104.4 | P150: 106.7 | Q150: 108.8 | R150: 108.8 | S150: 108.8 | T150: 108.8 | U150: 108.8 | V150: 108.8
E151: CPIH: November - index | G151: index | J151: =IF(J136 > 0, J136, I151 * (1 + J$142)) -> 97 | K151: 98.8 | L151: 99.9 | M151: 100.3 | N151: 101.8 | O151: 104.7 | P151: 106.9 | Q151: 109 | R151: 109 | S151: 109 | T151: 109 | U151: 109 | V151: 109
E152: CPIH: December - index | G152: index | J152: =IF(J137 > 0, J137, I152 * (1 + J$142)) -> 97.3 | K152: 99.2 | L152: 99.9 | M152: 100.4 | N152: 102.2 | O152: 105 | P152: 107.1 | Q152: 109.2 | R152: 109.2 | S152: 109.2 | T152: 109.2 | U152: 109.2 | V152: 109.2
E153: CPIH: January - index | G153: index | J153: =IF(J138 > 0, J138, I153 * (1 + J$142)) -> 97 | K153: 98.7 | L153: 99.2 | M153: 99.9 | N153: 101.8 | O153: 104.5 | P153: 106.4 | Q153: 108.5 | R153: 108.5 | S153: 108.5 | T153: 108.5 | U153: 108.5 | V153: 108.5
E154: CPIH: February - index | G154: index | J154: =IF(J139 > 0, J139, I154 * (1 + J$142)) -> 97.5 | K154: 99.1 | L154: 99.5 | M154: 100.1 | N154: 102.4 | O154: 104.9 | P154: 106.8 | Q154: 109.1 | R154: 109.1 | S154: 109.1 | T154: 109.1 | U154: 109.1 | V154: 109.1
E155: CPIH: March - index | G155: index | J155: =IF(J140 > 0, J140, I155 * (1 + J$142)) -> 97.8 | K155: 99.3 | L155: 99.6 | M155: 100.4 | N155: 102.7 | O155: 105.1 | P155: 107 | Q155: 109.3 | R155: 109.3 | S155: 109.3 | T155: 109.3 | U155: 109.3 | V155: 109.3
E157: CPIH: Financial year average - index | G157: index | J157: =AVERAGE(J144:J155) -> 96.58333333 | K157: 98.6 | L157: 99.725 | M157: 100.1666667 | N157: 101.5416667 | O157: 104.2166667 | P157: 106.4333333 | Q157: 108.5583333 | R157: 108.5583333 | S157: 108.5583333 | T157: 108.5583333 | U157: 108.5583333 | V157: 108.5583333
A160: RPI INDEXATION - FORECAST
B162: RPI: Index value series
E163: =InpActive!E104 -> Retail Price Index for April | F163: =InpActive!F104 -> 0 | G163: =InpActive!G104 -> index | H163: =InpActive!H104 -> 0 | I163: =InpActive!I104 -> 0 | J163: =InpActive!J104 -> 242.5 | K163: =InpActive!K104 -> 249.5 | L163: =InpActive!L104 -> 255.7 | M163: =InpActive!M104 -> 258 | N163: =InpActive!N104 -> 261.4 | O163: =InpActive!O104 -> 270.6 | P163: =InpActive!P104 -> 279.7 | Q163: =InpActive!Q104 -> 288.2 | R163: =InpActive!R104 -> 0 | S163: =InpActive!S104 -> 0 | T163: =InpActive!T104 -> 0 | U163: =InpActive!U104 -> 0 | V163: =InpActive!V104 -> 0
E164: =InpActive!E105 -> Retail Price Index for May | F164: =InpActive!F105 -> 0 | G164: =InpActive!G105 -> index | H164: =InpActive!H105 -> 0 | I164: =InpActive!I105 -> 0 | J164: =InpActive!J105 -> 242.4 | K164: =InpActive!K105 -> 250 | L164: =InpActive!L105 -> 255.9 | M164: =InpActive!M105 -> 258.5 | N164: =InpActive!N105 -> 262.1 | O164: =InpActive!O105 -> 271.7 | P164: =InpActive!P105 -> 280.7 | Q164: =InpActive!Q105 -> 289.2 | R164: =InpActive!R105 -> 0 | S164: =InpActive!S105 -> 0 | T164: =InpActive!T105 -> 0 | U164: =InpActive!U105 -> 0 | V164: =InpActive!V105 -> 0
E165: =InpActive!E106 -> Retail Price Index for June | F165: =InpActive!F106 -> 0 | G165: =InpActive!G106 -> index | H165: =InpActive!H106 -> 0 | I165: =InpActive!I106 -> 0 | J165: =InpActive!J106 -> 241.8 | K165: =InpActive!K106 -> 249.7 | L165: =InpActive!L106 -> 256.3 | M165: =InpActive!M106 -> 258.9 | N165: =InpActive!N106 -> 263.1 | O165: =InpActive!O106 -> 272.3 | P165: =InpActive!P106 -> 281.5 | Q165: =InpActive!Q106 -> 289.9 | R165: =InpActive!R106 -> 0 | S165: =InpActive!S106 -> 0 | T165: =InpActive!T106 -> 0 | U165: =InpActive!U106 -> 0 | V165: =InpActive!V106 -> 0
E166: =InpActive!E107 -> Retail Price Index for July | F166: =InpActive!F107 -> 0 | G166: =InpActive!G107 -> index | H166: =InpActive!H107 -> 0 | I166: =InpActive!I107 -> 0 | J166: =InpActive!J107 -> 242.1 | K166: =InpActive!K107 -> 249.7 | L166: =InpActive!L107 -> 256 | M166: =InpActive!M107 -> 258.6 | N166: =InpActive!N107 -> 263.4 | O166: =InpActive!O107 -> 272.9 | P166: =InpActive!P107 -> 281.7 | Q166: =InpActive!Q107 -> 290.2 | R166: =InpActive!R107 -> 0 | S166: =InpActive!S107 -> 0 | T166: =InpActive!T107 -> 0 | U166: =InpActive!U107 -> 0 | V166: =InpActive!V107 -> 0
E167: =InpActive!E108 -> Retail Price Index for August | F167: =InpActive!F108 -> 0 | G167: =InpActive!G108 -> index | H167: =InpActive!H108 -> 0 | I167: =InpActive!I108 -> 0 | J167: =InpActive!J108 -> 243 | K167: =InpActive!K108 -> 251 | L167: =InpActive!L108 -> 257 | M167: =InpActive!M108 -> 259.8 | N167: =InpActive!N108 -> 264.4 | O167: =InpActive!O108 -> 274.7 | P167: =InpActive!P108 -> 284.2 | Q167: =InpActive!Q108 -> 292.7 | R167: =InpActive!R108 -> 0 | S167: =InpActive!S108 -> 0 | T167: =InpActive!T108 -> 0 | U167: =InpActive!U108 -> 0 | V167: =InpActive!V108 -> 0
E168: =InpActive!E109 -> Retail Price Index for September | F168: =InpActive!F109 -> 0 | G168: =InpActive!G109 -> index | H168: =InpActive!H109 -> 0 | I168: =InpActive!I109 -> 0 | J168: =InpActive!J109 -> 244.2 | K168: =InpActive!K109 -> 251.9 | L168: =InpActive!L109 -> 257.6 | M168: =InpActive!M109 -> 259.6 | N168: =InpActive!N109 -> 264.9 | O168: =InpActive!O109 -> 275.1 | P168: =InpActive!P109 -> 284.1 | Q168: =InpActive!Q109 -> 292.6 | R168: =InpActive!R109 -> 0 | S168: =InpActive!S109 -> 0 | T168: =InpActive!T109 -> 0 | U168: =InpActive!U109 -> 0 | V168: =InpActive!V109 -> 0
E169: =InpActive!E110 -> Retail Price Index for October | F169: =InpActive!F110 -> 0 | G169: =InpActive!G110 -> index | H169: =InpActive!H110 -> 0 | I169: =InpActive!I110 -> 0 | J169: =InpActive!J110 -> 245.6 | K169: =InpActive!K110 -> 251.9 | L169: =InpActive!L110 -> 257.7 | M169: =InpActive!M110 -> 259.5 | N169: =InpActive!N110 -> 264.8 | O169: =InpActive!O110 -> 275.3 | P169: =InpActive!P110 -> 284.5 | Q169: =InpActive!Q110 -> 293 | R169: =InpActive!R110 -> 0 | S169: =InpActive!S110 -> 0 | T169: =InpActive!T110 -> 0 | U169: =InpActive!U110 -> 0 | V169: =InpActive!V110 -> 0
E170: =InpActive!E111 -> Retail Price Index for November | F170: =InpActive!F111 -> 0 | G170: =InpActive!G111 -> index | H170: =InpActive!H111 -> 0 | I170: =InpActive!I111 -> 0 | J170: =InpActive!J111 -> 245.6 | K170: =InpActive!K111 -> 252.1 | L170: =InpActive!L111 -> 257.1 | M170: =InpActive!M111 -> 259.8 | N170: =InpActive!N111 -> 265.5 | O170: =InpActive!O111 -> 275.8 | P170: =InpActive!P111 -> 284.6 | Q170: =InpActive!Q111 -> 293.1 | R170: =InpActive!R111 -> 0 | S170: =InpActive!S111 -> 0 | T170: =InpActive!T111 -> 0 | U170: =InpActive!U111 -> 0 | V170: =InpActive!V111 -> 0
E171: =InpActive!E112 -> Retail Price Index for December | F171: =InpActive!F112 -> 0 | G171: =InpActive!G112 -> index | H171: =InpActive!H112 -> 0 | I171: =InpActive!I112 -> 0 | J171: =InpActive!J112 -> 246.8 | K171: =InpActive!K112 -> 253.4 | L171: =InpActive!L112 -> 257.5 | M171: =InpActive!M112 -> 260.6 | N171: =InpActive!N112 -> 267.1 | O171: =InpActive!O112 -> 278.1 | P171: =InpActive!P112 -> 285.6 | Q171: =InpActive!Q112 -> 294.2 | R171: =InpActive!R112 -> 0 | S171: =InpActive!S112 -> 0 | T171: =InpActive!T112 -> 0 | U171: =InpActive!U112 -> 0 | V171: =InpActive!V112 -> 0
E172: =InpActive!E113 -> Retail Price Index for January | F172: =InpActive!F113 -> 0 | G172: =InpActive!G113 -> index | H172: =InpActive!H113 -> 0 | I172: =InpActive!I113 -> 0 | J172: =InpActive!J113 -> 245.8 | K172: =InpActive!K113 -> 252.6 | L172: =InpActive!L113 -> 255.4 | M172: =InpActive!M113 -> 258.8 | N172: =InpActive!N113 -> 265.5 | O172: =InpActive!O113 -> 276 | P172: =InpActive!P113 -> 283 | Q172: =InpActive!Q113 -> 291.5 | R172: =InpActive!R113 -> 0 | S172: =InpActive!S113 -> 0 | T172: =InpActive!T113 -> 0 | U172: =InpActive!U113 -> 0 | V172: =InpActive!V113 -> 0
E173: =InpActive!E114 -> Retail Price Index for February | F173: =InpActive!F114 -> 0 | G173: =InpActive!G114 -> index | H173: =InpActive!H114 -> 0 | I173: =InpActive!I114 -> 0 | J173: =InpActive!J114 -> 247.6 | K173: =InpActive!K114 -> 254.2 | L173: =InpActive!L114 -> 256.7 | M173: =InpActive!M114 -> 260 | N173: =InpActive!N114 -> 268.4 | O173: =InpActive!O114 -> 278.1 | P173: =InpActive!P114 -> 285 | Q173: =InpActive!Q114 -> 295 | R173: =InpActive!R114 -> 0 | S173: =InpActive!S114 -> 0 | T173: =InpActive!T114 -> 0 | U173: =InpActive!U114 -> 0 | V173: =InpActive!V114 -> 0
E174: =InpActive!E115 -> Retail Price Index for March | F174: =InpActive!F115 -> 0 | G174: =InpActive!G115 -> index | H174: =InpActive!H115 -> 0 | I174: =InpActive!I115 -> 0 | J174: =InpActive!J115 -> 248.7 | K174: =InpActive!K115 -> 254.8 | L174: =InpActive!L115 -> 257.1 | M174: =InpActive!M115 -> 261.1 | N174: =InpActive!N115 -> 269.3 | O174: =InpActive!O115 -> 278.3 | P174: =InpActive!P115 -> 285.1 | Q174: =InpActive!Q115 -> 295.2 | R174: =InpActive!R115 -> 0 | S174: =InpActive!S115 -> 0 | T174: =InpActive!T115 -> 0 | U174: =InpActive!U115 -> 0 | V174: =InpActive!V115 -> 0
E176: =InpActive!E$117 -> RPI: Assumed percentage increase for unpopulated monthly values | F176: =InpActive!F$117 -> 0 | G176: =InpActive!G$117 -> % | H176: =InpActive!H$117 -> 0 | I176: =InpActive!I$117 -> 0 | J176: =InpActive!J$117 -> 0 | K176: =InpActive!K$117 -> 0 | L176: =InpActive!L$117 -> 0 | M176: =InpActive!M$117 -> 0 | N176: =InpActive!N$117 -> 0 | O176: =InpActive!O$117 -> 0 | P176: =InpActive!P$117 -> 0 | Q176: =InpActive!Q$117 -> 0 | R176: =InpActive!R$117 -> 0 | S176: =InpActive!S$117 -> 0 | T176: =InpActive!T$117 -> 0 | U176: =InpActive!U$117 -> 0 | V176: =InpActive!V$117 -> 0
E178: RPI: April - index | G178: index | J178: =IF(J163 > 0, J163, I178 * (1 + J$176)) -> 242.5 | K178: 249.5 | L178: 255.7 | M178: 258 | N178: 261.4 | O178: 270.6 | P178: 279.7 | Q178: 288.2 | R178: 288.2 | S178: 288.2 | T178: 288.2 | U178: 288.2 | V178: 288.2
E179: RPI: May - index | G179: index | J179: =IF(J164 > 0, J164, I179 * (1 + J$176)) -> 242.4 | K179: 250 | L179: 255.9 | M179: 258.5 | N179: 262.1 | O179: 271.7 | P179: 280.7 | Q179: 289.2 | R179: 289.2 | S179: 289.2 | T179: 289.2 | U179: 289.2 | V179: 289.2
E180: RPI: June - index | G180: index | J180: =IF(J165 > 0, J165, I180 * (1 + J$176)) -> 241.8 | K180: 249.7 | L180: 256.3 | M180: 258.9 | N180: 263.1 | O180: 272.3 | P180: 281.5 | Q180: 289.9 | R180: 289.9 | S180: 289.9 | T180: 289.9 | U180: 289.9 | V180: 289.9
E181: RPI: July - index | G181: index | J181: =IF(J166 > 0, J166, I181 * (1 + J$176)) -> 242.1 | K181: 249.7 | L181: 256 | M181: 258.6 | N181: 263.4 | O181: 272.9 | P181: 281.7 | Q181: 290.2 | R181: 290.2 | S181: 290.2 | T181: 290.2 | U181: 290.2 | V181: 290.2
E182: RPI: August - index | G182: index | J182: =IF(J167 > 0, J167, I182 * (1 + J$176)) -> 243 | K182: 251 | L182: 257 | M182: 259.8 | N182: 264.4 | O182: 274.7 | P182: 284.2 | Q182: 292.7 | R182: 292.7 | S182: 292.7 | T182: 292.7 | U182: 292.7 | V182: 292.7
E183: RPI: September- index | G183: index | J183: =IF(J168 > 0, J168, I183 * (1 + J$176)) -> 244.2 | K183: 251.9 | L183: 257.6 | M183: 259.6 | N183: 264.9 | O183: 275.1 | P183: 284.1 | Q183: 292.6 | R183: 292.6 | S183: 292.6 | T183: 292.6 | U183: 292.6 | V183: 292.6
E184: RPI: October - index | G184: index | J184: =IF(J169 > 0, J169, I184 * (1 + J$176)) -> 245.6 | K184: 251.9 | L184: 257.7 | M184: 259.5 | N184: 264.8 | O184: 275.3 | P184: 284.5 | Q184: 293 | R184: 293 | S184: 293 | T184: 293 | U184: 293 | V184: 293
E185: RPI: November - index | G185: index | J185: =IF(J170 > 0, J170, I185 * (1 + J$176)) -> 245.6 | K185: 252.1 | L185: 257.1 | M185: 259.8 | N185: 265.5 | O185: 275.8 | P185: 284.6 | Q185: 293.1 | R185: 293.1 | S185: 293.1 | T185: 293.1 | U185: 293.1 | V185: 293.1
E186: RPI: December - index | G186: index | J186: =IF(J171 > 0, J171, I186 * (1 + J$176)) -> 246.8 | K186: 253.4 | L186: 257.5 | M186: 260.6 | N186: 267.1 | O186: 278.1 | P186: 285.6 | Q186: 294.2 | R186: 294.2 | S186: 294.2 | T186: 294.2 | U186: 294.2 | V186: 294.2
E187: RPI: January - index | G187: index | J187: =IF(J172 > 0, J172, I187 * (1 + J$176)) -> 245.8 | K187: 252.6 | L187: 255.4 | M187: 258.8 | N187: 265.5 | O187: 276 | P187: 283 | Q187: 291.5 | R187: 291.5 | S187: 291.5 | T187: 291.5 | U187: 291.5 | V187: 291.5
E188: RPI: February - index | G188: index | J188: =IF(J173 > 0, J173, I188 * (1 + J$176)) -> 247.6 | K188: 254.2 | L188: 256.7 | M188: 260 | N188: 268.4 | O188: 278.1 | P188: 285 | Q188: 295 | R188: 295 | S188: 295 | T188: 295 | U188: 295 | V188: 295
E189: RPI: March - index | G189: index | J189: =IF(J174 > 0, J174, I189 * (1 + J$176)) -> 248.7 | K189: 254.8 | L189: 257.1 | M189: 261.1 | N189: 269.3 | O189: 278.3 | P189: 285.1 | Q189: 295.2 | R189: 295.2 | S189: 295.2 | T189: 295.2 | U189: 295.2 | V189: 295.2
E191: RPI: Financial year average - index | G191: index | J191: =AVERAGE(J178:J189) -> 244.675 | K191: 251.7333333 | L191: 256.6666667 | M191: 259.4333333 | N191: 264.9916667 | O191: 274.9083333 | P191: 283.3083333 | Q191: 292.0666667 | R191: 292.0666667 | S191: 292.0666667 | T191: 292.0666667 | U191: 292.0666667 | V191: 292.0666667
A194: INFLATION - FORECAST
B196: Inflation of 2013 base prices FYA - RPI
E197: =InpActive!E$121 -> Year reference for FYA base price 1 | F197: =InpActive!F$121 -> 2013 | G197: =InpActive!G$121 -> year #
E198: =InpActive!E126 -> Year reference for FYE end price | F198: =InpActive!F126 -> 2020 | G198: =InpActive!G126 -> year #
E199: =E$191 -> RPI: Financial year average - index | F199: 0 | G199: index | H199: 0 | I199: 0 | J199: 244.675 | K199: 251.7333333 | L199: 256.6666667 | M199: 259.4333333 | N199: 264.9916667 | O199: 274.9083333 | P199: 283.3083333 | Q199: 292.0666667 | R199: 292.0666667 | S199: 292.0666667 | T199: 292.0666667 | U199: 292.0666667 | V199: 292.0666667
E200: =E$189 -> RPI: March - index | F200: 0 | G200: index | H200: 0 | I200: 0 | J200: 248.7 | K200: 254.8 | L200: 257.1 | M200: 261.1 | N200: 269.3 | O200: 278.3 | P200: 285.1 | Q200: 295.2 | R200: 295.2 | S200: 295.2 | T200: 295.2 | U200: 295.2 | V200: 295.2
E201: ="RPI inflate from " & F197 & " FYA to " & F198 & " FYE - Final Determination" -> RPI inflate from 2013 FYA to 2020 FYE - Final Determination | F201: =INDEX($J200:$U200, 1, MATCH($F198,$J$4:$U$4)) / INDEX($J199:$U199, 1, MATCH($F197,$J$4:$U$4)) -> 1.206498416 | G201: factor
B203: Inflation of 2018 base prices FYA - RPI
E204: =InpActive!E122 -> Year reference for FYA base price 2 | F204: =InpActive!F122 -> 2018 | G204: =InpActive!G122 -> year #
E205: =InpActive!E126 -> Year reference for FYE end price | F205: =InpActive!F126 -> 2020 | G205: =InpActive!G126 -> year #
E206: =E$191 -> RPI: Financial year average - index | F206: 0 | G206: index | H206: 0 | I206: 0 | J206: 244.675 | K206: 251.7333333 | L206: 256.6666667 | M206: 259.4333333 | N206: 264.9916667 | O206: 274.9083333 | P206: 283.3083333 | Q206: 292.0666667 | R206: 292.0666667 | S206: 292.0666667 | T206: 292.0666667 | U206: 292.0666667 | V206: 292.0666667
E207: =E$189 -> RPI: March - index | F207: 0 | G207: index | H207: 0 | I207: 0 | J207: 248.7 | K207: 254.8 | L207: 257.1 | M207: 261.1 | N207: 269.3 | O207: 278.3 | P207: 285.1 | Q207: 295.2 | R207: 295.2 | S207: 295.2 | T207: 295.2 | U207: 295.2 | V207: 295.2
E208: ="RPI inflate from " & F204 & " FYA to " & F205 & " FYE- Final Determination" -> RPI inflate from 2018 FYA to 2020 FYE- Final Determination | F208: =INDEX($J207:$U207, 1, MATCH($F205,$J$4:$U$4)) / INDEX($J206:$U206, 1, MATCH($F204,$J$4:$U$4)) -> 1.073812483 | G208: factor
B210: ="Inflation from " & F211 & " FYE to " & F212 & " FYE - RPI" -> Inflation from 2020 FYE to 2020 FYE - RPI
E211: =InpActive!E125 -> Year reference for FYE base price 3 | F211: =InpActive!F125 -> 2020 | G211: =InpActive!G125 -> year #
E212: =InpActive!E126 -> Year reference for FYE end price | F212: =InpActive!F126 -> 2020 | G212: =InpActive!G126 -> year #
E213: =Indexation!E$70 -> RPI: March - index | F213: =Indexation!F$70 -> 0 | G213: =Indexation!G$70 -> index | H213: =Indexation!H$70 -> 0 | I213: =Indexation!I$70 -> 0 | J213: =Indexation!J$70 -> 248.7 | K213: =Indexation!K$70 -> 254.8 | L213: =Indexation!L$70 -> 257.1 | M213: =Indexation!M$70 -> 261.1 | N213: =Indexation!N$70 -> 269.3 | O213: =Indexation!O$70 -> 278.3 | P213: =Indexation!P$70 -> 285.1 | Q213: =Indexation!Q$70 -> 292.6 | R213: =Indexation!R$70 -> 292.6 | S213: =Indexation!S$70 -> 292.6 | T213: =Indexation!T$70 -> 292.6 | U213: =Indexation!U$70 -> 292.6 | V213: =Indexation!V$70 -> 292.6
E214: ="RPI inflate from " & F211 & " FYE to " & F212 & " FYE- Final Determination" -> RPI inflate from 2020 FYE to 2020 FYE- Final Determination | F214: =INDEX($J213:$V213, 1, MATCH($F212,Indexation!$J$4:$V$4)) / INDEX($J213:$V213, 1, MATCH($F211,Indexation!$J$4:$V$4)) -> 1 | G214: factor
B216: Inflation of 2018 base prices FYE - RPI
E217: =InpActive!E123 -> Year reference for FYE base price 1 | F217: =InpActive!F123 -> 2018 | G217: =InpActive!G123 -> year #
E218: =InpActive!E126 -> Year reference for FYE end price | F218: =InpActive!F126 -> 2020 | G218: =InpActive!G126 -> year #
E219: =E$189 -> RPI: March - index | F219: 0 | G219: index | H219: 0 | I219: 0 | J219: 248.7 | K219: 254.8 | L219: 257.1 | M219: 261.1 | N219: 269.3 | O219: 278.3 | P219: 285.1 | Q219: 295.2 | R219: 295.2 | S219: 295.2 | T219: 295.2 | U219: 295.2 | V219: 295.2
E220: ="RPI inflate from " & F217 & " FYE to " & F218 & " FYE- Final Determination" -> RPI inflate from 2018 FYE to 2020 FYE- Final Determination | F220: =INDEX($J219:$U219, 1, MATCH($F218,$J$4:$U$4)) / INDEX($J219:$U219, 1, MATCH($F217,$J$4:$U$4)) -> 1.060725835 | G220: factor
B222: ="Inflation from November " & F223 & " FYE to " & F224 & " FYE - RPI" -> Inflation from November 2019 FYE to 2020 FYE - RPI
E223: =InpActive!E124 -> Year reference for FYE base price 2 | F223: =InpActive!F124 -> 2019 | G223: =InpActive!G124 -> year #
E224: =InpActive!E126 -> Year reference for FYE end price | F224: =InpActive!F126 -> 2020 | G224: =InpActive!G126 -> year #
E225: =Indexation!E$66 -> RPI: November - index | F225: =Indexation!F$66 -> 0 | G225: =Indexation!G$66 -> index | H225: =Indexation!H$66 -> 0 | I225: =Indexation!I$66 -> 0 | J225: =Indexation!J$66 -> 245.6 | K225: =Indexation!K$66 -> 252.1 | L225: =Indexation!L$66 -> 257.1 | M225: =Indexation!M$66 -> 259.8 | N225: =Indexation!N$66 -> 265.5 | O225: =Indexation!O$66 -> 275.8 | P225: =Indexation!P$66 -> 284.6 | Q225: =Indexation!Q$66 -> 291 | R225: =Indexation!R$66 -> 291 | S225: =Indexation!S$66 -> 291 | T225: =Indexation!T$66 -> 291 | U225: =Indexation!U$66 -> 291 | V225: =Indexation!V$66 -> 291
E226: =Indexation!E$70 -> RPI: March - index | F226: =Indexation!F$70 -> 0 | G226: =Indexation!G$70 -> index | H226: =Indexation!H$70 -> 0 | I226: =Indexation!I$70 -> 0 | J226: =Indexation!J$70 -> 248.7 | K226: =Indexation!K$70 -> 254.8 | L226: =Indexation!L$70 -> 257.1 | M226: =Indexation!M$70 -> 261.1 | N226: =Indexation!N$70 -> 269.3 | O226: =Indexation!O$70 -> 278.3 | P226: =Indexation!P$70 -> 285.1 | Q226: =Indexation!Q$70 -> 292.6 | R226: =Indexation!R$70 -> 292.6 | S226: =Indexation!S$70 -> 292.6 | T226: =Indexation!T$70 -> 292.6 | U226: =Indexation!U$70 -> 292.6 | V226: =Indexation!V$70 -> 292.6
E227: ="RPI inflate from November " & Indexation!F104 & " FYE to " & Indexation!F105 & " FYE- Final Determination" -> RPI inflate from November 2019 FYE to 2020 FYE- Final Determination | F227: =INDEX(Indexation!$J107:$V107, 1, MATCH(Indexation!$F105,Indexation!$J$4:$V$4)) / INDEX(Indexation!$J106:$V106, 1, MATCH(Indexation!$F104,Indexation!$J$4:$V$4)) -> 1.028109628 | G227: factor
A230: DEFLATION - FORECAST
E232: =InpActive!E130 -> Year reference for FYE base price | F232: =InpActive!F130 -> 2020 | G232: =InpActive!G130 -> year #
E233: =InpActive!E131 -> Year reference for FYA end price | F233: =InpActive!F131 -> 2018 | G233: =InpActive!G131 -> year #
E234: =InpActive!E$81 -> Year reference for FYE base price - IFRS 16 and Other | F234: =InpActive!F$81 -> 2018 | G234: =InpActive!G$81 -> year #
E235: =E$155 -> CPIH: March - index | F235: 0 | G235: index | H235: 0 | I235: 0 | J235: 97.8 | K235: 99.3 | L235: 99.6 | M235: 100.4 | N235: 102.7 | O235: 105.1 | P235: 107 | Q235: 109.3 | R235: 109.3 | S235: 109.3 | T235: 109.3 | U235: 109.3 | V235: 109.3
E236: =E$157 -> CPIH: Financial year average - index | F236: 0 | G236: index | H236: 0 | I236: 0 | J236: 96.58333333 | K236: 98.6 | L236: 99.725 | M236: 100.1666667 | N236: 101.5416667 | O236: 104.2166667 | P236: 106.4333333 | Q236: 108.5583333 | R236: 108.5583333 | S236: 108.5583333 | T236: 108.5583333 | U236: 108.5583333 | V236: 108.5583333
E237: ="CPIH deflate from " & F232 & " FYE to " & F233 & " FYA- Final Determination" -> CPIH deflate from 2020 FYE to 2018 FYA- Final Determination | F237: =INDEX($J236:$U236, 1, MATCH($F233,$J$4:$U$4)) / INDEX($J235:$U235, 1, MATCH($F232,$J$4:$U$4)) -> 0.9534919183 | G237: factor
E238: ="CPIH deflate from " & F232 & " FYE to " & F233 & " FYE- Final Determination" -> CPIH deflate from 2020 FYE to 2018 FYE- Final Determination | F238: =INDEX($J235:$U235, 1, MATCH($F233,$J$4:$U$4)) / INDEX($J235:$U235, 1, MATCH($F232,$J$4:$U$4)) -> 0.9615736505 | G238: factor
E239: CPIH deflate from 2018 FYE to 2018 FYA - IFRS 16 and Other- Final Determination | F239: =INDEX($J236:$U236, 1, MATCH($F233,$J$4:$U$4)) / INDEX($J235:$U235, 1, MATCH($F234,$J$4:$U$4)) -> 0.9915953061 | G239: factor
A243: End of sheet

Sheet Calcs>>

Sheet Differences
A1: =RIGHT(CELL("FILENAME", $A$1), LEN(CELL("FILENAME", $A$1)) - SEARCH("]", CELL("FILENAME", $A$1))) -> Differences
E2: =Time!E$25 -> Model period ending | J2: =Time!J$25 -> 2013-03-31 | K2: =Time!K$25 -> 2014-03-31 | L2: =Time!L$25 -> 2015-03-31 | M2: =Time!M$25 -> 2016-03-31 | N2: =Time!N$25 -> 2017-03-31 | O2: =Time!O$25 -> 2018-03-31 | P2: =Time!P$25 -> 2019-03-31 | Q2: =Time!Q$25 -> 2020-03-31 | R2: =Time!R$25 -> 2021-03-31 | S2: =Time!S$25 -> 2022-03-31 | T2: =Time!T$25 -> 2023-03-31 | U2: =Time!U$25 -> 2024-03-31 | V2: =Time!V$25 -> 2025-03-31
E3: =Time!E$80 -> Timeline label | J3: =Time!J$80 -> Pre-Fcst | K3: =Time!K$80 -> Pre-Fcst | L3: =Time!L$80 -> Pre-Fcst | M3: =Time!M$80 -> Pre-Fcst | N3: =Time!N$80 -> Pre-Fcst | O3: =Time!O$80 -> Pre-Fcst | P3: =Time!P$80 -> Pre-Fcst | Q3: =Time!Q$80 -> Pre-Fcst | R3: =Time!R$80 -> Forecast | S3: =Time!S$80 -> Forecast | T3: =Time!T$80 -> Forecast | U3: =Time!U$80 -> Forecast | V3: =Time!V$80 -> Forecast
E4: =Time!E$103 -> Financial year ending | J4: =Time!J$103 -> 2013 | K4: =Time!K$103 -> 2014 | L4: =Time!L$103 -> 2015 | M4: =Time!M$103 -> 2016 | N4: =Time!N$103 -> 2017 | O4: =Time!O$103 -> 2018 | P4: =Time!P$103 -> 2019 | Q4: =Time!Q$103 -> 2020 | R4: =Time!R$103 -> 2021 | S4: =Time!S$103 -> 2022 | T4: =Time!T$103 -> 2023 | U4: =Time!U$103 -> 2024 | V4: =Time!V$103 -> 2025
D5: Input references | E5: =Time!E$10 -> Model column counter | F5: Constant | G5: Unit | H5: Total | J5: =Time!J$10 -> 1 | K5: =Time!K$10 -> 2 | L5: =Time!L$10 -> 3 | M5: =Time!M$10 -> 4 | N5: =Time!N$10 -> 5 | O5: =Time!O$10 -> 6 | P5: =Time!P$10 -> 7 | Q5: =Time!Q$10 -> 8 | R5: =Time!R$10 -> 9 | S5: =Time!S$10 -> 10 | T5: =Time!T$10 -> 11 | U5: =Time!U$10 -> 12 | V5: =Time!V$10 -> 13
A7: RCV
B9: Water services
C11: Final Determinations (Run 8)
E12: =InpActive!E144 -> Net performance payment / (penalty) applied to RCV for end of period ODI adjustments ~ Water resources - Final Determination | F12: =InpActive!F144 -> 0 | G12: =InpActive!G144 -> £m | H12: =InpActive!H144 -> 2012/13 FYA
E13: =InpActive!E145 -> Net performance payment / (penalty) applied to RCV for end of period ODI adjustments ~ Water network plus - Final Determination | F13: =InpActive!F145 -> 0 | G13: =InpActive!G145 -> £m | H13: =InpActive!H145 -> 2012/13 FYA
E14: =InpActive!E146 -> Water: RCV adjustment from totex menu model - Final Determination | F14: =InpActive!F146 -> 3.485711856 | G14: =InpActive!G146 -> £m | H14: =InpActive!H146 -> 2012/13 FYA
E15: =InpActive!E147 -> Water ~ Other adjustment to wholesale RCV - Final Determination | F15: =InpActive!F147 -> 0 | G15: =InpActive!G147 -> £m | H15: =InpActive!H147 -> 2017/18 FYE
E16: =InpActive!E148 -> Water ~ NPV effect of 50% of proceeds from disposals of interest in land - Final Determination | F16: =InpActive!F148 -> -0.7762475104 | G16: =InpActive!G148 -> £m | H16: =InpActive!H148 -> 2017/18 FYA
C18: Blind Year (Run BY)
E19: =InpActive!E164 -> Net performance payment / (penalty) applied to RCV for end of period ODI adjustments ~ Water resources - Blind Year | F19: =InpActive!F164 -> 0 | G19: =InpActive!G164 -> £m | H19: =InpActive!H164 -> 2012/13 FYA
E20: =InpActive!E165 -> Net performance payment / (penalty) applied to RCV for end of period ODI adjustments ~ Water network plus - Blind Year | F20: =InpActive!F165 -> 0 | G20: =InpActive!G165 -> £m | H20: =InpActive!H165 -> 2012/13 FYA
E21: =InpActive!E166 -> Water: RCV adjustment from totex menu model - Blind Year | F21: =InpActive!F166 -> 4.980016771 | G21: =InpActive!G166 -> £m | H21: =InpActive!H166 -> 2012/13 FYA
E22: =InpActive!E167 -> Water ~ Other adjustment to wholesale RCV - Blind Year | F22: =InpActive!F167 -> 0 | G22: =InpActive!G167 -> £m | H22: =InpActive!H167 -> 2017/18 FYE
E23: =InpActive!E168 -> Water ~ NPV effect of 50% of proceeds from disposals of interest in land - Blind Year | F23: =InpActive!F168 -> -0.7138671158 | G23: =InpActive!G168 -> £m | H23: =InpActive!H168 -> 2017/18 FYA
C25: Differences
E26: Net performance payment / (penalty) applied to RCV for end of period ODI adjustments ~ Water resources - Difference | F26: =F19-F12 -> 0 | G26: £m | H26: 2012/13 FYA
E27: Net performance payment / (penalty) applied to RCV for end of period ODI adjustments ~ Water network plus - Difference | F27: =F20-F13 -> 0 | G27: £m | H27: 2012/13 FYA
E28: Water: RCV adjustment from totex menu model - Difference | F28: 1.494304915 | G28: £m | H28: 2012/13 FYA
E29: Water ~ Other adjustment to wholesale RCV - Difference | F29: 0 | G29: £m | H29: 2017/18 FYE
E30: Water ~ NPV effect of 50% of proceeds from disposals of interest in land - Difference | F30: 0.06238039461 | G30: £m | H30: 2017/18 FYA
B34: Wastewater services
C36: Final Determinations (Run 8)
E37: =InpActive!E189 -> Net performance payment / (penalty) applied to RCV for end of period ODI adjustments ~ Wastewater network plus - Final Determination | F37: =InpActive!F189 -> 0 | G37: =InpActive!G189 -> £m | H37: =InpActive!H189 -> 2012/13 FYA
E38: =InpActive!E190 -> Wastewater: RCV adjustment from totex menu model - Final Determination | F38: =InpActive!F190 -> 0 | G38: =InpActive!G190 -> £m | H38: =InpActive!H190 -> 2012/13 FYA
E39: =InpActive!E191 -> Wastewater ~ Other adjustment to wholesale RCV - Final Determination | F39: =InpActive!F191 -> 0 | G39: =InpActive!G191 -> £m | H39: =InpActive!H191 -> 2017/18 FYE
E40: =InpActive!E192 -> Wastewater ~ NPV effect of 50% of proceeds from disposals of interest in land - Final Determination | F40: =InpActive!F192 -> 0 | G40: =InpActive!G192 -> £m | H40: =InpActive!H192 -> 2017/18 FYA
E41: =InpActive!E193 -> Bioresources RCV (prior to midnight adjustments) 31 March 2020 - Final Determination | F41: =InpActive!F193 -> 0 | G41: =InpActive!G193 -> £m | H41: =InpActive!H193 -> 2017/18 FYE
C43: Blind Year (Run BY)
E44: =InpActive!E208 -> Net performance payment / (penalty) applied to RCV for end of period ODI adjustments ~ Wastewater network plus - Blind Year | F44: =InpActive!F208 -> 0 | G44: =InpActive!G208 -> £m | H44: =InpActive!H208 -> 2012/13 FYA
E45: =InpActive!E209 -> Wastewater: RCV adjustment from totex menu model - Blind Year | F45: =InpActive!F209 -> 0 | G45: =InpActive!G209 -> £m | H45: =InpActive!H209 -> 2012/13 FYA
E46: =InpActive!E210 -> Wastewater ~ Other adjustment to wholesale RCV - Blind Year | F46: =InpActive!F210 -> 0 | G46: =InpActive!G210 -> £m | H46: =InpActive!H210 -> 2017/18 FYE
E47: =InpActive!E211 -> Wastewater ~ NPV effect of 50% of proceeds from disposals of interest in land - Blind Year | F47: =InpActive!F211 -> 0 | G47: =InpActive!G211 -> £m | H47: =InpActive!H211 -> 2017/18 FYA
E48: =InpActive!E212 -> Bioresources RCV (prior to midnight adjustments) 31 March 2020 - Blind Year | F48: =InpActive!F212 -> 0 | G48: =InpActive!G212 -> £m | H48: =InpActive!H212 -> 2017/18 FYE
C50: Differences
E51: Net performance payment / (penalty) applied to RCV for end of period ODI adjustments ~ Wastewater network plus - Difference | F51: =F44-F37 -> 0 | G51: £m | H51: 2012/13 FYA
E52: Wastewater: RCV adjustment from totex menu model - Difference | F52: =F45-F38 -> 0 | G52: £m | H52: 2012/13 FYA
E53: Wastewater ~ Other adjustment to wholesale RCV - Difference | F53: =F46-F39 -> 0 | G53: £m | H53: 2017/18 FYE
E54: Wastewater ~ NPV effect of 50% of proceeds from disposals of interest in land - Difference | F54: 0 | G54: £m | H54: 2017/18 FYA
E55: Bioresources RCV (prior to midnight adjustments) 31 March 2020 - Difference | F55: =F48-F41 -> 0 | G55: £m | H55: 2017/18 FYE
B59: Dummy RCV
C61: Final Determinations (Run 8)
E62: =InpActive!E229 -> Dummy RCV (prior to midnight adjustments) 31 March 2020 - Final Determination | F62: =InpActive!F229 -> 0 | G62: =InpActive!G229 -> £m | H62: =InpActive!H229 -> 2017/18 FYE
E63: =InpActive!E230 -> Net performance payment / (penalty) applied to RCV for end of period ODI adjustments ~ Thames Tideway - Final Determination | F63: =InpActive!F230 -> 0 | G63: =InpActive!G230 -> £m | H63: =InpActive!H230 -> 2012/13 FYA
E64: =InpActive!E231 -> Dummy: RCV adjustment from totex menu model - Final Determination | F64: =InpActive!F231 -> 0 | G64: =InpActive!G231 -> £m | H64: =InpActive!H231 -> 2012/13 FYA
E65: =InpActive!E232 -> Dummy ~ Other adjustment to wholesale RCV - Final Determination | F65: =InpActive!F232 -> 0 | G65: =InpActive!G232 -> £m | H65: =InpActive!H232 -> 2017/18 FYE
E66: =InpActive!E233 -> Dummy: NPV effect of 100% of proceeds from disposals of interest in land - Final Determination | F66: =InpActive!F233 -> 0 | G66: =InpActive!G233 -> £m | H66: =InpActive!H233 -> 2017/18 FYA
E67: =InpActive!E234 -> Dummy IFRS16 RCV adjustment - Final Determination | F67: =InpActive!F234 -> 0 | G67: =InpActive!G234 -> £m | H67: =InpActive!H234 -> 2017/18 FYE
C70: Blind Year (Run BY)
E71: =InpActive!E242 -> Dummy RCV (prior to midnight adjustments) 31 March 2020 - Blind Year | F71: =InpActive!F242 -> 0 | G71: =InpActive!G242 -> £m | H71: =InpActive!H242 -> 2017/18 FYE
E72: =InpActive!E243 -> Net performance payment / (penalty) applied to RCV for end of period ODI adjustments ~ Thames Tideway - Blind Year | F72: =InpActive!F243 -> 0 | G72: =InpActive!G243 -> £m | H72: =InpActive!H243 -> 2012/13 FYA
E73: =InpActive!E244 -> Dummy: RCV adjustment from totex menu model - Blind Year | F73: =InpActive!F244 -> 0 | G73: =InpActive!G244 -> £m | H73: =InpActive!H244 -> 2012/13 FYA
E74: =InpActive!E245 -> Dummy ~ Other adjustment to wholesale RCV - Blind Year | F74: =InpActive!F245 -> 0 | G74: =InpActive!G245 -> £m | H74: =InpActive!H245 -> 2017/18 FYE
E75: =InpActive!E246 -> Dummy: NPV effect of 100% of proceeds from disposals of interest in land - Blind Year | F75: =InpActive!F246 -> 0 | G75: =InpActive!G246 -> £m | H75: =InpActive!H246 -> 2017/18 FYA
E76: =InpActive!E247 -> Dummy IFRS16 RCV adjustment - Blind Year | F76: =InpActive!F247 -> 0 | G76: =InpActive!G247 -> £m | H76: =InpActive!H247 -> 2017/18 FYE
D79: Differences
E80: Dummy RCV (prior to midnight adjustments) 31 March 2020 - Difference | F80: =F71-F62 -> 0 | G80: £m | H80: 2017/18 FYE
E81: Net performance payment / (penalty) applied to RCV for end of period ODI adjustments ~ Thames Tideway - Difference | F81: =F72-F63 -> 0 | G81: £m | H81: 2012/13 FYA
E82: Dummy: RCV adjustment from totex menu model - Difference | F82: 0 | G82: £m | H82: 2012/13 FYA
E83: Dummy ~ Other adjustment to wholesale RCV - Difference | F83: 0 | G83: £m | H83: 2017/18 FYE
E84: Dummy: NPV effect of 100% of proceeds from disposals of interest in land - Difference | F84: =F75-F66 -> 0 | G84: £m | H84: 2017/18 FYA
E85: =InpActive!E226 -> % of RCV to index by RPI - dummy | F85: =InpActive!F226 -> 0.5 | G85: =InpActive!G226 -> % | H85: =InpActive!H226 -> 0
E87: Dummy IFRS16 RCV adjustment - Difference | F87: =F76-F67 -> 0 | G87: £m | H87: 2017/18 FYE
A91: Revenue
B93: Water services
C95: Water resources
E97: Final Determinations (Run 8)
E98: =InpActive!E262 -> Net performance payment / (penalty) applied to revenue for in-period ODI adjustments ~ Water resources - Final Determination | F98: =InpActive!F262 -> 0 | G98: =InpActive!G262 -> £m | H98: =InpActive!H262 -> 2012/13 FYA
E99: =InpActive!E263 -> Net performance payment / (penalty) applied to revenue for end of period ODI adjustments ~ Water resources - Final Determination | F99: =InpActive!F263 -> 1.2648 | G99: =InpActive!G263 -> £m | H99: =InpActive!H263 -> 2012/13 FYA
E100: =InpActive!E264 -> Total value of export incentive to be paid to water resources at PR19 - Final Determination | F100: =InpActive!F264 -> 0 | G100: =InpActive!G264 -> £m | H100: =InpActive!H264 -> 2012/13 FYA
E101: =InpActive!E265 -> Total value of import incentive - water resources - Final Determination | F101: =InpActive!F265 -> 0 | G101: =InpActive!G265 -> £m | H101: =InpActive!H265 -> 2012/13 FYA
D103: Blind Year (Run BY)
E104: =InpActive!E268 -> Net performance payment / (penalty) applied to revenue for in-period ODI adjustments ~ Water resources - Blind Year | F104: =InpActive!F268 -> 0 | G104: =InpActive!G268 -> £m | H104: =InpActive!H268 -> 2012/13 FYA
E105: =InpActive!E269 -> Net performance payment / (penalty) applied to revenue for end of period ODI adjustments ~ Water resources - Blind Year | F105: =InpActive!F269 -> 1.2648 | G105: =InpActive!G269 -> £m | H105: =InpActive!H269 -> 2012/13 FYA
E106: =InpActive!E270 -> Total value of export incentive to be paid to water resources at PR19 - Blind Year | F106: =InpActive!F270 -> 0 | G106: =InpActive!G270 -> £m | H106: =InpActive!H270 -> 2012/13 FYA
E107: =InpActive!E271 -> Total value of import incentive - water resources - Blind Year | F107: =InpActive!F271 -> 0 | G107: =InpActive!G271 -> £m | H107: =InpActive!H271 -> 2012/13 FYA
D109: Differences
E110: Net performance payment / (penalty) applied to revenue for in-period ODI adjustments ~ Water resources - Difference | F110: =F104-F98 -> 0 | G110: £m | H110: 2012/13 FYA
E111: Net performance payment / (penalty) applied to revenue for end of period ODI adjustments ~ Water resources - Difference | F111: =F105-F99 -> 0 | G111: £m | H111: 2012/13 FYA
E112: Total value of export incentive to be paid to water resources at PR19 - Difference | F112: 0 | G112: £m | H112: 2012/13 FYA
E113: Total value of import incentive - water resources - Difference | F113: 0 | G113: £m | H113: 2012/13 FYA
C116: Water network plus
D118: Final Determinations (Run 8)
E120: =InpActive!E278 -> Net performance payment / (penalty) applied to revenue for in-period ODI adjustments ~ Water network plus - Final Determination | F120: =InpActive!F278 -> 0 | G120: =InpActive!G278 -> £m | H120: =InpActive!H278 -> 2012/13 FYA
E121: =InpActive!E279 -> Net performance payment / (penalty) applied to revenue for end of period ODI adjustments ~ Water network plus - Final Determination | F121: =InpActive!F279 -> -12.91065 | G121: =InpActive!G279 -> £m | H121: =InpActive!H279 -> 2012/13 FYA
E122: =InpActive!E280 -> Water: revenue adjustment from totex menu model - Final Determination | F122: =InpActive!F280 -> -0.05571087418 | G122: =InpActive!G280 -> £m | H122: =InpActive!H280 -> 2012/13 FYA
E123: =InpActive!E281 -> Total value of export incentive to be paid to water network plus at PR19 - Final Determination | F123: =InpActive!F281 -> 0 | G123: =InpActive!G281 -> £m | H123: =InpActive!H281 -> 2012/13 FYA
E124: =InpActive!E282 -> Total value of import incentive - water network plus - Final Determination | F124: =InpActive!F282 -> 0 | G124: =InpActive!G282 -> £m | H124: =InpActive!H282 -> 2012/13 FYA
E125: =InpActive!E283 -> WRFIM total reward / (penalty) at end of AMP6 ~ Water - Final Determination | F125: =InpActive!F283 -> 0.5433250978 | G125: =InpActive!G283 -> £m | H125: =InpActive!H283 -> November 2018/2019
E126: =InpActive!E284 -> Other revenue adjustment - water network plus - Final Determination | F126: =InpActive!F284 -> 0 | G126: =InpActive!G284 -> £m | H126: =InpActive!H284 -> 2012/13 FYA
D128: Blind Year (Run BY)
E130: =InpActive!E288 -> Net performance payment / (penalty) applied to revenue for in-period ODI adjustments ~ Water network plus - Blind Year | F130: =InpActive!F288 -> 0 | G130: =InpActive!G288 -> £m | H130: =InpActive!H288 -> 2012/13 FYA
E131: =InpActive!E289 -> Net performance payment / (penalty) applied to revenue for end of period ODI adjustments ~ Water network plus - Blind Year | F131: =InpActive!F289 -> -14.64805 | G131: =InpActive!G289 -> £m | H131: =InpActive!H289 -> 2012/13 FYA
E132: =InpActive!E290 -> Water: revenue adjustment from totex menu model - Blind Year | F132: =InpActive!F290 -> 0.8138517416 | G132: =InpActive!G290 -> £m | H132: =InpActive!H290 -> 2012/13 FYA
E133: =InpActive!E291 -> Total value of export incentive to be paid to water network plus at PR19 - Blind Year | F133: =InpActive!F291 -> 0 | G133: =InpActive!G291 -> £m | H133: =InpActive!H291 -> 2012/13 FYA
E134: =InpActive!E292 -> Total value of import incentive - water network plus - Blind Year | F134: =InpActive!F292 -> 0 | G134: =InpActive!G292 -> £m | H134: =InpActive!H292 -> 2012/13 FYA
E135: =InpActive!E293 -> WRFIM total reward / (penalty) at end of AMP6 ~ Water - Blind Year | F135: =InpActive!F293 -> 4.818183671 | G135: =InpActive!G293 -> £m | H135: =InpActive!H293 -> November 2018/2019
E136: =InpActive!E294 -> Other revenue adjustment - water network plus - Blind Year | F136: =InpActive!F294 -> 0 | G136: =InpActive!G294 -> £m | H136: =InpActive!H294 -> 2012/13 FYA
D138: Differences
E139: Net performance payment / (penalty) applied to revenue for in-period ODI adjustments ~ Water network plus - Difference | F139: =F130-F120 -> 0 | G139: £m | H139: 2012/13 FYA
E140: Net performance payment / (penalty) applied to revenue for end of period ODI adjustments ~ Water network plus - Difference | F140: =F131-F121 -> -1.7374 | G140: £m | H140: 2012/13 FYA
E141: Water: revenue adjustment from totex menu model - Difference | F141: 0.8695626158 | G141: £m | H141: 2012/13 FYA
E142: Total value of export incentive to be paid to water network plus at PR19 - Difference | F142: 0 | G142: £m | H142: 2012/13 FYA
E143: Total value of import incentive - water network plus - Difference | F143: 0 | G143: £m | H143: 2012/13 FYA
E144: WRFIM total reward / (penalty) at end of AMP6 ~ Water - Difference | F144: 4.274858573 | G144: £m | H144: November 2018/2019
E145: Other revenue adjustment - water network plus - Difference | F145: 0 | G145: £m | H145: 2012/13 FYA
B149: Wastewater services
C151: Bioresources
D153: Final Determinations (Run 8)
E154: =InpActive!E303 -> Net performance payment / (penalty) applied to revenue for in-period ODI adjustments ~ Bioresources - Final Determination | F154: =InpActive!F303 -> 0 | G154: =InpActive!G303 -> £m | H154: =InpActive!H303 -> 2012/13 FYA
E155: =InpActive!E304 -> Net performance payment / (penalty) applied to revenue for end of period ODI adjustments ~ Bioresources - Final Determination | F155: =InpActive!F304 -> 0 | G155: =InpActive!G304 -> £m | H155: =InpActive!H304 -> 2012/13 FYA
D157: Blind Year (Run BY)
E158: =InpActive!E307 -> Net performance payment / (penalty) applied to revenue for in-period ODI adjustments ~ Bioresources - Blind Year | F158: =InpActive!F307 -> 0 | G158: =InpActive!G307 -> £m | H158: =InpActive!H307 -> 2012/13 FYA
E159: =InpActive!E308 -> Net performance payment / (penalty) applied to revenue for end of period ODI adjustments ~ Bioresources - Blind Year | F159: =InpActive!F308 -> 0 | G159: =InpActive!G308 -> £m | H159: =InpActive!H308 -> 2012/13 FYA
D161: Differences
E162: Net performance payment / (penalty) applied to revenue for in-period ODI adjustments ~ Bioresources - Difference | F162: =F158-F154 -> 0 | G162: £m | H162: 2012/13 FYA
E163: Net performance payment / (penalty) applied to revenue for end of period ODI adjustments ~ Bioresources - Difference | F163: =F159-F155 -> 0 | G163: £m | H163: 2012/13 FYA
C166: Wastewater network plus
D168: Final Determinations (Run 8)
E169: =InpActive!E316 -> Net performance payment / (penalty) applied to revenue for in-period ODI adjustments ~ Wastewater network plus - Final Determination | F169: =InpActive!F316 -> 0 | G169: =InpActive!G316 -> £m | H169: =InpActive!H316 -> 2012/13 FYA
E170: =InpActive!E317 -> Net performance payment / (penalty) applied to revenue for end of period ODI adjustments ~ Wastewater network plus - Final Determination | F170: =InpActive!F317 -> 0 | G170: =InpActive!G317 -> £m | H170: =InpActive!H317 -> 2012/13 FYA
E171: =InpActive!E318 -> Wastewater: revenue adjustment from totex menu model - Final Determination | F171: =InpActive!F318 -> 0 | G171: =InpActive!G318 -> £m | H171: =InpActive!H318 -> 2012/13 FYA
E172: =InpActive!E319 -> WRFIM total reward / (penalty) at the end of AMP6 ~ Wastewater - Final Determination | F172: =InpActive!F319 -> 0 | G172: =InpActive!G319 -> £m | H172: =InpActive!H319 -> November 2018/2019
E173: =InpActive!E320 -> Other revenue adjustment - wastewater network plus - Final Determination | F173: =InpActive!F320 -> 0 | G173: =InpActive!G320 -> £m | H173: =InpActive!H320 -> 2012/13 FYA
D175: Blind Year (Run BY)
E176: =InpActive!E324 -> Net performance payment / (penalty) applied to revenue for in-period ODI adjustments ~ Wastewater network plus - Blind Year | F176: =InpActive!F324 -> 0 | G176: =InpActive!G324 -> £m | H176: =InpActive!H324 -> 2012/13 FYA
E177: =InpActive!E325 -> Net performance payment / (penalty) applied to revenue for end of period ODI adjustments ~ Wastewater network plus - Blind Year | F177: =InpActive!F325 -> 0 | G177: =InpActive!G325 -> £m | H177: =InpActive!H325 -> 2012/13 FYA
E178: =InpActive!E326 -> Wastewater: revenue adjustment from totex menu model - Blind Year | F178: =InpActive!F326 -> 0 | G178: =InpActive!G326 -> £m | H178: =InpActive!H326 -> 2012/13 FYA
E179: =InpActive!E327 -> WRFIM total reward / (penalty) at the end of AMP6 ~ Wastewater - Blind Year | F179: =InpActive!F327 -> 0 | G179: =InpActive!G327 -> £m | H179: =InpActive!H327 -> November 2018/2019
E180: =InpActive!E328 -> Other revenue adjustment - wastewater network plus - Blind Year | F180: =InpActive!F328 -> 0 | G180: =InpActive!G328 -> £m | H180: =InpActive!H328 -> 2012/13 FYA
D182: Differences
E183: Net performance payment / (penalty) applied to revenue for in-period ODI adjustments ~ Wastewater network plus - Difference | F183: =F176-F169 -> 0 | G183: £m | H183: 2012/13 FYA
E184: Net performance payment / (penalty) applied to revenue for end of period ODI adjustments ~ Wastewater network plus - Difference | F184: =F177-F170 -> 0 | G184: £m | H184: 2012/13 FYA
E185: Wastewater: revenue adjustment from totex menu model - Difference | F185: 0 | G185: £m | H185: 2012/13 FYA
E186: WRFIM total reward / (penalty) at the end of AMP6 ~ Wastewater - Difference | F186: 0 | G186: £m | H186: November 2018/2019
E187: Other revenue adjustment - wastewater network plus - Difference | F187: 0 | G187: £m | H187: 2012/13 FYA
B191: Dummy control
D193: Final Determinations (Run 8)
E194: =InpActive!E335 -> Dummy: revenue adjustment from totex menu model - Final Determination | F194: =InpActive!F335 -> 0 | G194: =InpActive!G335 -> £m | H194: =InpActive!H335 -> 2012/13 FYA
E195: =InpActive!E336 -> Dummy: WRFIM total reward / (penalty) at the end of AMP6 - Final Determination | F195: =InpActive!F336 -> 0 | G195: =InpActive!G336 -> £m | H195: =InpActive!H336 -> November 2018/2019
D197: Blind Year (Run BY)
E198: =InpActive!E339 -> Dummy: revenue adjustment from totex menu model - Blind Year | F198: =InpActive!F339 -> 0 | G198: =InpActive!G339 -> £m | H198: =InpActive!H339 -> 2012/13 FYA
E199: =InpActive!E340 -> Dummy: WRFIM total reward / (penalty) at the end of AMP6 - Blind Year | F199: =InpActive!F340 -> 0 | G199: =InpActive!G340 -> £m | H199: =InpActive!H340 -> November 2018/2019
D201: Differences
E202: Dummy: revenue adjustment from totex menu model - Difference | F202: =F198-F194 -> 0 | G202: £m | H202: 2012/13 FYA
E203: Dummy: WRFIM total reward / (penalty) at the end of AMP6 - Difference | F203: =F199-F195 -> 0 | G203: £m | H203: November 2018/2019
B206: Residential retail
D208: Final Determinations (Run 8)
E209: =InpActive!E346 -> Net performance payment / (penalty) applied to revenue for in-period ODI adjustments ~ Residential retail - Final Determination | F209: =InpActive!F346 -> 0 | G209: =InpActive!G346 -> £m | H209: =InpActive!H346 -> 2012/13 FYA
E210: =InpActive!E347 -> Net performance payment / (penalty) applied to revenue for end of period ODI adjustments ~ Residential retail - Final Determination | F210: =InpActive!F347 -> 0 | G210: =InpActive!G347 -> £m | H210: =InpActive!H347 -> 2012/13 FYA
E211: =InpActive!E348 -> Residential retail revenue adjustment at end of AMP6 - Final Determination | F211: =InpActive!F348 -> 1.34450412 | G211: =InpActive!G348 -> £m | H211: =InpActive!H348 -> 2019/20 FYE
E212: =InpActive!E349 -> SIM forecast revenue adjustment - Final Determination | F212: =InpActive!F349 -> -11.191876 | G212: =InpActive!G349 -> £m | H212: =InpActive!H349 -> 2017/18 FYA
D214: Blind Year (Run BY)
E215: =InpActive!E352 -> Net performance payment / (penalty) applied to revenue for in-period ODI adjustments ~ Residential retail - Blind Year | F215: =InpActive!F352 -> 0 | G215: =InpActive!G352 -> £m | H215: =InpActive!H352 -> 2012/13 FYA
E216: =InpActive!E353 -> Net performance payment / (penalty) applied to revenue for end of period ODI adjustments ~ Residential retail - Blind Year | F216: =InpActive!F353 -> 0 | G216: =InpActive!G353 -> £m | H216: =InpActive!H353 -> 2012/13 FYA
E217: =InpActive!E354 -> Residential retail revenue adjustment at end of AMP6 - Blind Year | F217: =InpActive!F354 -> 1.94947582 | G217: =InpActive!G354 -> £m | H217: =InpActive!H354 -> 2019/20 FYE
E218: =InpActive!E355 -> SIM forecast revenue adjustment - Blind Year | F218: =InpActive!F355 -> -11.191876 | G218: =InpActive!G355 -> £m | H218: =InpActive!H355 -> 2017/18 FYA
D220: Differences
E221: Net performance payment / (penalty) applied to revenue for in-period ODI adjustments ~ Residential retail - Difference | F221: =F215-F209 -> 0 | G221: £m | H221: 2012/13 FYA
E222: Net performance payment / (penalty) applied to revenue for end of period ODI adjustments ~ Residential retail - Difference | F222: =F216-F210 -> 0 | G222: £m | H222: 2012/13 FYA
E223: Residential retail revenue adjustment at end of AMP6 - Difference | F223: 0.6049717 | G223: £m | H223: 2019/20 FYE
E224: SIM forecast revenue adjustment - Difference | F224: 0 | G224: £m | H224: 2017/18 FYA
B227: Business retail
D229: Final Determinations (Run 8)
E230: =InpActive!E361 -> Net performance payment / (penalty) applied to revenue for in-period ODI adjustments ~ Business retail - Final Determination | F230: =InpActive!F361 -> 0 | G230: =InpActive!G361 -> £m | H230: =InpActive!H361 -> 2012/13 FYA
E231: =InpActive!E362 -> Net performance payment / (penalty) applied to revenue for end of period ODI adjustments ~ Business retail - Final Determination | F231: =InpActive!F362 -> 0 | G231: =InpActive!G362 -> £m | H231: =InpActive!H362 -> 2012/13 FYA
E232: =InpActive!E363 -> Non-household SIM adjustment - business retail - Final Determination | F232: =InpActive!F363 -> 0 | G232: =InpActive!G363 -> £m | H232: =InpActive!H363 -> 2017/18 FYA
D234: Blind Year (Run BY)
E235: =InpActive!E366 -> Net performance payment / (penalty) applied to revenue for in-period ODI adjustments ~ Business retail - Blind Year | F235: =InpActive!F366 -> 0 | G235: =InpActive!G366 -> £m | H235: =InpActive!H366 -> 2012/13 FYA
E236: =InpActive!E367 -> Net performance payment / (penalty) applied to revenue for end of period ODI adjustments ~ Business retail - Blind Year | F236: =InpActive!F367 -> 0 | G236: =InpActive!G367 -> £m | H236: =InpActive!H367 -> 2012/13 FYA
E237: =InpActive!E368 -> Non-household SIM adjustment - business retail - Blind Year | F237: =InpActive!F368 -> 0 | G237: =InpActive!G368 -> £m | H237: =InpActive!H368 -> 2017/18 FYA
D239: Differences
E240: Net performance payment / (penalty) applied to revenue for in-period ODI adjustments ~ Business retail - Difference | F240: =F235-F230 -> 0 | G240: £m | H240: 2012/13 FYA
E241: Net performance payment / (penalty) applied to revenue for end of period ODI adjustments ~ Business retail - Difference | F241: =F236-F231 -> 0 | G241: £m | H241: 2012/13 FYA
E242: Non-household SIM adjustment - business retail - Difference | F242: 0 | G242: £m | H242: 2017/18 FYA
A246: End of sheet

Sheet RCV Calc
A1: =RIGHT(CELL("filename", $A$1), LEN(CELL("filename", $A$1)) - SEARCH("]", CELL("filename", $A$1))) -> RCV Calc
E2: =Time!E$25 -> Model period ending | J2: =Time!J$25 -> 2013-03-31 | K2: =Time!K$25 -> 2014-03-31 | L2: =Time!L$25 -> 2015-03-31 | M2: =Time!M$25 -> 2016-03-31 | N2: =Time!N$25 -> 2017-03-31 | O2: =Time!O$25 -> 2018-03-31 | P2: =Time!P$25 -> 2019-03-31 | Q2: =Time!Q$25 -> 2020-03-31 | R2: =Time!R$25 -> 2021-03-31 | S2: =Time!S$25 -> 2022-03-31 | T2: =Time!T$25 -> 2023-03-31 | U2: =Time!U$25 -> 2024-03-31 | V2: =Time!V$25 -> 2025-03-31
E3: =Time!E$80 -> Timeline label | J3: =Time!J$80 -> Pre-Fcst | K3: =Time!K$80 -> Pre-Fcst | L3: =Time!L$80 -> Pre-Fcst | M3: =Time!M$80 -> Pre-Fcst | N3: =Time!N$80 -> Pre-Fcst | O3: =Time!O$80 -> Pre-Fcst | P3: =Time!P$80 -> Pre-Fcst | Q3: =Time!Q$80 -> Pre-Fcst | R3: =Time!R$80 -> Forecast | S3: =Time!S$80 -> Forecast | T3: =Time!T$80 -> Forecast | U3: =Time!U$80 -> Forecast | V3: =Time!V$80 -> Forecast
E4: =Time!E$103 -> Financial year ending | J4: =Time!J$103 -> 2013 | K4: =Time!K$103 -> 2014 | L4: =Time!L$103 -> 2015 | M4: =Time!M$103 -> 2016 | N4: =Time!N$103 -> 2017 | O4: =Time!O$103 -> 2018 | P4: =Time!P$103 -> 2019 | Q4: =Time!Q$103 -> 2020 | R4: =Time!R$103 -> 2021 | S4: =Time!S$103 -> 2022 | T4: =Time!T$103 -> 2023 | U4: =Time!U$103 -> 2024 | V4: =Time!V$103 -> 2025
E5: =Time!E$10 -> Model column counter | F5: Constant | G5: Unit | H5: Total | J5: =Time!J$10 -> 1 | K5: =Time!K$10 -> 2 | L5: =Time!L$10 -> 3 | M5: =Time!M$10 -> 4 | N5: =Time!N$10 -> 5 | O5: =Time!O$10 -> 6 | P5: =Time!P$10 -> 7 | Q5: =Time!Q$10 -> 8 | R5: =Time!R$10 -> 9 | S5: =Time!S$10 -> 10 | T5: =Time!T$10 -> 11 | U5: =Time!U$10 -> 12 | V5: =Time!V$10 -> 13
A7: WATER SERVICES
B9: Water RCV closing balance at 31 March 2020
E10: =Differences!E$26 -> Net performance payment / (penalty) applied to RCV for end of period ODI adjustments ~ Water resources - Difference | F10: =Differences!F$26 -> 0 | G10: =Differences!G$26 -> £m | H10: =Differences!H$26 -> 2012/13 FYA
E11: =Differences!E$27 -> Net performance payment / (penalty) applied to RCV for end of period ODI adjustments ~ Water network plus - Difference | F11: =Differences!F$27 -> 0 | G11: =Differences!G$27 -> £m | H11: =Differences!H$27 -> 2012/13 FYA
E12: =Differences!E$28 -> Water: RCV adjustment from totex menu model - Difference | F12: =Differences!F$28 -> 1.494304915 | G12: =Differences!G$28 -> £m | H12: =Differences!H$28 -> 2012/13 FYA
E14: =Indexation!E$82 -> RPI inflate from 2013 FYA to 2020 FYE - Blind Year | F14: =Indexation!F$82 -> 1.195872075 | G14: =Indexation!G$82 -> factor
E16: =E10 & " at 2020 FYE price base" -> Net performance payment / (penalty) applied to RCV for end of period ODI adjustments ~ Water resources - Difference at 2020 FYE price base | F16: =F10 * F$14 -> 0 | G16: £m | H16: 2020 FYE
E17: =E11 & " at 2020 FYE price base" -> Net performance payment / (penalty) applied to RCV for end of period ODI adjustments ~ Water network plus - Difference at 2020 FYE price base | F17: =F11 * F$14 -> 0 | G17: £m | H17: 2020 FYE
E18: =E12 & " at 2020 FYE price base" -> Water: RCV adjustment from totex menu model - Difference at 2020 FYE price base | F18: =F12 * F$14 -> 1.786997519 | G18: £m | H18: 2020 FYE
E20: =Differences!E$30 -> Water ~ NPV effect of 50% of proceeds from disposals of interest in land - Difference | F20: =Differences!F$30 -> 0.06238039461 | G20: =Differences!G$30 -> £m | H20: =Differences!H$30 -> 2017/18 FYA
E21: =Indexation!E$89 -> RPI inflate from 2018 FYA to 2020 FYE - Blind Year | F21: =Indexation!F$89 -> 1.064354785 | G21: =Indexation!G$89 -> factor
E22: =E20 & " at 2020 FYE price base" -> Water ~ NPV effect of 50% of proceeds from disposals of interest in land - Difference at 2020 FYE price base | F22: =F20 * F21 -> 0.06639487149 | G22: £m | H22: 2020 FYE
E25: =Differences!E$29 -> Water ~ Other adjustment to wholesale RCV - Difference | F25: =Differences!F$29 -> 0 | G25: =Differences!G$29 -> £m | H25: =Differences!H$29 -> 2017/18 FYE
E26: =Indexation!E$123 -> CPIH deflate from 2018 FYE to 2018 FYA - IFRS 16 and Other - Blind Year | F26: =Indexation!F$123 -> 0.9915953061 | G26: =Indexation!G$123 -> factor
E27: =E25 & " at 2017-18 FYA CPIH deflated price base" -> Water ~ Other adjustment to wholesale RCV - Difference at 2017-18 FYA CPIH deflated price base | F27: =F25 * F$26 -> 0 | G27: £m | H27: 2017/18 FYA CPIH
C30: PR14 reconciliation adjustments expressed in 2017-18 FYA CPIH deflated price base
E31: =E$22 -> Water ~ NPV effect of 50% of proceeds from disposals of interest in land - Difference at 2020 FYE price base | F31: =F$22 -> 0.06639487149 | G31: £m | H31: 2020 FYE
E32: =E$16 -> Net performance payment / (penalty) applied to RCV for end of period ODI adjustments ~ Water resources - Difference at 2020 FYE price base | F32: =F$16 -> 0 | G32: =G$16 -> £m | H32: 2020 FYE
E33: =E$17 -> Net performance payment / (penalty) applied to RCV for end of period ODI adjustments ~ Water network plus - Difference at 2020 FYE price base | F33: =F$17 -> 0 | G33: £m | H33: 2020 FYE
E34: =E$18 -> Water: RCV adjustment from totex menu model - Difference at 2020 FYE price base | F34: =F$18 -> 1.786997519 | G34: =G$18 -> £m | H34: =H$18 -> 2020 FYE
E37: =Indexation!E$120 -> CPIH deflate from 2020 FYE to 2018 FYA - Blind Year | F37: =Indexation!F$120 -> 0.9596378146 | G37: =Indexation!G$120 -> factor
E39: Water ~ NPV effect of 50% of proceeds from disposals of interest in land at 2017-18 FYA CPIH deflated price base | F39: =F31 * F$37 -> 0.06371502938 | G39: £m | H39: 2017/18 FYA CPIH
E40: ODI end of period RCV adjustment ~ Water resources at 2017-18 FYA CPIH deflated price base | F40: =F32 * F$37 -> 0 | G40: £m | H40: 2017/18 FYA CPIH
E41: ODI end of period RCV adjustment ~ Water network plus at 2017-18 FYA CPIH deflated price base | F41: =F33 * F$37 -> 0 | G41: £m | H41: 2017/18 FYA CPIH
E42: Water: Totex menu RCV adjustment at 2017-18 FYA CPIH deflated price base | F42: =F34 * F$37 -> 1.714870394 | G42: £m | H42: 2017/18 FYA CPIH
B43: =B$27 -> 0 | C43: 0 | D43: 0 | E43: Water ~ Other adjustment to wholesale RCV - Difference at 2017-18 FYA CPIH deflated price base | F43: =F$27 -> 0 | G43: =G$27 -> £m | H43: 2017/18 FYA CPIH
B45: Total wholesale water RCV at 31 March 2020 post midnight adjustments before allocation to price control units at 2020 FYE price base
E46: =E$16 -> Net performance payment / (penalty) applied to RCV for end of period ODI adjustments ~ Water resources - Difference at 2020 FYE price base | F46: =F$16 -> 0 | G46: =G$16 -> £m | H46: 2020 FYE
E47: =E$17 -> Net performance payment / (penalty) applied to RCV for end of period ODI adjustments ~ Water network plus - Difference at 2020 FYE price base | F47: =F$17 -> 0 | G47: £m | H47: 2020 FYE
E48: =E$18 -> Water: RCV adjustment from totex menu model - Difference at 2020 FYE price base | F48: =F$18 -> 1.786997519 | G48: =G$18 -> £m | H48: 2020 FYE
E49: =E$22 -> Water ~ NPV effect of 50% of proceeds from disposals of interest in land - Difference at 2020 FYE price base | F49: =F$22 -> 0.06639487149 | G49: =G$22 -> £m | H49: =H$22 -> 2020 FYE
A55: WASTEWATER SERVICES
B57: Wastewater RCV closing balance at 31 March 2020
E58: =Differences!E$51 -> Net performance payment / (penalty) applied to RCV for end of period ODI adjustments ~ Wastewater network plus - Difference | F58: =Differences!F$51 -> 0 | G58: =Differences!G$51 -> £m | H58: =Differences!H$51 -> 2012/13 FYA
E59: =Differences!E$52 -> Wastewater: RCV adjustment from totex menu model - Difference | F59: =Differences!F$52 -> 0 | G59: =Differences!G$52 -> £m | H59: =Differences!H$52 -> 2012/13 FYA
E61: =Indexation!E$82 -> RPI inflate from 2013 FYA to 2020 FYE - Blind Year | F61: =Indexation!F$82 -> 1.195872075 | G61: =Indexation!G$82 -> factor
E63: =E58 & " at 2020 FYE price base" -> Net performance payment / (penalty) applied to RCV for end of period ODI adjustments ~ Wastewater network plus - Difference at 2020 FYE price base | F63: =F58 * F$61 -> 0 | G63: £m | H63: 2020 FYE
E64: =E59 & " at 2020 FYE price base" -> Wastewater: RCV adjustment from totex menu model - Difference at 2020 FYE price base | F64: =F59 * F$61 -> 0 | G64: £m | H64: 2020 FYE
E66: =InpActive!E$192 -> Wastewater ~ NPV effect of 50% of proceeds from disposals of interest in land - Final Determination | F66: =Differences!F$54 -> 0 | G66: =InpActive!G$192 -> £m | H66: =Differences!H$54 -> 2017/18 FYA
E67: =Indexation!E$89 -> RPI inflate from 2018 FYA to 2020 FYE - Blind Year | F67: =Indexation!F$89 -> 1.064354785 | G67: =Indexation!G$89 -> factor
E68: =E66 & " at 2020 FYE price base" -> Wastewater ~ NPV effect of 50% of proceeds from disposals of interest in land - Final Determination at 2020 FYE price base | F68: =F66 * F67 -> 0 | G68: £m | H68: 2020 FYE
E71: =InpActive!E$191 -> Wastewater ~ Other adjustment to wholesale RCV - Final Determination | F71: =Differences!F$53 -> 0 | G71: =InpActive!G$191 -> £m | H71: =Differences!H$53 -> 2017/18 FYE
E72: =Indexation!E$123 -> CPIH deflate from 2018 FYE to 2018 FYA - IFRS 16 and Other - Blind Year | F72: =Indexation!F$123 -> 0.9915953061 | G72: =Indexation!G$123 -> factor
E73: =E71 & " at 2017-18 FYA CPIH deflated price base" -> Wastewater ~ Other adjustment to wholesale RCV - Final Determination at 2017-18 FYA CPIH deflated price base | F73: =F71 * F$72 -> 0 | G73: £m | H73: 2017/18 FYA
C76: PR14 reconciliation adjustments expressed in 2017-18 FYA CPIH deflated price base
E77: =E$68 -> Wastewater ~ NPV effect of 50% of proceeds from disposals of interest in land - Final Determination at 2020 FYE price base | F77: =F$68 -> 0 | G77: =G$68 -> £m | H77: =H$68 -> 2020 FYE
E78: =E$63 -> Net performance payment / (penalty) applied to RCV for end of period ODI adjustments ~ Wastewater network plus - Difference at 2020 FYE price base | F78: =F$63 -> 0 | G78: =G$63 -> £m | H78: =H$63 -> 2020 FYE
E79: =E$64 -> Wastewater: RCV adjustment from totex menu model - Difference at 2020 FYE price base | F79: =F$64 -> 0 | G79: =G$64 -> £m | H79: =H$64 -> 2020 FYE
E82: =Indexation!E$120 -> CPIH deflate from 2020 FYE to 2018 FYA - Blind Year | F82: =Indexation!F$120 -> 0.9596378146 | G82: =Indexation!G$120 -> factor
E84: Wastewater ~ NPV effect of 50% of proceeds from disposals of interest in land - BY Adjustment at 2017-18 FYA CPIH deflated price base | F84: =F77 * F$82 -> 0 | G84: £m | H84: 2017/18 FYA
E85: ODI end of period RCV adjustment ~ Wastewater network plus - BY Adjustment at 2017-18 FYA CPIH deflated price base | F85: =F78 * F$82 -> 0 | G85: £m | H85: 2017/18 FYA
E86: Wastewater: Totex menu RCV adjustment - BY adjustment at 2017-18 FYA CPIH deflated price base | F86: =F79 * F$82 -> 0 | G86: £m | H86: 2017/18 FYA
B87: =B73 -> 0 | C87: 0 | D87: 0 | E87: Wastewater ~ Other adjustment to wholesale RCV - BY Adjustment at 2017-18 FYA CPIH deflated price base | F87: 0 | G87: £m | H87: 2017/18 FYA
B91: Total wholesale wastewater RCV at 31 March 2020 post midnight adjustments before allocation to price control units at 2020 FYE price base
E92: =E$63 -> Net performance payment / (penalty) applied to RCV for end of period ODI adjustments ~ Wastewater network plus - Difference at 2020 FYE price base | F92: =F$63 -> 0 | G92: =G$63 -> £m | H92: =H$63 -> 2020 FYE
E93: =E$64 -> Wastewater: RCV adjustment from totex menu model - Difference at 2020 FYE price base | F93: =F$64 -> 0 | G93: =G$64 -> £m | H93: =H$64 -> 2020 FYE
E94: =E$68 -> Wastewater ~ NPV effect of 50% of proceeds from disposals of interest in land - Final Determination at 2020 FYE price base | F94: =F$68 -> 0 | G94: =G$68 -> £m | H94: =H$68 -> 2020 FYE
A98: DUMMY PRICE CONTROL
B100: Dummy RCV closing balance at 31 March 2020
E101: =Differences!E$80 -> Dummy RCV (prior to midnight adjustments) 31 March 2020 - Difference | F101: =Differences!F$80 -> 0 | G101: =Differences!G$80 -> £m | H101: =Differences!H$80 -> 2017/18 FYE
E103: =Indexation!E$101 -> RPI inflate from 2018 FYE to 2020 FYE - Blind Year | F103: =Indexation!F$101 -> 1.051383399 | G103: =Indexation!G$101 -> factor
E105: =E101 & " at 2020 FYE price base" -> Dummy RCV (prior to midnight adjustments) 31 March 2020 - Difference at 2020 FYE price base | F105: =F101 * F103 -> 0 | G105: £m | H105: 2020 FYE
E107: =Differences!E$81 -> Net performance payment / (penalty) applied to RCV for end of period ODI adjustments ~ Thames Tideway - Difference | F107: =Differences!F$81 -> 0 | G107: =Differences!G$81 -> £m | H107: =Differences!H$81 -> 2012/13 FYA
E108: =Differences!E$82 -> Dummy: RCV adjustment from totex menu model - Difference | F108: =Differences!F$82 -> 0 | G108: =Differences!G$82 -> £m | H108: =Differences!H$82 -> 2012/13 FYA
E110: =Indexation!E$82 -> RPI inflate from 2013 FYA to 2020 FYE - Blind Year | F110: =Indexation!F$82 -> 1.195872075 | G110: =Indexation!G$82 -> factor
E112: =E107 & " at 2020 FYE price base" -> Net performance payment / (penalty) applied to RCV for end of period ODI adjustments ~ Thames Tideway - Difference at 2020 FYE price base | F112: =F107 * F$110 -> 0 | G112: £m | H112: 2020 FYE
E113: =E108 & " at 2020 FYE price base" -> Dummy: RCV adjustment from totex menu model - Difference at 2020 FYE price base | F113: =F108 * F$110 -> 0 | G113: £m | H113: 2020 FYE
A116: =Differences!A$84 -> 0 | E116: =Differences!E$84 -> Dummy: NPV effect of 100% of proceeds from disposals of interest in land - Difference | F116: =Differences!F$84 -> 0 | G116: =Differences!G$84 -> £m | H116: =Differences!H$84 -> 2017/18 FYA
E118: =Indexation!E$89 -> RPI inflate from 2018 FYA to 2020 FYE - Blind Year | F118: =Indexation!F$89 -> 1.064354785 | G118: =Indexation!G$89 -> factor
E120: =E116 & " at 2020 FYE price base" -> Dummy: NPV effect of 100% of proceeds from disposals of interest in land - Difference at 2020 FYE price base | F120: =F116 * F118 -> 0 | G120: £m | H120: 2020 FYE
B123: =Differences!B$83 -> 0 | C123: =Differences!C$83 -> 0 | D123: =Differences!D$83 -> 0 | E123: =Differences!E$83 -> Dummy ~ Other adjustment to wholesale RCV - Difference | F123: =Differences!F$83 -> 0 | G123: =Differences!G$83 -> £m | H123: =Differences!H$87 -> 2017/18 FYE
E125: =Indexation!E$123 -> CPIH deflate from 2018 FYE to 2018 FYA - IFRS 16 and Other - Blind Year | F125: =Indexation!F$123 -> 0.9915953061 | G125: =Indexation!G$123 -> factor
E127: Dummy other RCV adjustment at 2017-18 FYA CPIH deflated price base | F127: =F123 * F$125 -> 0 | G127: £m | H127: 2017/18 FYA
C130: PR14 reconciliation adjustments expressed in 2017-18 FYA CPIH deflated price base
E131: =E$112 -> Net performance payment / (penalty) applied to RCV for end of period ODI adjustments ~ Thames Tideway - Difference at 2020 FYE price base | F131: =F$112 -> 0 | G131: =G$112 -> £m | H131: =H$112 -> 2020 FYE
E132: =E$113 -> Dummy: RCV adjustment from totex menu model - Difference at 2020 FYE price base | F132: =F$113 -> 0 | G132: £m | H132: 2020 FYE
E134: =E$120 -> Dummy: NPV effect of 100% of proceeds from disposals of interest in land - Difference at 2020 FYE price base | F134: =F$120 -> 0 | G134: £m | H134: 2020 FYE
E136: =Indexation!E$120 -> CPIH deflate from 2020 FYE to 2018 FYA - Blind Year | F136: =Indexation!F$120 -> 0.9596378146 | G136: =Indexation!G$120 -> factor
E138: ODI end of period RCV adjustment ~ Thames Tideway at 2017-18 FYA CPIH deflated price base | F138: =F131 * F$136 -> 0 | G138: £m | H138: 2017/18 FYA
E139: Dummy ~ Totex menu RCV adjustment at 2017-18 FYA CPIH deflated price base | F139: =F132 * F$136 -> 0 | G139: £m | H139: 2017/18 FYA
E141: Dummy: NPV effect of 100% of proceeds from disposals of interest in land at 2017-18 FYA CPIH deflated price base | F141: =F134 * F$136 -> 0 | G141: £m | H141: 2017/18 FYA
A144: End of sheet

Sheet Rev Calc
A1: =RIGHT(CELL("filename", $A$1), LEN(CELL("filename", $A$1)) - SEARCH("]", CELL("filename", $A$1))) -> Rev Calc
E2: =Time!E$25 -> Model period ending | J2: =Time!J$25 -> 2013-03-31 | K2: =Time!K$25 -> 2014-03-31 | L2: =Time!L$25 -> 2015-03-31 | M2: =Time!M$25 -> 2016-03-31 | N2: =Time!N$25 -> 2017-03-31 | O2: =Time!O$25 -> 2018-03-31 | P2: =Time!P$25 -> 2019-03-31 | Q2: =Time!Q$25 -> 2020-03-31 | R2: =Time!R$25 -> 2021-03-31 | S2: =Time!S$25 -> 2022-03-31 | T2: =Time!T$25 -> 2023-03-31 | U2: =Time!U$25 -> 2024-03-31 | V2: =Time!V$25 -> 2025-03-31
E3: =Time!E$80 -> Timeline label | J3: =Time!J$80 -> Pre-Fcst | K3: =Time!K$80 -> Pre-Fcst | L3: =Time!L$80 -> Pre-Fcst | M3: =Time!M$80 -> Pre-Fcst | N3: =Time!N$80 -> Pre-Fcst | O3: =Time!O$80 -> Pre-Fcst | P3: =Time!P$80 -> Pre-Fcst | Q3: =Time!Q$80 -> Pre-Fcst | R3: =Time!R$80 -> Forecast | S3: =Time!S$80 -> Forecast | T3: =Time!T$80 -> Forecast | U3: =Time!U$80 -> Forecast | V3: =Time!V$80 -> Forecast
E4: =Time!E$103 -> Financial year ending | J4: =Time!J$103 -> 2013 | K4: =Time!K$103 -> 2014 | L4: =Time!L$103 -> 2015 | M4: =Time!M$103 -> 2016 | N4: =Time!N$103 -> 2017 | O4: =Time!O$103 -> 2018 | P4: =Time!P$103 -> 2019 | Q4: =Time!Q$103 -> 2020 | R4: =Time!R$103 -> 2021 | S4: =Time!S$103 -> 2022 | T4: =Time!T$103 -> 2023 | U4: =Time!U$103 -> 2024 | V4: =Time!V$103 -> 2025
E5: =Time!E$10 -> Model column counter | F5: Constant | G5: Unit | H5: Total | J5: =Time!J$10 -> 1 | K5: =Time!K$10 -> 2 | L5: =Time!L$10 -> 3 | M5: =Time!M$10 -> 4 | N5: =Time!N$10 -> 5 | O5: =Time!O$10 -> 6 | P5: =Time!P$10 -> 7 | Q5: =Time!Q$10 -> 8 | R5: =Time!R$10 -> 9 | S5: =Time!S$10 -> 10 | T5: =Time!T$10 -> 11 | U5: =Time!U$10 -> 12 | V5: =Time!V$10 -> 13
A7: WATER SERVICES INPUTS INFLATION
D9: Water resources
E10: =Differences!E$110 -> Net performance payment / (penalty) applied to revenue for in-period ODI adjustments ~ Water resources - Difference | F10: =Differences!F$110 -> 0 | G10: =Differences!G$110 -> £m | H10: =Differences!H$110 -> 2012/13 FYA
E11: =Differences!E$111 -> Net performance payment / (penalty) applied to revenue for end of period ODI adjustments ~ Water resources - Difference | F11: =Differences!F$111 -> 0 | G11: =Differences!G$111 -> £m | H11: =Differences!H$111 -> 2012/13 FYA
E12: =Differences!E$112 -> Total value of export incentive to be paid to water resources at PR19 - Difference | F12: =Differences!F$112 -> 0 | G12: =Differences!G$112 -> £m | H12: =Differences!H$112 -> 2012/13 FYA
E13: =Differences!E$113 -> Total value of import incentive - water resources - Difference | F13: =Differences!F$113 -> 0 | G13: =Differences!G$113 -> £m | H13: =Differences!H$113 -> 2012/13 FYA
E15: =Indexation!E$82 -> RPI inflate from 2013 FYA to 2020 FYE - Blind Year | F15: =Indexation!F$82 -> 1.195872075 | G15: =Indexation!G$82 -> factor
E17: =E10 & " at 2020 FYE price base" -> Net performance payment / (penalty) applied to revenue for in-period ODI adjustments ~ Water resources - Difference at 2020 FYE price base | F17: =F10 * F$15 -> 0 | G17: £m | H17: 2020 FYE
E18: =E11 & " at 2020 FYE price base" -> Net performance payment / (penalty) applied to revenue for end of period ODI adjustments ~ Water resources - Difference at 2020 FYE price base | F18: =F11 * F$15 -> 0 | G18: £m | H18: 2020 FYE
E19: Water trading total value of export incentive ~ Water resources at 2020 FYE price base | F19: =F12 * F$15 -> 0 | G19: £m | H19: 2020 FYE
E20: Water trading total value of import incentive ~ Water resources at 2020 FYE price base | F20: =F13 * F$15 -> 0 | G20: £m | H20: 2020 FYE
B22: Water network plus
E23: =Differences!E$139 -> Net performance payment / (penalty) applied to revenue for in-period ODI adjustments ~ Water network plus - Difference | F23: =Differences!F$139 -> 0 | G23: =Differences!G$139 -> £m | H23: =Differences!H$139 -> 2012/13 FYA
E24: =Differences!E$140 -> Net performance payment / (penalty) applied to revenue for end of period ODI adjustments ~ Water network plus - Difference | F24: =Differences!F$140 -> -1.7374 | G24: =Differences!G$140 -> £m | H24: =Differences!H$140 -> 2012/13 FYA
E25: =Differences!E$141 -> Water: revenue adjustment from totex menu model - Difference | F25: =Differences!F$141 -> 0.8695626158 | G25: =Differences!G$141 -> £m | H25: =Differences!H$141 -> 2012/13 FYA
E26: =Differences!E$142 -> Total value of export incentive to be paid to water network plus at PR19 - Difference | F26: =Differences!F$142 -> 0 | G26: =Differences!G$142 -> £m | H26: =Differences!H$142 -> 2012/13 FYA
E27: =Differences!E$143 -> Total value of import incentive - water network plus - Difference | F27: =Differences!F$143 -> 0 | G27: =Differences!G$143 -> £m | H27: =Differences!H$143 -> 2012/13 FYA
B28: =Differences!B$145 -> 0 | C28: =Differences!C$145 -> 0 | D28: =Differences!D$145 -> 0 | E28: =Differences!E$145 -> Other revenue adjustment - water network plus - Difference | F28: =Differences!F$145 -> 0 | G28: =Differences!G$145 -> £m | H28: =Differences!H$145 -> 2012/13 FYA
E30: =Indexation!E$82 -> RPI inflate from 2013 FYA to 2020 FYE - Blind Year | F30: =Indexation!F$82 -> 1.195872075 | G30: =Indexation!G$82 -> factor
E32: =E23 & " at 2020 FYE price base" -> Net performance payment / (penalty) applied to revenue for in-period ODI adjustments ~ Water network plus - Difference at 2020 FYE price base | F32: =F23 * F$30 -> 0 | G32: £m | H32: 2020 FYE
E33: =E24 & " at 2020 FYE price base" -> Net performance payment / (penalty) applied to revenue for end of period ODI adjustments ~ Water network plus - Difference at 2020 FYE price base | F33: -2.077708143 | G33: £m | H33: 2020 FYE
E34: ="Totex menu revenue adjustment ~ Water network plus " & " at 2020 FYE price base" -> Totex menu revenue adjustment ~ Water network plus at 2020 FYE price base | F34: 1.03988565 | G34: £m | H34: 2020 FYE
E35: Water trading total value of export incentive - Water network plus at 2020 FYE price base | F35: 0 | G35: £m | H35: 2020 FYE
E36: Water trading total value of import incentive - Water network plus at 2020 FYE price base | F36: 0 | G36: £m | H36: 2020 FYE
E37: Other revenue adjustment - water network plus at 2020 FYE price base | F37: 0 | G37: £m | H37: 2020 FYE
E39: =Differences!E$144 -> WRFIM total reward / (penalty) at end of AMP6 ~ Water - Difference | F39: =Differences!F$144 -> 4.274858573 | G39: =Differences!G$144 -> £m | H39: =Differences!H$144 -> November 2018/2019
E41: =Indexation!E$108 -> RPI inflate from November 2019 FYE to 2020 FYE - Blind Year | F41: =Indexation!F$108 -> 1.028109628 | G41: =Indexation!G$108 -> factor
E43: WRFIM total reward / (penalty) at the end of AMP6 ~ Water network plus at 2020 FYE price base | F43: =F39 * F$41 -> 4.395023255 | G43: £m | H43: 2020 FYE
A46: WASTEWATER SERVICES INPUTS INFLATION
B48: Bioresources
E49: =Differences!E$162 -> Net performance payment / (penalty) applied to revenue for in-period ODI adjustments ~ Bioresources - Difference | F49: =Differences!F$162 -> 0 | G49: =Differences!G$162 -> £m | H49: =Differences!H$162 -> 2012/13 FYA
E50: =Differences!E$163 -> Net performance payment / (penalty) applied to revenue for end of period ODI adjustments ~ Bioresources - Difference | F50: =Differences!F$163 -> 0 | G50: =Differences!G$163 -> £m | H50: =Differences!H$163 -> 2012/13 FYA
E52: =Indexation!E$82 -> RPI inflate from 2013 FYA to 2020 FYE - Blind Year | F52: =Indexation!F$82 -> 1.195872075 | G52: =Indexation!G$82 -> factor
E54: =E49 & " at 2020 FYE price base" -> Net performance payment / (penalty) applied to revenue for in-period ODI adjustments ~ Bioresources - Difference at 2020 FYE price base | F54: =F49 * F$52 -> 0 | G54: £m | H54: 2020 FYE
E55: =E50 & " at 2020 FYE price base" -> Net performance payment / (penalty) applied to revenue for end of period ODI adjustments ~ Bioresources - Difference at 2020 FYE price base | F55: =F50 * F$52 -> 0 | G55: £m | H55: 2020 FYE
B57: Wastewater network plus
E58: =Differences!E$183 -> Net performance payment / (penalty) applied to revenue for in-period ODI adjustments ~ Wastewater network plus - Difference | F58: =Differences!F$183 -> 0 | G58: =Differences!G$183 -> £m | H58: =Differences!H$183 -> 2012/13 FYA
E59: =Differences!E$184 -> Net performance payment / (penalty) applied to revenue for end of period ODI adjustments ~ Wastewater network plus - Difference | F59: =Differences!F$184 -> 0 | G59: =Differences!G$184 -> £m | H59: =Differences!H$184 -> 2012/13 FYA
E60: =Differences!E$185 -> Wastewater: revenue adjustment from totex menu model - Difference | F60: =Differences!F$185 -> 0 | G60: =Differences!G$185 -> £m | H60: =Differences!H$185 -> 2012/13 FYA
B61: =Differences!B$187 -> 0 | C61: =Differences!C$187 -> 0 | D61: =Differences!D$187 -> 0 | E61: =Differences!E$187 -> Other revenue adjustment - wastewater network plus - Difference | F61: =Differences!F$187 -> 0 | G61: =Differences!G$187 -> £m | H61: =Differences!H$187 -> 2012/13 FYA
E63: =Indexation!E$82 -> RPI inflate from 2013 FYA to 2020 FYE - Blind Year | F63: =Indexation!F$82 -> 1.195872075 | G63: =Indexation!G$82 -> factor
E65: =E58 & " at 2020 FYE price base" -> Net performance payment / (penalty) applied to revenue for in-period ODI adjustments ~ Wastewater network plus - Difference at 2020 FYE price base | F65: =F58 * F$63 -> 0 | G65: £m | H65: 2020 FYE
E66: =E59 & " at 2020 FYE price base" -> Net performance payment / (penalty) applied to revenue for end of period ODI adjustments ~ Wastewater network plus - Difference at 2020 FYE price base | F66: =F59 * F$63 -> 0 | G66: £m | H66: 2020 FYE
E67: =E60 & " at 2020 FYE price base" -> Wastewater: revenue adjustment from totex menu model - Difference at 2020 FYE price base | F67: =F60 * F$63 -> 0 | G67: £m | H67: 2020 FYE
E68: Other revenue adjustment - wastewater network plus at 2020 FYE price base | F68: =F61 *F$63 -> 0 | G68: £m | H68: 2020 FYE
E70: =Differences!E$186 -> WRFIM total reward / (penalty) at the end of AMP6 ~ Wastewater - Difference | F70: =Differences!F$186 -> 0 | G70: =Differences!G$186 -> £m | H70: =Differences!H$186 -> November 2018/2019
E72: =Indexation!E$108 -> RPI inflate from November 2019 FYE to 2020 FYE - Blind Year | F72: =Indexation!F$108 -> 1.028109628 | G72: =Indexation!G$108 -> factor
E74: WRFIM total reward / (penalty) at the end of AMP6 ~ Wastewater network plus at 2020 FYE price base | F74: =F70 * F72 -> 0 | G74: £m | H74: 2020 FYE
A76: DUMMY CONTROL
B78: Dummy control
E79: =Differences!E$202 -> Dummy: revenue adjustment from totex menu model - Difference | F79: =Differences!F$202 -> 0 | G79: =Differences!G$202 -> £m | H79: =Differences!H$202 -> 2012/13 FYA
E81: =Indexation!E$82 -> RPI inflate from 2013 FYA to 2020 FYE - Blind Year | F81: =Indexation!F$82 -> 1.195872075 | G81: =Indexation!G$82 -> factor
E83: =E79 & " at 2020 FYE price base" -> Dummy: revenue adjustment from totex menu model - Difference at 2020 FYE price base | F83: =F79 * F$81 -> 0 | G83: £m | H83: 2020 FYE
E85: =Differences!E203 -> Dummy: WRFIM total reward / (penalty) at the end of AMP6 - Difference | F85: =Differences!F203 -> 0 | G85: =Differences!G203 -> £m | H85: =Differences!H203 -> November 2018/2019
E86: =Indexation!E$108 -> RPI inflate from November 2019 FYE to 2020 FYE - Blind Year | F86: =Indexation!F$108 -> 1.028109628 | G86: =Indexation!G$108 -> factor
E88: Dummy: WRFIM total reward / (penalty) at the end of AMP6 at 2020 FYE price base | F88: =F85 * F86 -> 0 | G88: £m | H88: 2020 FYE
A90: RESIDENTIAL RETAIL INPUTS INFLATION
E92: =Differences!E$221 -> Net performance payment / (penalty) applied to revenue for in-period ODI adjustments ~ Residential retail - Difference | F92: =Differences!F$221 -> 0 | G92: =Differences!G$221 -> £m | H92: =Differences!H$221 -> 2012/13 FYA
E93: =Differences!E$222 -> Net performance payment / (penalty) applied to revenue for end of period ODI adjustments ~ Residential retail - Difference | F93: =Differences!F$222 -> 0 | G93: =Differences!G$222 -> £m | H93: =Differences!H$222 -> 2012/13 FYA
E94: =Differences!E$223 -> Residential retail revenue adjustment at end of AMP6 - Difference | F94: =Differences!F$223 -> 0.6049717 | G94: =Differences!G$223 -> £m | H94: =Differences!H$223 -> 2019/20 FYE
E95: =Differences!E$224 -> SIM forecast revenue adjustment - Difference | F95: =Differences!F$224 -> 0 | G95: =Differences!G$224 -> £m | H95: =Differences!H$224 -> 2017/18 FYA
E97: =Indexation!E$82 -> RPI inflate from 2013 FYA to 2020 FYE - Blind Year | F97: =Indexation!F$82 -> 1.195872075 | G97: =Indexation!G$82 -> factor
E98: =Indexation!E$95 -> RPI inflate from 2020 FYE to 2020 FYE - Blind Year | F98: =Indexation!F$95 -> 1 | G98: =Indexation!G$95 -> factor
E99: =Indexation!E$89 -> RPI inflate from 2018 FYA to 2020 FYE - Blind Year | F99: =Indexation!F$89 -> 1.064354785 | G99: =Indexation!G$89 -> factor
E101: =E92 & " at 2020 FYE price base" -> Net performance payment / (penalty) applied to revenue for in-period ODI adjustments ~ Residential retail - Difference at 2020 FYE price base | F101: =F92 * F$97 -> 0 | G101: £m | H101: 2020 FYE
E102: =E93 & " at 2020 FYE price base" -> Net performance payment / (penalty) applied to revenue for end of period ODI adjustments ~ Residential retail - Difference at 2020 FYE price base | F102: =F93 * F$97 -> 0 | G102: £m | H102: 2020 FYE
E103: =E94 & " at 2020 FYE price base" -> Residential retail revenue adjustment at end of AMP6 - Difference at 2020 FYE price base | F103: =F94 * F98 -> 0.6049717 | G103: £m | H103: 2020 FYE
E104: =E95 & " at 2020 FYE price base" -> SIM forecast revenue adjustment - Difference at 2020 FYE price base | F104: =F95 * F99 -> 0 | G104: £m | H104: 2020 FYE
A107: BUSINESS RETAIL INPUTS INFLATION
E109: =Differences!E$240 -> Net performance payment / (penalty) applied to revenue for in-period ODI adjustments ~ Business retail - Difference | F109: =Differences!F$240 -> 0 | G109: =Differences!G$240 -> £m | H109: =Differences!H$240 -> 2012/13 FYA
E110: =Differences!E$241 -> Net performance payment / (penalty) applied to revenue for end of period ODI adjustments ~ Business retail - Difference | F110: =Differences!F$241 -> 0 | G110: =Differences!G$241 -> £m | H110: =Differences!H$241 -> 2012/13 FYA
B111: =Differences!B$242 -> 0 | C111: =Differences!C$242 -> 0 | D111: =Differences!D$242 -> 0 | E111: =Differences!E$242 -> Non-household SIM adjustment - business retail - Difference | F111: =Differences!F$242 -> 0 | G111: =Differences!G$242 -> £m | H111: =Differences!H$242 -> 2017/18 FYA
E113: =Indexation!E$82 -> RPI inflate from 2013 FYA to 2020 FYE - Blind Year | F113: =Indexation!F$82 -> 1.195872075 | G113: =Indexation!G$82 -> factor
E114: =Indexation!E$89 -> RPI inflate from 2018 FYA to 2020 FYE - Blind Year | F114: =Indexation!F$89 -> 1.064354785 | G114: =Indexation!G$89 -> factor
E116: =E109 & " at 2020 FYE price base" -> Net performance payment / (penalty) applied to revenue for in-period ODI adjustments ~ Business retail - Difference at 2020 FYE price base | F116: =F109 * F$113 -> 0 | G116: £m | H116: 2020 FYE
E117: =E110 & " at 2020 FYE price base" -> Net performance payment / (penalty) applied to revenue for end of period ODI adjustments ~ Business retail - Difference at 2020 FYE price base | F117: =F110 * F$113 -> 0 | G117: £m | H117: 2020 FYE
E118: Non-household SIM adjustment - business retail at 2020 FYE price base | F118: =F111 * F114 -> 0 | G118: £m | H118: 2020 FYE
A121: PR14 REVENUE RECONCILIATION ADJUSTMENTS EXPRESSED IN 2017-18 FYA CPIH DEFLATED PRICE BASE
E123: =E$17 -> Net performance payment / (penalty) applied to revenue for in-period ODI adjustments ~ Water resources - Difference at 2020 FYE price base | F123: =F$17 -> 0 | G123: =G$17 -> £m | H123: =H$17 -> 2020 FYE
E124: =E$18 -> Net performance payment / (penalty) applied to revenue for end of period ODI adjustments ~ Water resources - Difference at 2020 FYE price base | F124: =F$18 -> 0 | G124: =G$18 -> £m | H124: =H$18 -> 2020 FYE
E125: =E$19 -> Water trading total value of export incentive ~ Water resources at 2020 FYE price base | F125: =F$19 -> 0 | G125: =G$19 -> £m | H125: =H$19 -> 2020 FYE
E126: =E$20 -> Water trading total value of import incentive ~ Water resources at 2020 FYE price base | F126: =F$20 -> 0 | G126: =G$20 -> £m | H126: =H$20 -> 2020 FYE
E127: =E$32 -> Net performance payment / (penalty) applied to revenue for in-period ODI adjustments ~ Water network plus - Difference at 2020 FYE price base | F127: =F$32 -> 0 | G127: =G$32 -> £m | H127: =H$32 -> 2020 FYE
E128: =E$33 -> Net performance payment / (penalty) applied to revenue for end of period ODI adjustments ~ Water network plus - Difference at 2020 FYE price base | F128: =F$33 -> -2.077708143 | G128: =G$33 -> £m | H128: =H$33 -> 2020 FYE
E129: =E$34 -> Totex menu revenue adjustment ~ Water network plus at 2020 FYE price base | F129: =F$34 -> 1.03988565 | G129: =G$34 -> £m | H129: =H$34 -> 2020 FYE
E130: =E$35 -> Water trading total value of export incentive - Water network plus at 2020 FYE price base | F130: =F$35 -> 0 | G130: =G$35 -> £m | H130: =H$35 -> 2020 FYE
E131: =E$36 -> Water trading total value of import incentive - Water network plus at 2020 FYE price base | F131: =F$36 -> 0 | G131: =G$36 -> £m | H131: =H$36 -> 2020 FYE
E132: =E$43 -> WRFIM total reward / (penalty) at the end of AMP6 ~ Water network plus at 2020 FYE price base | F132: =F$43 -> 4.395023255 | G132: =G$43 -> £m | H132: =H$43 -> 2020 FYE
B133: =B$37 -> 0 | C133: 0 | D133: 0 | E133: Other revenue adjustment - water network plus at 2020 FYE price base | F133: 0 | G133: £m | H133: 2020 FYE
E134: =E$54 -> Net performance payment / (penalty) applied to revenue for in-period ODI adjustments ~ Bioresources - Difference at 2020 FYE price base | F134: =F$54 -> 0 | G134: =G$54 -> £m | H134: =H$54 -> 2020 FYE
E135: =E$55 -> Net performance payment / (penalty) applied to revenue for end of period ODI adjustments ~ Bioresources - Difference at 2020 FYE price base | F135: =F$55 -> 0 | G135: =G$55 -> £m | H135: =H$55 -> 2020 FYE
E136: =E$65 -> Net performance payment / (penalty) applied to revenue for in-period ODI adjustments ~ Wastewater network plus - Difference at 2020 FYE price base | F136: =F$65 -> 0 | G136: =G$65 -> £m | H136: =H$65 -> 2020 FYE
E137: =E$66 -> Net performance payment / (penalty) applied to revenue for end of period ODI adjustments ~ Wastewater network plus - Difference at 2020 FYE price base | F137: =F$66 -> 0 | G137: =G$66 -> £m | H137: =H$66 -> 2020 FYE
E138: =E$67 -> Wastewater: revenue adjustment from totex menu model - Difference at 2020 FYE price base | F138: =F$67 -> 0 | G138: =G$67 -> £m | H138: =H$67 -> 2020 FYE
E139: =E$74 -> WRFIM total reward / (penalty) at the end of AMP6 ~ Wastewater network plus at 2020 FYE price base | F139: =F$74 -> 0 | G139: =G$74 -> £m | H139: =H$74 -> 2020 FYE
B140: =B$68 -> 0 | C140: 0 | D140: 0 | E140: Other revenue adjustment - wastewater network plus at 2020 FYE price base | F140: 0 | G140: £m | H140: 2020 FYE
E141: =E$83 -> Dummy: revenue adjustment from totex menu model - Difference at 2020 FYE price base | F141: =F$83 -> 0 | G141: =G$83 -> £m | H141: =H$83 -> 2020 FYE
E142: =E$88 -> Dummy: WRFIM total reward / (penalty) at the end of AMP6 at 2020 FYE price base | F142: =F$88 -> 0 | G142: =G$88 -> £m | H142: =H$88 -> 2020 FYE
E143: =E$101 -> Net performance payment / (penalty) applied to revenue for in-period ODI adjustments ~ Residential retail - Difference at 2020 FYE price base | F143: =F$101 -> 0 | G143: =G$101 -> £m | H143: =H$101 -> 2020 FYE
E144: =E$102 -> Net performance payment / (penalty) applied to revenue for end of period ODI adjustments ~ Residential retail - Difference at 2020 FYE price base | F144: =F$102 -> 0 | G144: =G$102 -> £m | H144: =H$102 -> 2020 FYE
E145: =E$103 -> Residential retail revenue adjustment at end of AMP6 - Difference at 2020 FYE price base | F145: =F$103 -> 0.6049717 | G145: =G$103 -> £m | H145: =H$103 -> 2020 FYE
E146: =E$104 -> SIM forecast revenue adjustment - Difference at 2020 FYE price base | F146: =F$104 -> 0 | G146: =G$104 -> £m | H146: =H$104 -> 2020 FYE
E147: =E$116 -> Net performance payment / (penalty) applied to revenue for in-period ODI adjustments ~ Business retail - Difference at 2020 FYE price base | F147: =F$116 -> 0 | G147: =G$116 -> £m | H147: =H$116 -> 2020 FYE
E148: =E$117 -> Net performance payment / (penalty) applied to revenue for end of period ODI adjustments ~ Business retail - Difference at 2020 FYE price base | F148: =F$117 -> 0 | G148: =G$117 -> £m | H148: =H$117 -> 2020 FYE
B149: =B$118 -> 0 | C149: 0 | D149: 0 | E149: Non-household SIM adjustment - business retail at 2020 FYE price base | F149: 0 | G149: £m | H149: 2020 FYE
E151: =Indexation!E$120 -> CPIH deflate from 2020 FYE to 2018 FYA - Blind Year | F151: =Indexation!F$120 -> 0.9596378146 | G151: =Indexation!G$120 -> factor
E153: ODI in-period revenue adjustment ~ Water resources at 2017-18 FYA CPIH deflated price base | F153: =F123 * F$151 -> 0 | G153: £m | H153: 2017/18 FYA CPIH
E154: ODI end of period revenue adjustment ~ Water resources at 2017-18 FYA CPIH deflated price base | F154: 0 | G154: £m | H154: 2017/18 FYA CPIH
E155: Water trading total value of export incentive ~ Water resources at 2017-18 FYA CPIH deflated price base | F155: 0 | G155: £m | H155: 2017/18 FYA CPIH
E156: Water trading total value of import incentive ~ Water resources at 2017-18 FYA CPIH deflated price base | F156: 0 | G156: £m | H156: 2017/18 FYA CPIH
E157: ODI in-period revenue adjustment ~ Water network plus at 2017-18 FYA CPIH deflated price base | F157: 0 | G157: £m | H157: 2017/18 FYA CPIH
E158: ODI end of period revenue adjustment ~ Water network plus at 2017-18 FYA CPIH deflated price base | F158: -1.993847302 | G158: £m | H158: 2017/18 FYA CPIH
E159: Water: Totex menu revenue adjustment at 2017-18 FYA CPIH deflated price base | F159: 0.9979135925 | G159: £m | H159: 2017/18 FYA CPIH
E160: Water trading total value of export incentive ~ Water network plus at 2017-18 FYA CPIH deflated price base | F160: 0 | G160: £m | H160: 2017/18 FYA CPIH
E161: Water trading total value of import incentive ~ Water network plus at 2017-18 FYA CPIH deflated price base | F161: 0 | G161: £m | H161: 2017/18 FYA CPIH
E162: WRFIM total reward / (penalty) at the end of AMP6 ~ Water network plus at 2017-18 FYA CPIH deflated price base | F162: 4.217630512 | G162: £m | H162: 2017/18 FYA CPIH
E163: Other revenue adjustment - water network plus at 2017-18 FYA CPIH deflated price base | F163: 0 | G163: £m | H163: 2017/18 FYA CPIH
E164: ODI in-period revenue adjustment ~ Bioresources at 2017-18 FYA CPIH deflated price base | F164: 0 | G164: £m | H164: 2017/18 FYA CPIH
E165: ODI end of period revenue adjustment ~ Bioresources at 2017-18 FYA CPIH deflated price base | F165: 0 | G165: £m | H165: 2017/18 FYA CPIH
E166: ODI in-period revenue adjustment ~ Wastewater network plus at 2017-18 FYA CPIH deflated price base | F166: 0 | G166: £m | H166: 2017/18 FYA CPIH
E167: ODI end of period revenue adjustment ~ Wastewater network plus at 2017-18 FYA CPIH deflated price base | F167: 0 | G167: £m | H167: 2017/18 FYA CPIH
E168: Wastewater: Totex menu revenue adjustment at 2017-18 FYA CPIH deflated price base | F168: 0 | G168: £m | H168: 2017/18 FYA CPIH
E169: WRFIM total reward / (penalty) at the end of AMP6 ~ Wastewater network plus at 2017-18 FYA CPIH deflated price base | F169: 0 | G169: £m | H169: 2017/18 FYA CPIH
E170: Other revenue adjustment - wastewater network plus at 2017-18 FYA CPIH deflated price base | F170: 0 | G170: £m | H170: 2017/18 FYA CPIH
E171: Dummy: revenue adjustment from totex menu model at 2017-18 FYA CPIH deflated price base | F171: 0 | G171: £m | H171: 2017/18 FYA CPIH
E172: WRFIM total reward / (penalty) at the end of AMP6 ~ Dummy at 2017-18 FYA CPIH deflated price base | F172: 0 | G172: £m | H172: 2017/18 FYA CPIH
E173: ODI in-period revenue adjustment ~ Residential retail at 2017-18 FYA CPIH deflated price base | F173: 0 | G173: £m | H173: 2017/18 FYA CPIH
E174: ODI end of period revenue adjustment ~ Residential retail at 2017-18 FYA CPIH deflated price base | F174: 0 | G174: £m | H174: 2017/18 FYA CPIH
E175: Residential retail revenue adjustment at 2017-18 FYA CPIH deflated price base | F175: 0.5805537201 | G175: £m | H175: 2017/18 FYA CPIH
E176: SIM forecast revenue adjustment at 2017-18 FYA CPIH deflated price base | F176: 0 | G176: £m | H176: 2017/18 FYA CPIH
E177: ODI in-period revenue adjustment ~ Business retail at 2017-18 FYA CPIH deflated price base | F177: 0 | G177: £m | H177: 2017/18 FYA CPIH
E178: ODI end of period revenue adjustment ~ Business retail at 2017-18 FYA CPIH deflated price base | F178: 0 | G178: £m | H178: 2017/18 FYA CPIH
E179: Non-household SIM adjustment - business retail at 2017-18 FYA CPIH deflated price base | F179: 0 | G179: £m | H179: 2017/18 FYA CPIH
A182: PR14 REVENUE RECONCILIATION ADJUSTMENTS EXPRESSED IN RFI 'base year 2019-20 prices' (ie NOVEMBER 2018 CPIH PRICES)
E184: =E$17 -> Net performance payment / (penalty) applied to revenue for in-period ODI adjustments ~ Water resources - Difference at 2020 FYE price base | F184: =F$17 -> 0 | G184: =G$17 -> £m | H184: =H$17 -> 2020 FYE
E185: =E$18 -> Net performance payment / (penalty) applied to revenue for end of period ODI adjustments ~ Water resources - Difference at 2020 FYE price base | F185: =F$18 -> 0 | G185: =G$18 -> £m | H185: =H$18 -> 2020 FYE
E186: =E$19 -> Water trading total value of export incentive ~ Water resources at 2020 FYE price base | F186: =F$19 -> 0 | G186: =G$19 -> £m | H186: =H$19 -> 2020 FYE
E187: =E$20 -> Water trading total value of import incentive ~ Water resources at 2020 FYE price base | F187: =F$20 -> 0 | G187: =G$20 -> £m | H187: =H$20 -> 2020 FYE
E188: Total blind year adjustment at 2020 FYE price base - WR | F188: =SUM(F186:F187) -> 0 | G188: £m | H188: 2020 FYE | J188: Total blind year adjustment (TBYA) for use in the RFI formula excludes ODI payments
E190: =E$32 -> Net performance payment / (penalty) applied to revenue for in-period ODI adjustments ~ Water network plus - Difference at 2020 FYE price base | F190: =F$32 -> 0 | G190: =G$32 -> £m | H190: =H$32 -> 2020 FYE
E191: =E$33 -> Net performance payment / (penalty) applied to revenue for end of period ODI adjustments ~ Water network plus - Difference at 2020 FYE price base | F191: =F$33 -> -2.077708143 | G191: =G$33 -> £m | H191: =H$33 -> 2020 FYE
E192: =E$34 -> Totex menu revenue adjustment ~ Water network plus at 2020 FYE price base | F192: =F$34 -> 1.03988565 | G192: =G$34 -> £m | H192: =H$34 -> 2020 FYE
E193: =E$35 -> Water trading total value of export incentive - Water network plus at 2020 FYE price base | F193: =F$35 -> 0 | G193: =G$35 -> £m | H193: =H$35 -> 2020 FYE
E194: =E$36 -> Water trading total value of import incentive - Water network plus at 2020 FYE price base | F194: =F$36 -> 0 | G194: =G$36 -> £m | H194: =H$36 -> 2020 FYE
E195: =E$43 -> WRFIM total reward / (penalty) at the end of AMP6 ~ Water network plus at 2020 FYE price base | F195: =F$43 -> 4.395023255 | G195: =G$43 -> £m | H195: =H$43 -> 2020 FYE
B196: =B$37 -> 0 | C196: 0 | D196: 0 | E196: Other revenue adjustment - water network plus at 2020 FYE price base | F196: 0 | G196: £m | H196: 2020 FYE
E197: Total blind year adjustment at 2020 FYE price base - WN | F197: =SUM(F192:F196) -> 5.434908905 | G197: £m | H197: 2020 FYE | J197: Total blind year adjustment (TBYA) for use in the RFI formula excludes ODI payments
E199: =E$54 -> Net performance payment / (penalty) applied to revenue for in-period ODI adjustments ~ Bioresources - Difference at 2020 FYE price base | F199: =F$54 -> 0 | G199: =G$54 -> £m | H199: =H$54 -> 2020 FYE
E200: =E$55 -> Net performance payment / (penalty) applied to revenue for end of period ODI adjustments ~ Bioresources - Difference at 2020 FYE price base | F200: =F$55 -> 0 | G200: =G$55 -> £m | H200: =H$55 -> 2020 FYE
E201: Total blind year adjustment at 2020 FYE price base - BR | F201: 0 | G201: =G$20 -> £m | H201: =H$20 -> 2020 FYE | J201: Total blind year adjustment (TBYA) for use in the RFI formula excludes ODI payments
E203: =E$65 -> Net performance payment / (penalty) applied to revenue for in-period ODI adjustments ~ Wastewater network plus - Difference at 2020 FYE price base | F203: =F$65 -> 0 | G203: =G$65 -> £m | H203: =H$65 -> 2020 FYE
E204: =E$66 -> Net performance payment / (penalty) applied to revenue for end of period ODI adjustments ~ Wastewater network plus - Difference at 2020 FYE price base | F204: =F$66 -> 0 | G204: =G$66 -> £m | H204: =H$66 -> 2020 FYE
E205: =E$67 -> Wastewater: revenue adjustment from totex menu model - Difference at 2020 FYE price base | F205: =F$67 -> 0 | G205: =G$67 -> £m | H205: =H$67 -> 2020 FYE
E206: =E$74 -> WRFIM total reward / (penalty) at the end of AMP6 ~ Wastewater network plus at 2020 FYE price base | F206: =F$74 -> 0 | G206: =G$74 -> £m | H206: =H$74 -> 2020 FYE
B207: =B$68 -> 0 | C207: 0 | D207: 0 | E207: Other revenue adjustment - wastewater network plus at 2020 FYE price base | F207: 0 | G207: £m | H207: 2020 FYE
E208: Total blind year adjustment at 2020 FYE price base - WWN | F208: =SUM(F205:F207) -> 0 | G208: £m | H208: 2020 FYE | J208: Total blind year adjustment (TBYA) for use in the RFI formula excludes ODI payments
E210: =E$83 -> Dummy: revenue adjustment from totex menu model - Difference at 2020 FYE price base | F210: =F$83 -> 0 | G210: =G$83 -> £m | H210: =H$83 -> 2020 FYE
E211: =E$88 -> Dummy: WRFIM total reward / (penalty) at the end of AMP6 at 2020 FYE price base | F211: =F$88 -> 0 | G211: =G$88 -> £m | H211: =H$88 -> 2020 FYE
E212: Total blind year adjustment at 2020 FYE price base - DMMY | F212: =SUM(F210:F211) -> 0 | G212: £m | H212: 2020 FYE | J212: Total blind year adjustment (TBYA) for Thames Tideway will be applied at PR24
E214: =Indexation!E$122 -> CPIH deflate from 2020 FYE to 2020 FYA - Blind Year | F214: =Indexation!F$122 -> 0.9967004297 | G214: =Indexation!G$122 -> factor
E216: ODI in-period revenue adjustment ~ Water resources at RFI 'base year 2019-20 prices (2018 November)' | F216: =F184 * F$214 -> 0 | G216: £m | H216: November 2018 CPIH
E217: ODI end of period revenue adjustment ~ Water resources at RFI 'base year 2019-20 prices (2018 November)' | F217: =F185 * F$214 -> 0 | G217: £m | H217: November 2018 CPIH
E218: Water trading total value of export incentive ~ Water resources at RFI 'base year 2019-20 prices (2018 November)' | F218: =F186 * F$214 -> 0 | G218: £m | H218: November 2018 CPIH
E219: Water trading total value of import incentive ~ Water resources at RFI 'base year 2019-20 prices (2018 November)' | F219: =F187 * F$214 -> 0 | G219: £m | H219: November 2018 CPIH
E220: Total blind year adjustment at RFI base year 2019-20 prices (2018 November) - WR | F220: =F188 * F$214 -> 0 | G220: £m | H220: November 2018 CPIH | J220: =J188 -> Total blind year adjustment (TBYA) for use in the RFI formula excludes ODI payments
E222: ODI in-period revenue adjustment ~ Water network plus at RFI 'base year 2019-20 prices (2018 November)' | F222: =F190 * F$214 -> 0 | G222: £m | H222: November 2018 CPIH
E223: ODI end of period revenue adjustment ~ Water network plus at RFI 'base year 2019-20 prices (2018 November)' | F223: -2.070852599 | G223: £m | H223: November 2018 CPIH
E224: Water: Totex menu revenue adjustment at RFI 'base year 2019-20 prices (2018 November)' | F224: =F192 * F$214 -> 1.036454474 | G224: £m | H224: November 2018 CPIH
E225: Water trading total value of export incentive ~ Water network plus at RFI 'base year 2019-20 prices (2018 November)' | F225: 0 | G225: £m | H225: November 2018 CPIH
E226: Water trading total value of import incentive ~ Water network plus at RFI 'base year 2019-20 prices (2018 November)' | F226: 0 | G226: £m | H226: November 2018 CPIH
E227: WRFIM total reward / (penalty) at the end of AMP6 ~ Water network plus at RFI 'base year 2019-20 prices (2018 November)' | F227: 4.380521567 | G227: £m | H227: November 2018 CPIH
E228: Other revenue adjustment - water network plus at RFI 'base year 2019-20 prices (2018 November)' | F228: 0 | G228: £m | H228: November 2018 CPIH
E229: Total blind year adjustment at RFI base year 2019-20 prices (2018 November) - WN | F229: 5.416976041 | G229: £m | H229: November 2018 CPIH | J229: =J197 -> Total blind year adjustment (TBYA) for use in the RFI formula excludes ODI payments
E231: ODI in-period revenue adjustment ~ Bioresources at RFI 'base year 2019-20 prices (2018 November)' | F231: =F199 * F$214 -> 0 | G231: £m | H231: November 2018 CPIH
E232: ODI end of period revenue adjustment ~ Bioresources at RFI 'base year 2019-20 prices (2018 November)' | F232: =F200 * F$214 -> 0 | G232: £m | H232: November 2018 CPIH
E233: Total blind year adjustment at RFI base year 2019-20 prices (2018 November) - BR | F233: =F201 * F$214 -> 0 | G233: £m | H233: November 2018 CPIH | J233: =J201 -> Total blind year adjustment (TBYA) for use in the RFI formula excludes ODI payments
E235: ODI in-period revenue adjustment ~ Wastewater network plus at RFI 'base year 2019-20 prices (2018 November)' | F235: =F203 * F$214 -> 0 | G235: £m | H235: November 2018 CPIH
E236: ODI end of period revenue adjustment ~ Wastewater network plus at RFI 'base year 2019-20 prices (2018 November)' | F236: 0 | G236: £m | H236: November 2018 CPIH
E237: Wastewater: Totex menu revenue adjustment at RFI 'base year 2019-20 prices (2018 November)' | F237: 0 | G237: £m | H237: November 2018 CPIH
E238: WRFIM total reward / (penalty) at the end of AMP6 ~ Wastewater network plus at RFI 'base year 2019-20 prices (2018 November)' | F238: 0 | G238: £m | H238: November 2018 CPIH
E239: Other revenue adjustment - wastewater network plus at RFI 'base year 2019-20 prices (2018 November)' | F239: 0 | G239: £m | H239: November 2018 CPIH
E240: Total blind year adjustment at RFI base year 2019-20 prices (2018 November) - WWN | F240: 0 | G240: £m | H240: November 2018 CPIH | J240: =J208 -> Total blind year adjustment (TBYA) for use in the RFI formula excludes ODI payments
E242: Dummy: revenue adjustment from totex menu model at RFI 'base year 2019-20 prices (2018 November)' | F242: =F210 * F$214 -> 0 | G242: £m | H242: November 2018 CPIH
E243: WRFIM total reward / (penalty) at the end of AMP6 ~ Dummy at RFI 'base year 2019-20 prices (2018 November)' | F243: =F211 * F$214 -> 0 | G243: £m | H243: November 2018 CPIH
E244: Total blind year adjustment at RFI base year 2019-20 prices (2018 November) - DMMY | F244: =F212 * F$214 -> 0 | G244: £m | H244: November 2018 CPIH | J244: =J212 -> Total blind year adjustment (TBYA) for Thames Tideway will be applied at PR24
A247: SUBTOTALS AS PER PRICE CONTROL FOR REVENUE ADJUSTMENTS 2017-18 FYA CPIH DEFLATED PRICE BASE
B249: Water resources revenue adjustment
E250: =E$153 -> ODI in-period revenue adjustment ~ Water resources at 2017-18 FYA CPIH deflated price base | F250: =F$153 -> 0 | G250: =G$153 -> £m | H250: =H$153 -> 2017/18 FYA CPIH
E251: =E$154 -> ODI end of period revenue adjustment ~ Water resources at 2017-18 FYA CPIH deflated price base | F251: =F$154 -> 0 | G251: =G$154 -> £m | H251: =H$154 -> 2017/18 FYA CPIH
E252: =E$155 -> Water trading total value of export incentive ~ Water resources at 2017-18 FYA CPIH deflated price base | F252: =F$155 -> 0 | G252: =G$155 -> £m | H252: =H$155 -> 2017/18 FYA CPIH
E253: =E$156 -> Water trading total value of import incentive ~ Water resources at 2017-18 FYA CPIH deflated price base | F253: =F$156 -> 0 | G253: =G$156 -> £m | H253: =H$156 -> 2017/18 FYA CPIH
E254: Water resources revenue adjustment | F254: =SUM(F250:F253) -> 0 | G254: £m | H254: 2017/18 FYA CPIH
B256: Water network plus revenue adjustment
E257: ='Rev Differences Inflation Only'!E49 -> Further 2010-15 reconciliation total adjustment carry forward to PR19 ~ Water network plus - BY adjustment - 2017/18FYA CPIH | F257: ='Rev Differences Inflation Only'!F49 -> -0.002008458139 | G257: ='Rev Differences Inflation Only'!G49 -> £m | H257: ='Rev Differences Inflation Only'!H49 -> 2017/18 FYA
E258: =E$157 -> ODI in-period revenue adjustment ~ Water network plus at 2017-18 FYA CPIH deflated price base | F258: =F$157 -> 0 | G258: =G$157 -> £m | H258: =H$157 -> 2017/18 FYA CPIH
... 35 more rows

Sheet RCV Differences Inflation Only
A1: =RIGHT(CELL("FILENAME", $A$1), LEN(CELL("FILENAME", $A$1)) - SEARCH("]", CELL("FILENAME", $A$1))) -> RCV Differences Inflation Only
E2: =Time!E$25 -> Model period ending | J2: =Time!J$25 -> 2013-03-31 | K2: =Time!K$25 -> 2014-03-31 | L2: =Time!L$25 -> 2015-03-31 | M2: =Time!M$25 -> 2016-03-31 | N2: =Time!N$25 -> 2017-03-31 | O2: =Time!O$25 -> 2018-03-31 | P2: =Time!P$25 -> 2019-03-31 | Q2: =Time!Q$25 -> 2020-03-31 | R2: =Time!R$25 -> 2021-03-31 | S2: =Time!S$25 -> 2022-03-31 | T2: =Time!T$25 -> 2023-03-31 | U2: =Time!U$25 -> 2024-03-31 | V2: =Time!V$25 -> 2025-03-31
E3: =Time!E$80 -> Timeline label | J3: =Time!J$80 -> Pre-Fcst | K3: =Time!K$80 -> Pre-Fcst | L3: =Time!L$80 -> Pre-Fcst | M3: =Time!M$80 -> Pre-Fcst | N3: =Time!N$80 -> Pre-Fcst | O3: =Time!O$80 -> Pre-Fcst | P3: =Time!P$80 -> Pre-Fcst | Q3: =Time!Q$80 -> Pre-Fcst | R3: =Time!R$80 -> Forecast | S3: =Time!S$80 -> Forecast | T3: =Time!T$80 -> Forecast | U3: =Time!U$80 -> Forecast | V3: =Time!V$80 -> Forecast
E4: =Time!E$103 -> Financial year ending | J4: =Time!J$103 -> 2013 | K4: =Time!K$103 -> 2014 | L4: =Time!L$103 -> 2015 | M4: =Time!M$103 -> 2016 | N4: =Time!N$103 -> 2017 | O4: =Time!O$103 -> 2018 | P4: =Time!P$103 -> 2019 | Q4: =Time!Q$103 -> 2020 | R4: =Time!R$103 -> 2021 | S4: =Time!S$103 -> 2022 | T4: =Time!T$103 -> 2023 | U4: =Time!U$103 -> 2024 | V4: =Time!V$103 -> 2025
D5: Input references | E5: =Time!E$10 -> Model column counter | F5: Constant | G5: Unit | H5: Total | J5: =Time!J$10 -> 1 | K5: =Time!K$10 -> 2 | L5: =Time!L$10 -> 3 | M5: =Time!M$10 -> 4 | N5: =Time!N$10 -> 5 | O5: =Time!O$10 -> 6 | P5: =Time!P$10 -> 7 | Q5: =Time!Q$10 -> 8 | R5: =Time!R$10 -> 9 | S5: =Time!S$10 -> 10 | T5: =Time!T$10 -> 11 | U5: =Time!U$10 -> 12 | V5: =Time!V$10 -> 13
A7: WATER SERVICES
C9: Final Determination
D10: Inflate from 2012/13 FYA RPI to 2020 FYE RPI
E11: =InpActive!E141 -> Wholesale water closing RCV at 31 March 2020 (from PR14 FD) - Final Determination | F11: =InpActive!F141 -> 1030.679533 | G11: =InpActive!G141 -> £m | H11: =InpActive!H141 -> 2012/13 FYA
E12: =InpActive!E142 -> Water ~ Total Adjustment RCV carry forward to PR19 - Final Determination | F12: =InpActive!F142 -> -8.994541666 | G12: =InpActive!G142 -> £m | H12: =InpActive!H142 -> 2012/13 FYA
E13: =InpActive!E143 -> Water ~ CIS RCV inflation correction - Final Determination | F13: =InpActive!F143 -> -22.63556146 | G13: =InpActive!G143 -> £m | H13: =InpActive!H143 -> 2012/13 FYA
E15: =Indexation!E$201 -> RPI inflate from 2013 FYA to 2020 FYE - Final Determination | F15: =Indexation!F$201 -> 1.206498416 | G15: =Indexation!G$201 -> factor
E17: Wholesale water closing RCV at 31 March 2020 (from PR14 FD) - Final Determination | F17: =F11 * F$15 -> 1243.513225 | G17: £m | H17: 2020 FYE RPI
E18: Water ~ Total Adjustment RCV carry forward to PR19 - Final Determination - 2020 FYE CPIH | F18: =F12 * F$15 -> -10.85190028 | G18: £m | H18: 2020 FYE RPI
E19: Water ~ CIS RCV inflation correction - Final Determination - 2020 FYE CPIH | F19: -27.30976905 | G19: £m | H19: 2020 FYE RPI
D21: Deflate from 2020 FYE RPI to 2017/18 FYE CPIH
E22: =E17 -> Wholesale water closing RCV at 31 March 2020 (from PR14 FD) - Final Determination | F22: =F17 -> 1243.513225 | G22: £m | H22: 2020 FYE RPI
E23: =E18 -> Water ~ Total Adjustment RCV carry forward to PR19 - Final Determination - 2020 FYE CPIH | F23: -10.85190028 | G23: £m | H23: 2020 FYE RPI
E24: =E19 -> Water ~ CIS RCV inflation correction - Final Determination - 2020 FYE CPIH | F24: -27.30976905 | G24: £m | H24: 2020 FYE RPI
E26: =Indexation!E$238 -> CPIH deflate from 2020 FYE to 2018 FYE- Final Determination | F26: =Indexation!F$238 -> 0.9615736505 | G26: =Indexation!G$238 -> factor
E28: Wholesale water closing RCV at 31 March 2020 (from PR14 FD) - Final Determination - 2017/18FYE CPIH | F28: =F22 * $F$26 -> 1195.729551 | G28: £m | H28: 2017/18 FYE CPIH
E29: Water ~ Total Adjustment RCV carry forward to PR19 - Final Determination - 2017/18FYE CPIH | F29: =F23 * $F$26 -> -10.43490136 | G29: £m | H29: 2017/18 FYE CPIH
E30: Water ~ CIS RCV inflation correction - Final Determination - 2017/18FYE CPIH | F30: -26.26035432 | G30: £m | H30: 2017/18 FYE CPIH
D32: Deflate from 2017/18 FYE CPIH to 2017/18 FYA CPIH
E33: =InpActive!E150 -> Water resources IFRS16 RCV adjustment - Final Determination | F33: =InpActive!F150 -> 0 | G33: =InpActive!G150 -> £m | H33: =InpActive!H150 -> 2017/18 FYE
E34: =InpActive!E151 -> Water network plus IFRS16 RCV adjustment - Final Determination | F34: =InpActive!F151 -> 12.59759155 | G34: =InpActive!G151 -> £m | H34: =InpActive!H151 -> 2017/18 FYE
E36: =Indexation!E$239 -> CPIH deflate from 2018 FYE to 2018 FYA - IFRS 16 and Other- Final Determination | F36: =Indexation!F$239 -> 0.9915953061 | G36: =Indexation!G$239 -> factor
E38: Water resources IFRS16 RCV adjustment - Final Determination | F38: =F33 * F$36 -> 0 | H38: 2017/18 FYA
E39: Water network plus IFRS16 RCV adjustment - Final Determination | F39: =F34 * F$36 -> 12.49171265 | H39: 2017/18 FYA
C41: Blind Year
D42: Inflate from 2012/13 FYA RPI to 2020 FYE RPI
E43: =InpActive!E161 -> Wholesale water closing RCV at 31 March 2020 (from PR14 FD) - Blind Year | F43: =InpActive!F161 -> 1030.679533 | G43: =InpActive!G161 -> £m | H43: =InpActive!H161 -> 2012/13 FYA
E44: =InpActive!E162 -> Water ~ Total Adjustment RCV carry forward to PR19 - Blind Year | F44: =InpActive!F162 -> -8.995 | G44: =InpActive!G162 -> £m | H44: =InpActive!H162 -> 2012/13 FYA
E45: =InpActive!E163 -> Water ~ CIS RCV inflation correction - Blind Year | F45: =InpActive!F163 -> -22.636 | G45: =InpActive!G163 -> £m | H45: =InpActive!H163 -> 2012/13 FYA
E47: =Indexation!E$82 -> RPI inflate from 2013 FYA to 2020 FYE - Blind Year | F47: =Indexation!F$82 -> 1.195872075 | G47: =Indexation!G$82 -> factor
E49: Wholesale water closing RCV at 31 March 2020 (from PR14 FD) - Blind Year | F49: =F43 * F$47 -> 1232.560872 | G49: £m | H49: 2020 FYE RPI
E50: Water ~ Total Adjustment RCV carry forward to PR19 - Blind Year | F50: =F44 * F$47 -> -10.75686932 | G50: £m | H50: 2020 FYE RPI
E51: Water ~ CIS RCV inflation correction - Blind Year | F51: =F45 * F$47 -> -27.06976029 | G51: £m | H51: 2020 FYE RPI
D53: Deflate from 2020 FYE RPI to 2017/18 FYE CPIH
E54: =E49 -> Wholesale water closing RCV at 31 March 2020 (from PR14 FD) - Blind Year | F54: =F49 -> 1232.560872 | G54: £m | H54: 2020 FYE RPI
E55: =E50 -> Water ~ Total Adjustment RCV carry forward to PR19 - Blind Year | F55: -10.75686932 | G55: £m | H55: 2020 FYE RPI
E56: =E51 -> Water ~ CIS RCV inflation correction - Blind Year | F56: -27.06976029 | G56: £m | H56: 2020 FYE RPI
E58: =Indexation!E$121 -> CPIH deflate from 2020 FYE to 2018 FYE - Blind Year | F58: =Indexation!F$121 -> 0.967771639 | G58: =Indexation!G$121 -> factor
E60: Wholesale water closing RCV at 31 March 2020 (from PR14 FD) - Blind Year | F60: =F54 * $F$58 -> 1192.837456 | G60: £m | H60: 2017/18 FYE CPIH
E61: Water ~ Total Adjustment RCV carry forward to PR19 - Blind Year | F61: =F55 * $F$58 -> -10.41019305 | G61: £m | H61: 2017/18 FYE CPIH
E62: Water ~ CIS RCV inflation correction - Blind Year | F62: -26.19734629 | G62: £m | H62: 2017/18 FYE CPIH
D64: Deflate from 2017/18 FYE CPIH to 2017/18 FYA CPIH
E65: =InpActive!E170 -> Water resources IFRS16 RCV adjustment - Blind Year | F65: =InpActive!F170 -> 0 | G65: =InpActive!G170 -> £m | H65: =InpActive!H170 -> 2017/18 FYE
E66: =InpActive!E171 -> Water network plus IFRS16 RCV adjustment - Blind Year | F66: =InpActive!F171 -> 12.59759155 | G66: =InpActive!G171 -> £m | H66: =InpActive!H171 -> 2017/18 FYE
E68: =Indexation!E$123 -> CPIH deflate from 2018 FYE to 2018 FYA - IFRS 16 and Other - Blind Year | F68: =Indexation!F$123 -> 0.9915953061 | G68: =Indexation!G$123 -> factor
E70: Water resources IFRS16 RCV adjustment - Blind Year | F70: =F65 * F$68 -> 0 | H70: 2017/18 FYA
E71: Water network plus IFRS16 RCV adjustment - Blind Year | F71: =F66 * F$68 -> 12.49171265 | H71: 2017/18 FYA
C73: Adjustment
E74: =E28 -> Wholesale water closing RCV at 31 March 2020 (from PR14 FD) - Final Determination - 2017/18FYE CPIH | F74: 1195.729551 | G74: £m | H74: 2017/18 FYE CPIH
E75: Water ~ Total Adjustment RCV carry forward to PR19 - Final Determination - 2017/18FYE CPIH | F75: -10.43490136 | G75: £m | H75: 2017/18 FYE CPIH
E76: Water ~ CIS RCV inflation correction - Final Determination - 2017/18FYE CPIH | F76: -26.26035432 | G76: £m | H76: 2017/18 FYE CPIH
E78: =E60 -> Wholesale water closing RCV at 31 March 2020 (from PR14 FD) - Blind Year | F78: 1192.837456 | G78: £m | H78: 2017/18 FYE CPIH
E79: Water ~ Total Adjustment RCV carry forward to PR19 - Blind Year | F79: -10.41019305 | G79: £m | H79: 2017/18 FYE CPIH
E80: Water ~ CIS RCV inflation correction - Blind Year | F80: -26.19734629 | G80: £m | H80: 2017/18 FYE CPIH
E82: Wholesale water closing RCV at 31 March 2020 before midnight adjustments - BY Adjustment at 2017-18 FYE CPIH deflated price base | F82: =F78-F74 -> -2.892095173 | G82: £m | H82: 2017/18 FYE
E83: Water ~ Total Adjustment RCV carry forward to PR19 - BY Adjustment at 2017-18 FYE CPIH deflated price base | F83: =F79-F75 -> 0.02470831349 | G83: £m | H83: 2017/18 FYE
E84: Water ~ CIS RCV inflation correction - BY Adjustment at 2017-18 FYE CPIH deflated price base | F84: 0.06300803179 | G84: £m | H84: 2017/18 FYE
D86: Deflate from 2017/18 FYE CPIH to 2017/18 FYA CPIH
E87: =E82 -> Wholesale water closing RCV at 31 March 2020 before midnight adjustments - BY Adjustment at 2017-18 FYE CPIH deflated price base | F87: =F82 -> -2.892095173 | G87: =G82 -> £m | H87: 2017/18 FYE
E88: =E83 -> Water ~ Total Adjustment RCV carry forward to PR19 - BY Adjustment at 2017-18 FYE CPIH deflated price base | F88: =F83 -> 0.02470831349 | G88: £m | H88: 2017/18 FYE
E89: =E84 -> Water ~ CIS RCV inflation correction - BY Adjustment at 2017-18 FYE CPIH deflated price base | F89: =F84 -> 0.06300803179 | G89: £m | H89: 2017/18 FYE
E91: =Indexation!E$123 -> CPIH deflate from 2018 FYE to 2018 FYA - IFRS 16 and Other - Blind Year | F91: =Indexation!F$123 -> 0.9915953061 | G91: =Indexation!G$123 -> factor
E93: Wholesale water closing RCV at 31 March 2020 before midnight adjustments - BY Adjustment at 2017-18 FYA CPIH deflated price base | F93: =F87 * $F$91 -> -2.867787998 | G93: £m | H93: 2017/18 FYA
E94: Water ~ Total Adjustment RCV carry forward to PR19 - BY Adjustment at 2017-18 FYA CPIH deflated price base | F94: =F88 * $F$91 -> 0.02450064767 | G94: £m | H94: 2017/18 FYA
E95: Water ~ CIS RCV inflation correction - BY Adjustment at 2017-18 FYA CPIH deflated price base | F95: =F89 * $F$91 -> 0.06247846857 | G95: £m | H95: 2017/18 FYA
E97: =E38 -> Water resources IFRS16 RCV adjustment - Final Determination | F97: 0 | G97: 0 | H97: 2017/18 FYA
E98: Water network plus IFRS16 RCV adjustment - Final Determination | F98: 12.49171265 | G98: 0 | H98: 2017/18 FYA
E100: =E70 -> Water resources IFRS16 RCV adjustment - Blind Year | F100: 0 | G100: 0 | H100: 2017/18 FYA
E101: Water network plus IFRS16 RCV adjustment - Blind Year | F101: 12.49171265 | G101: 0 | H101: 2017/18 FYA
E103: Water resources IFRS16 RCV adjustment - BY Adjustment at 2017-18 FYA CPIH deflated price base | F103: =F100-F97 -> 0 | G103: £m | H103: 2017/18 FYA
E104: Water network plus IFRS16 RCV adjustment - BY Adjustment at 2017-18 FYA CPIH deflated price base | F104: =F101-F98 -> 0 | G104: £m | H104: 2017/18 FYA
A106: WASTEWATER
C108: Final Determination
D109: Inflate from 2012/13 FYA RPI to 2020 FYE RPI
E110: =InpActive!E186 -> Wholesale wastewater closing RCV at 31 March 2020 (from PR14 FD) - Final Determination | F110: =InpActive!F186 -> 0 | G110: =InpActive!G186 -> £m | H110: =InpActive!H186 -> 2012/13 FYA
E111: =InpActive!E187 -> Wastewater ~ Total Adjustment RCV carry forward to PR19 - Final Determination | F111: =InpActive!F187 -> 0 | G111: =InpActive!G187 -> £m | H111: =InpActive!H187 -> 2012/13 FYA
E112: =InpActive!E188 -> Wastewater ~ CIS RCV inflation correction - Final Determination | F112: =InpActive!F188 -> 0 | G112: =InpActive!G188 -> £m | H112: =InpActive!H188 -> 2012/13 FYA
E114: =Indexation!E$201 -> RPI inflate from 2013 FYA to 2020 FYE - Final Determination | F114: =Indexation!F$201 -> 1.206498416 | G114: =Indexation!G$201 -> factor
E116: Wholesale wastewater closing RCV at 31 March 2020 (from PR14 FD) - Final Determination - 2020 FYE CPIH | F116: =F110 * F$15 -> 0 | G116: £m | H116: 2020 FYE RPI
E117: wastewater ~ Total Adjustment RCV carry forward to PR19 - Final Determination - 2020 FYE CPIH | F117: =F111 * F$15 -> 0 | G117: £m | H117: 2020 FYE RPI
E118: wastewater ~ CIS RCV inflation correction - Final Determination - 2020 FYE CPIH | F118: =F112 * F$15 -> 0 | G118: £m | H118: 2020 FYE RPI
D120: Inflate from 2017/18 FYE RPI to 2020 FYE RPI
E121: =InpActive!E$193 -> Bioresources RCV (prior to midnight adjustments) 31 March 2020 - Final Determination | F121: =InpActive!F$193 -> 0 | G121: =InpActive!G$193 -> £m | H121: =InpActive!H$193 -> 2017/18 FYE
E123: =Indexation!E$220 -> RPI inflate from 2018 FYE to 2020 FYE- Final Determination | F123: =Indexation!F$220 -> 1.060725835 | G123: =Indexation!G$220 -> factor
E125: Bioresources RCV (prior to midnight adjustments) 31 March 2020 - Final Determination | F125: =F121 * $F$123 -> 0 | G125: £m | H125: 2020 FYE RPI
D127: Deflate from 2020 FYE RPI to 2017/18 FYE CPIH
E128: =E116 -> Wholesale wastewater closing RCV at 31 March 2020 (from PR14 FD) - Final Determination - 2020 FYE CPIH | F128: 0 | G128: £m | H128: 2020 FYE RPI
E129: wastewater ~ Total Adjustment RCV carry forward to PR19 - Final Determination - 2020 FYE CPIH | F129: 0 | G129: £m | H129: 2020 FYE RPI
E130: wastewater ~ CIS RCV inflation correction - Final Determination - 2020 FYE CPIH | F130: 0 | G130: £m | H130: 2020 FYE RPI
E131: =E125 -> Bioresources RCV (prior to midnight adjustments) 31 March 2020 - Final Determination | F131: =F125 -> 0 | G131: £m | H131: 2020 FYE RPI
E133: =Indexation!E$238 -> CPIH deflate from 2020 FYE to 2018 FYE- Final Determination | F133: =Indexation!F$238 -> 0.9615736505 | G133: =Indexation!G$238 -> factor | H133: =Indexation!H$238 -> 0
E135: Wholesale wastewater closing RCV at 31 March 2020 (from PR14 FD) - Final Determination - 2017/18FYE CPIH | F135: =F128 * $F$26 -> 0 | G135: £m | H135: 2017/18 FYE CPIH
E136: wastewater ~ Total Adjustment RCV carry forward to PR19 - Final Determination - 2017/18FYE CPIH | F136: =F129 * $F$26 -> 0 | G136: £m | H136: 2017/18 FYE CPIH
E137: wastewater ~ CIS RCV inflation correction - Final Determination - 2017/18FYE CPIH | F137: =F130 * $F$26 -> 0 | G137: £m | H137: 2017/18 FYE CPIH
E138: Bioresources RCV (prior to midnight adjustments) 31 March 2020 - Final Determination - 2017/18FYE CPIH | F138: =F131 * $F$26 -> 0 | G138: £m | H138: 2017/18 FYE CPIH
D140: Deflate from 2017/18 FYE CPIH to 2017/18 FYA CPIH
E141: =E138 -> Bioresources RCV (prior to midnight adjustments) 31 March 2020 - Final Determination - 2017/18FYE CPIH | F141: =F138 -> 0 | G141: =G138 -> £m | H141: 2017/18 FYE CPIH
E142: =InpActive!E194 -> Bioresources IFRS16 RCV adjustment - Final Determination | F142: =InpActive!F194 -> 0 | G142: =InpActive!G194 -> £m | H142: =InpActive!H194 -> 2017/18 FYE
E143: =InpActive!E195 -> Wastewater network plus IFRS16 RCV adjustment - Final Determination | F143: =InpActive!F195 -> 0 | G143: =InpActive!G195 -> £m | H143: =InpActive!H195 -> 2017/18 FYE
E145: =Indexation!E$239 -> CPIH deflate from 2018 FYE to 2018 FYA - IFRS 16 and Other- Final Determination | F145: =Indexation!F$239 -> 0.9915953061 | G145: =Indexation!G$239 -> factor
E147: Bioresources RCV (prior to midnight adjustments) 31 March 2020 - Final Determination | F147: =F141 * F$145 -> 0 | G147: £m | H147: 2017/18 FYA
E148: Bioresources IFRS16 RCV adjustment - Final Determination | F148: =F142 * F$145 -> 0 | G148: £m | H148: 2017/18 FYA
E149: Wastewater network plus IFRS16 RCV adjustment - Final Determination | F149: =F143 * F$145 -> 0 | G149: £m | H149: 2017/18 FYA
C151: Blind Year
D152: Inflate from 2012/13 FYA RPI to 2020 FYE RPI
E153: =InpActive!E205 -> Wholesale wastewater closing RCV at 31 March 2020 (from PR14 FD) - Blind Year | F153: =InpActive!F205 -> 0 | G153: =InpActive!G205 -> £m | H153: =InpActive!H205 -> 2012/13 FYA
E154: =InpActive!E206 -> Wastewater ~ Total Adjustment RCV carry forward to PR19 - Blind Year | F154: =InpActive!F206 -> 0 | G154: =InpActive!G206 -> £m | H154: =InpActive!H206 -> 2012/13 FYA
E155: =InpActive!E207 -> Wastewater ~ CIS RCV inflation correction - Blind Year | F155: =InpActive!F207 -> 0 | G155: =InpActive!G207 -> £m | H155: =InpActive!H207 -> 2012/13 FYA
E157: =Indexation!E$82 -> RPI inflate from 2013 FYA to 2020 FYE - Blind Year | F157: =Indexation!F$82 -> 1.195872075 | G157: =Indexation!G$82 -> factor
E159: Wholesale wastewater closing RCV at 31 March 2020 (from PR14 FD) - Blind Year | F159: =F153 * F$157 -> 0 | G159: £m | H159: 2020 FYE RPI
E160: wastewater ~ Total Adjustment RCV carry forward to PR19 - Blind Year | F160: =F154 * F$157 -> 0 | G160: £m | H160: 2020 FYE RPI
E161: wastewater ~ CIS RCV inflation correction - Blind Year | F161: =F155 * F$157 -> 0 | G161: £m | H161: 2020 FYE RPI
D163: Inflate from 2017/18 FYE RPI to 2020 FYE RPI
E164: =InpActive!E$212 -> Bioresources RCV (prior to midnight adjustments) 31 March 2020 - Blind Year | F164: =InpActive!F$212 -> 0 | G164: =InpActive!G$212 -> £m | H164: =InpActive!H$212 -> 2017/18 FYE
E166: =Indexation!E$101 -> RPI inflate from 2018 FYE to 2020 FYE - Blind Year | F166: =Indexation!F$101 -> 1.051383399 | G166: =Indexation!G$101 -> factor
E168: Bioresources RCV (prior to midnight adjustments) 31 March 2020 - Blind Year | F168: =F164 * $F$166 -> 0 | G168: £m | H168: 2020 FYE
D170: Deflate from 2020 FYE RPI to 2017/18 FYE CPIH
E171: =E159 -> Wholesale wastewater closing RCV at 31 March 2020 (from PR14 FD) - Blind Year | F171: 0 | G171: £m | H171: 2020 FYE RPI
E172: wastewater ~ Total Adjustment RCV carry forward to PR19 - Blind Year | F172: 0 | G172: £m | H172: 2020 FYE RPI
E173: wastewater ~ CIS RCV inflation correction - Blind Year | F173: 0 | G173: £m | H173: 2020 FYE RPI
E174: =E168 -> Bioresources RCV (prior to midnight adjustments) 31 March 2020 - Blind Year | F174: =F168 -> 0 | G174: =G168 -> £m | H174: =H168 -> 2020 FYE
E176: =Indexation!E$121 -> CPIH deflate from 2020 FYE to 2018 FYE - Blind Year | F176: =Indexation!F$121 -> 0.967771639 | G176: =Indexation!G$121 -> factor
E178: Wholesale wastewater closing RCV at 31 March 2020 (from PR14 FD) - Blind Year | F178: =F171 * $F$176 -> 0 | G178: £m | H178: 2017/18 FYE CPIH
E179: wastewater ~ Total Adjustment RCV carry forward to PR19 - Blind Year | F179: =F172 * $F$176 -> 0 | G179: £m | H179: 2017/18 FYE CPIH
E180: wastewater ~ CIS RCV inflation correction - Blind Year | F180: 0 | G180: £m | H180: 2017/18 FYE CPIH
E181: Bioresources RCV (prior to midnight adjustments) 31 March 2020 - Blind Year - 2017/18FYE CPIH | F181: 0 | G181: £m | H181: 2017/18 FYE CPIH
D183: Deflate from 2017/18 FYE CPIH to 2017/18 FYA CPIH
E184: =E181 -> Bioresources RCV (prior to midnight adjustments) 31 March 2020 - Blind Year - 2017/18FYE CPIH | F184: =F181 -> 0 | G184: =G181 -> £m | H184: 2017/18 FYE CPIH
E185: =InpActive!E213 -> Bioresources IFRS16 RCV adjustment - Blind Year | F185: =InpActive!F213 -> 0 | G185: =InpActive!G213 -> £m | H185: =InpActive!H213 -> 2017/18 FYE
E186: =InpActive!E214 -> Wastewater network plus IFRS16 RCV adjustment - Blind Year | F186: =InpActive!F214 -> 0 | G186: =InpActive!G214 -> £m | H186: =InpActive!H214 -> 2017/18 FYE
E188: =Indexation!E$123 -> CPIH deflate from 2018 FYE to 2018 FYA - IFRS 16 and Other - Blind Year | F188: =Indexation!F$123 -> 0.9915953061 | G188: =Indexation!G$123 -> factor
E190: Bioresources RCV (prior to midnight adjustments) 31 March 2020 - Blind Year | F190: =F184 * F$188 -> 0 | H190: 2017/18 FYA
E191: Bioresources IFRS16 RCV adjustment - Blind Year | F191: =F185 * F$188 -> 0 | H191: 2017/18 FYA
E192: Wastewater network plus IFRS16 RCV adjustment - Blind Year | F192: 0 | H192: 2017/18 FYA
C194: Adjustment
E195: =E135 -> Wholesale wastewater closing RCV at 31 March 2020 (from PR14 FD) - Final Determination - 2017/18FYE CPIH | F195: 0 | G195: £m | H195: 2017/18 FYE CPIH
E196: wastewater ~ Total Adjustment RCV carry forward to PR19 - Final Determination - 2017/18FYE CPIH | F196: 0 | G196: £m | H196: 2017/18 FYE CPIH
E197: wastewater ~ CIS RCV inflation correction - Final Determination - 2017/18FYE CPIH | F197: 0 | G197: £m | H197: 2017/18 FYE CPIH
E198: Bioresources RCV (prior to midnight adjustments) 31 March 2020 - Final Determination - 2017/18FYE CPIH | F198: 0 | G198: £m | H198: 2017/18 FYE CPIH
E200: =E178 -> Wholesale wastewater closing RCV at 31 March 2020 (from PR14 FD) - Blind Year | F200: 0 | G200: £m | H200: 2017/18 FYE CPIH
E201: wastewater ~ Total Adjustment RCV carry forward to PR19 - Blind Year | F201: 0 | G201: £m | H201: 2017/18 FYE CPIH
E202: wastewater ~ CIS RCV inflation correction - Blind Year | F202: 0 | G202: £m | H202: 2017/18 FYE CPIH
E203: Bioresources RCV (prior to midnight adjustments) 31 March 2020 - Blind Year - 2017/18FYE CPIH | F203: 0 | G203: £m | H203: 2017/18 FYE CPIH
E205: Wholesale wastewater closing RCV at 31 March 2020 before midnight adjustments - BY Adjustment at 2017-18 FYE CPIH deflated price base | F205: =F200-F195 -> 0 | G205: £m | H205: 2017/18 FYE
E206: wastewater ~ Total Adjustment RCV carry forward to PR19 - BY Adjustment at 2017-18 FYE CPIH deflated price base | F206: =F201-F196 -> 0 | G206: £m | H206: 2017/18 FYE
E207: wastewater ~ CIS RCV inflation correction - BY Adjustment at 2017-18 FYE CPIH deflated price base | F207: 0 | G207: £m | H207: 2017/18 FYE
E208: Bioresources RCV (prior to midnight adjustments) 31 March 2020 - BY Adjustment - 2017/18FYE CPIH | F208: 0 | G208: £m | H208: 2017/18 FYE
F209: =F208*F215 -> 0
D210: Deflate from 2017/18 FYE CPIH to 2017/18 FYA CPIH
E211: =E205 -> Wholesale wastewater closing RCV at 31 March 2020 before midnight adjustments - BY Adjustment at 2017-18 FYE CPIH deflated price base | F211: =F205 -> 0 | G211: =G205 -> £m | H211: 2017/18 FYE
E212: =E206 -> wastewater ~ Total Adjustment RCV carry forward to PR19 - BY Adjustment at 2017-18 FYE CPIH deflated price base | F212: =F206 -> 0 | G212: £m | H212: 2017/18 FYE
E213: =E207 -> wastewater ~ CIS RCV inflation correction - BY Adjustment at 2017-18 FYE CPIH deflated price base | F213: 0 | G213: £m | H213: 2017/18 FYE
E215: =Indexation!E$123 -> CPIH deflate from 2018 FYE to 2018 FYA - IFRS 16 and Other - Blind Year | F215: =Indexation!F$123 -> 0.9915953061 | G215: =Indexation!G$123 -> factor
E217: Wholesale wastewater closing RCV at 31 March 2020 before midnight adjustments - BY Adjustment at 2017-18 FYA CPIH deflated price base | F217: =F211 * $F$215 -> 0 | G217: £m | H217: 2017/18 FYA
E218: wastewater ~ Total Adjustment RCV carry forward to PR19 - BY Adjustment at 2017-18 FYA CPIH deflated price base | F218: =F212 * $F$215 -> 0 | G218: £m | H218: 2017/18 FYA
E219: Wastewater ~ CIS RCV inflation correction - BY Adjustment at 2017-18 FYA CPIH deflated price base | F219: =F213 * $F$215 -> 0 | G219: £m | H219: 2017/18 FYA
E221: =E147 -> Bioresources RCV (prior to midnight adjustments) 31 March 2020 - Final Determination | F221: =F147 -> 0 | G221: £m | H221: 2017/18 FYA
E222: Bioresources IFRS16 RCV adjustment - Final Determination | F222: 0 | G222: £m | H222: 2017/18 FYA
E223: Wastewater network plus IFRS16 RCV adjustment - Final Determination | F223: 0 | G223: £m | H223: 2017/18 FYA
E225: =E190 -> Bioresources RCV (prior to midnight adjustments) 31 March 2020 - Blind Year | F225: 0 | G225: 0 | H225: 2017/18 FYA
E226: Bioresources IFRS16 RCV adjustment - Blind Year | F226: 0 | G226: 0 | H226: 2017/18 FYA
E227: =E192 -> Wastewater network plus IFRS16 RCV adjustment - Blind Year | F227: 0 | G227: 0 | H227: 2017/18 FYA
E229: Bioresources IFRS16 RCV adjustment - BY Adjustment at 2017-18 FYA CPIH deflated price base | F229: =F225-F221 -> 0 | G229: £m | H229: 2017/18 FYA
E230: Bioresources IFRS16 RCV adjustment - BY Adjustment at 2017-18 FYA CPIH deflated price base | F230: =F226-F222 -> 0 | G230: £m | H230: 2017/18 FYA
E231: Wastewater network plus IFRS16 RCV adjustment - BY Adjustment at 2017-18 FYA CPIH deflated price base | F231: 0 | G231: £m | H231: 2017/18 FYA
A233: DUMMY
C235: Final Determination
D236: Inflate from 2017/18 FYE RPI to 2020 FYE RPI
E237: =InpActive!E$229 -> Dummy RCV (prior to midnight adjustments) 31 March 2020 - Final Determination | F237: =InpActive!F$229 -> 0 | G237: =InpActive!G$229 -> £m | H237: =InpActive!H$229 -> 2017/18 FYE
E238: =Indexation!E$220 -> RPI inflate from 2018 FYE to 2020 FYE- Final Determination | F238: =Indexation!F$220 -> 1.060725835 | G238: =Indexation!G$220 -> factor
E239: Dummy RCV (prior to midnight adjustments) 31 March 2020 - Final Determination | F239: =F237 * $F$238 -> 0 | G239: £m | H239: 2020 FYE
D241: Deflate from 2020 FYE RPI to 2017/18 FYE CPIH
E242: =E239 -> Dummy RCV (prior to midnight adjustments) 31 March 2020 - Final Determination | F242: =F239 -> 0 | G242: £m | H242: 2020 FYE
E243: =Indexation!E$238 -> CPIH deflate from 2020 FYE to 2018 FYE- Final Determination | F243: =Indexation!F$238 -> 0.9615736505 | G243: =Indexation!G$238 -> factor
E244: Dummy RCV (prior to midnight adjustments) 31 March 2020 - Final Determination | F244: =F242 * F$243 -> 0 | G244: £m | H244: 2017/18 FYE
D246: Deflate from 2017/18 FYE CPIH to 2017/18 FYA CPIH
E247: =E$244 -> Dummy RCV (prior to midnight adjustments) 31 March 2020 - Final Determination | F247: =F$244 -> 0 | G247: £m | H247: 2017/18 FYE
E248: =InpActive!E$234 -> Dummy IFRS16 RCV adjustment - Final Determination | F248: =InpActive!F$234 -> 0 | G248: =InpActive!G$234 -> £m | H248: =InpActive!H$234 -> 2017/18 FYE
E250: =Indexation!E$239 -> CPIH deflate from 2018 FYE to 2018 FYA - IFRS 16 and Other- Final Determination | F250: =Indexation!F$239 -> 0.9915953061 | G250: =Indexation!G$239 -> factor
E252: Dummy RCV (prior to midnight adjustments) 31 March 2020 - Final Determination - 2017/18 FYA CPIH | F252: =F247 * F$250 -> 0 | G252: £m | H252: 2017/18 FYA
E253: Dummy IFRS16 RCV adjustment - Final Determination - 2017/18 FYA CPIH | F253: =F248 * F$250 -> 0 | G253: £m | H253: 2017/18 FYA
C255: Blind Year
D257: Inflate from 2017/18 FYE RPI to 2020 FYE RPI
E258: =InpActive!E$242 -> Dummy RCV (prior to midnight adjustments) 31 March 2020 - Blind Year | F258: =InpActive!F$242 -> 0 | G258: =InpActive!G$242 -> £m | H258: =InpActive!H$242 -> 2017/18 FYE
E259: =Indexation!E$101 -> RPI inflate from 2018 FYE to 2020 FYE - Blind Year | F259: =Indexation!F$101 -> 1.051383399 | G259: =Indexation!G$101 -> factor
E260: Dummy RCV (prior to midnight adjustments) 31 March 2020 - Blind Year | F260: =F258 * $F$259 -> 0 | G260: £m | H260: 2020 FYE
D262: Deflate from 2020 FYE RPI to 2017/18 FYE CPIH
E263: =E260 -> Dummy RCV (prior to midnight adjustments) 31 March 2020 - Blind Year | F263: =F260 -> 0 | G263: £m | H263: 2020 FYE
E264: =Indexation!E$121 -> CPIH deflate from 2020 FYE to 2018 FYE - Blind Year | F264: =Indexation!F$121 -> 0.967771639 | G264: =Indexation!G$121 -> factor
E265: Dummy RCV (prior to midnight adjustments) 31 March 2020 - Blind Year | F265: =F263 * F$264 -> 0 | G265: £m | H265: 2017/18 FYE
D267: Deflate from 2017/18 FYE CPIH to 2017/18 FYA CPIH
E268: =E$265 -> Dummy RCV (prior to midnight adjustments) 31 March 2020 - Blind Year | F268: =F$265 -> 0 | G268: £m | H268: 2017/18 FYE
E269: =InpActive!E247 -> Dummy IFRS16 RCV adjustment - Blind Year | F269: =InpActive!F247 -> 0 | G269: =InpActive!G247 -> £m | H269: =InpActive!H247 -> 2017/18 FYE
E271: =Indexation!E$123 -> CPIH deflate from 2018 FYE to 2018 FYA - IFRS 16 and Other - Blind Year | F271: =Indexation!F$123 -> 0.9915953061 | G271: =Indexation!G$123 -> factor
E273: Dummy RCV (prior to midnight adjustments) 31 March 2020 - Blind Year - 2017/18 FYA CPIH | F273: =F268 * F$68 -> 0 | G273: £m | H273: 2017/18 FYA
... 12 more rows

Sheet Rev Differences Inflation Only
A1: =RIGHT(CELL("FILENAME", $A$1), LEN(CELL("FILENAME", $A$1)) - SEARCH("]", CELL("FILENAME", $A$1))) -> Rev Differences Inflation Only
E2: =Time!E$25 -> Model period ending | J2: =Time!J$25 -> 2013-03-31 | K2: =Time!K$25 -> 2014-03-31 | L2: =Time!L$25 -> 2015-03-31 | M2: =Time!M$25 -> 2016-03-31 | N2: =Time!N$25 -> 2017-03-31 | O2: =Time!O$25 -> 2018-03-31 | P2: =Time!P$25 -> 2019-03-31 | Q2: =Time!Q$25 -> 2020-03-31 | R2: =Time!R$25 -> 2021-03-31 | S2: =Time!S$25 -> 2022-03-31 | T2: =Time!T$25 -> 2023-03-31 | U2: =Time!U$25 -> 2024-03-31 | V2: =Time!V$25 -> 2025-03-31
E3: =Time!E$80 -> Timeline label | J3: =Time!J$80 -> Pre-Fcst | K3: =Time!K$80 -> Pre-Fcst | L3: =Time!L$80 -> Pre-Fcst | M3: =Time!M$80 -> Pre-Fcst | N3: =Time!N$80 -> Pre-Fcst | O3: =Time!O$80 -> Pre-Fcst | P3: =Time!P$80 -> Pre-Fcst | Q3: =Time!Q$80 -> Pre-Fcst | R3: =Time!R$80 -> Forecast | S3: =Time!S$80 -> Forecast | T3: =Time!T$80 -> Forecast | U3: =Time!U$80 -> Forecast | V3: =Time!V$80 -> Forecast
E4: =Time!E$103 -> Financial year ending | J4: =Time!J$103 -> 2013 | K4: =Time!K$103 -> 2014 | L4: =Time!L$103 -> 2015 | M4: =Time!M$103 -> 2016 | N4: =Time!N$103 -> 2017 | O4: =Time!O$103 -> 2018 | P4: =Time!P$103 -> 2019 | Q4: =Time!Q$103 -> 2020 | R4: =Time!R$103 -> 2021 | S4: =Time!S$103 -> 2022 | T4: =Time!T$103 -> 2023 | U4: =Time!U$103 -> 2024 | V4: =Time!V$103 -> 2025
D5: Input references | E5: =Time!E$10 -> Model column counter | F5: Constant | G5: Unit | H5: Total | J5: =Time!J$10 -> 1 | K5: =Time!K$10 -> 2 | L5: =Time!L$10 -> 3 | M5: =Time!M$10 -> 4 | N5: =Time!N$10 -> 5 | O5: =Time!O$10 -> 6 | P5: =Time!P$10 -> 7 | Q5: =Time!Q$10 -> 8 | R5: =Time!R$10 -> 9 | S5: =Time!S$10 -> 10 | T5: =Time!T$10 -> 11 | U5: =Time!U$10 -> 12 | V5: =Time!V$10 -> 13
A7: WATER SERVICES
C9: Final Determination
D10: Inflate from 2012/13 FYA RPI to 2020 FYE RPI
E11: =InpActive!E277 -> Further 2010-15 reconciliation total adjustment carry forward to PR19 ~ Water network plus - Final Determination | F11: =InpActive!F277 -> 0.8686440598 | G11: =InpActive!G277 -> £m | H11: =InpActive!H277 -> 2012/13 FYA
E12: =Indexation!E$201 -> RPI inflate from 2013 FYA to 2020 FYE - Final Determination | F12: =Indexation!F$201 -> 1.206498416 | G12: =Indexation!G$201 -> factor
E13: Further 2010-15 reconciliation total adjustment carry forward to PR19 ~ Water network plus - Final Determination | F13: =F11 * F$12 -> 1.048017682 | G13: £m | H13: 2020 FYE RPI
D15: Deflate from 2020 FYE RPI to 2017/18 FYE CPIH
E16: =E13 -> Further 2010-15 reconciliation total adjustment carry forward to PR19 ~ Water network plus - Final Determination | F16: =F13 -> 1.048017682 | G16: =G13 -> £m | H16: =H13 -> 2020 FYE RPI
E17: =Indexation!E$238 -> CPIH deflate from 2020 FYE to 2018 FYE- Final Determination | F17: =Indexation!F$238 -> 0.9615736505 | G17: =Indexation!G$238 -> factor
E18: Further 2010-15 reconciliation total adjustment carry forward to PR19 ~ Water network plus - Final Determination - 2017/18FYE CPIH | F18: =F16 * $F$17 -> 1.007746189 | G18: £m | H18: 2017/18 FYE CPIH
D20: Deflate from 2017/18 FYE CPIH to 2017/18 FYA CPIH
E21: =E18 -> Further 2010-15 reconciliation total adjustment carry forward to PR19 ~ Water network plus - Final Determination - 2017/18FYE CPIH | F21: =F18 -> 1.007746189 | G21: £m | H21: 2017/18 FYE CPIH
E22: =Indexation!E$239 -> CPIH deflate from 2018 FYE to 2018 FYA - IFRS 16 and Other- Final Determination | F22: =Indexation!F$239 -> 0.9915953061 | G22: =Indexation!G$239 -> factor
E23: Further 2010-15 reconciliation total adjustment carry forward to PR19 ~ Water network plus - Final Determination - 2017/18FYA CPIH | F23: =F21 * F$22 -> 0.9992763905 | G23: £m | H23: 2017/18 FYA
C25: Blind Year
D26: Inflate from 2012/13 FYA RPI to 2020 FYE RPI
E27: =InpActive!E287 -> Further 2010-15 reconciliation total adjustment carry forward to PR19 ~ Water network plus - Blind Year | F27: =InpActive!F287 -> 0.869 | G27: =InpActive!G287 -> £m | H27: =InpActive!H287 -> 2012/13 FYA
E28: =Indexation!E$82 -> RPI inflate from 2013 FYA to 2020 FYE - Blind Year | F28: =Indexation!F$82 -> 1.195872075 | G28: =Indexation!G$82 -> factor
E29: Further 2010-15 reconciliation total adjustment carry forward to PR19 ~ Water network plus - Blind Year | F29: =F27 * F$28 -> 1.039212833 | G29: £m | H29: 2020 FYE RPI
D31: Deflate from 2020 FYE RPI to 2017/18 FYE CPIH
E32: =E29 -> Further 2010-15 reconciliation total adjustment carry forward to PR19 ~ Water network plus - Blind Year | F32: =F29 -> 1.039212833 | G32: =G29 -> £m | H32: =H29 -> 2020 FYE RPI
E33: =Indexation!E$121 -> CPIH deflate from 2020 FYE to 2018 FYE - Blind Year | F33: =Indexation!F$121 -> 0.967771639 | G33: =Indexation!G$121 -> factor
E34: Further 2010-15 reconciliation total adjustment carry forward to PR19 ~ Water network plus - Blind Year - 2017/18FYE CPIH | F34: =F32 * $F$33 -> 1.005720707 | G34: £m | H34: 2017/18 FYE CPIH
D36: Deflate from 2017/18 FYE CPIH to 2017/18 FYA CPIH
E37: =E34 -> Further 2010-15 reconciliation total adjustment carry forward to PR19 ~ Water network plus - Blind Year - 2017/18FYE CPIH | F37: =F34 -> 1.005720707 | G37: £m | H37: 2017/18 FYE CPIH
E38: =Indexation!E$123 -> CPIH deflate from 2018 FYE to 2018 FYA - IFRS 16 and Other - Blind Year | F38: =Indexation!F$123 -> 0.9915953061 | G38: =Indexation!G$123 -> factor
E39: Further 2010-15 reconciliation total adjustment carry forward to PR19 ~ Water network plus - Blind Year - 2017/18FYA CPIH | F39: =F37 * F$38 -> 0.9972679323 | G39: £m | H39: 2017/18 FYA
C41: Adjustment
E42: =E18 -> Further 2010-15 reconciliation total adjustment carry forward to PR19 ~ Water network plus - Final Determination - 2017/18FYE CPIH | F42: =F18 -> 1.007746189 | G42: £m | H42: 2017/18 FYE CPIH
E43: =E23 -> Further 2010-15 reconciliation total adjustment carry forward to PR19 ~ Water network plus - Final Determination - 2017/18FYA CPIH | F43: =F23 -> 0.9992763905 | G43: £m | H43: 2017/18 FYA
E45: =E34 -> Further 2010-15 reconciliation total adjustment carry forward to PR19 ~ Water network plus - Blind Year - 2017/18FYE CPIH | F45: =F34 -> 1.005720707 | G45: £m | H45: 2017/18 FYE CPIH
E46: =E39 -> Further 2010-15 reconciliation total adjustment carry forward to PR19 ~ Water network plus - Blind Year - 2017/18FYA CPIH | F46: =F39 -> 0.9972679323 | G46: £m | H46: 2017/18 FYA
E48: Further 2010-15 reconciliation total adjustment carry forward to PR19 ~ Water network plus - BY adjustment - 2017/18FYE CPIH | F48: =F45-F42 -> -0.002025481693 | G48: £m | H48: 2017/18 FYE CPIH
E49: Further 2010-15 reconciliation total adjustment carry forward to PR19 ~ Water network plus - BY adjustment - 2017/18FYA CPIH | F49: =F46-F43 -> -0.002008458139 | G49: £m | H49: 2017/18 FYA
A52: WASTEWATER
C54: Final Determination
D55: Inflate from 2012/13 FYA RPI to 2020 FYE RPI
E56: =InpActive!E315 -> Further 2010-15 reconciliation total adjustment carry forward to PR19 ~ Wastewater network plus - Final Determination | F56: =InpActive!F315 -> 0 | G56: =InpActive!G315 -> £m | H56: =InpActive!H315 -> 2012/13 FYA
E57: =Indexation!E$201 -> RPI inflate from 2013 FYA to 2020 FYE - Final Determination | F57: =Indexation!F$201 -> 1.206498416 | G57: =Indexation!G$201 -> factor
E58: Further 2010-15 reconciliation total adjustment carry forward to PR19 ~ Wastewater network plus - Final Determination | F58: =F56 * F$57 -> 0 | G58: £m | H58: 2020 FYE RPI
D60: Deflate from 2020 FYE RPI to 2017/18 FYE CPIH
E61: =E58 -> Further 2010-15 reconciliation total adjustment carry forward to PR19 ~ Wastewater network plus - Final Determination | F61: =F58 -> 0 | G61: =G58 -> £m | H61: =H58 -> 2020 FYE RPI
E62: =Indexation!E$238 -> CPIH deflate from 2020 FYE to 2018 FYE- Final Determination | F62: =Indexation!F$238 -> 0.9615736505 | G62: =Indexation!G$238 -> factor
E63: Further 2010-15 reconciliation total adjustment carry forward to PR19 ~ Wastewater network plus - Final Determination - 2017/18FYE CPIH | F63: =F61 * $F$62 -> 0 | G63: £m | H63: 2017/18 FYE CPIH
D65: Deflate from 2017/18 FYE CPIH to 2017/18 FYA CPIH
E66: =E63 -> Further 2010-15 reconciliation total adjustment carry forward to PR19 ~ Wastewater network plus - Final Determination - 2017/18FYE CPIH | F66: =F63 -> 0 | G66: £m | H66: 2017/18 FYE CPIH
E67: =Indexation!E$239 -> CPIH deflate from 2018 FYE to 2018 FYA - IFRS 16 and Other- Final Determination | F67: =Indexation!F$239 -> 0.9915953061 | G67: =Indexation!G$239 -> factor
E68: Further 2010-15 reconciliation total adjustment carry forward to PR19 ~ Wastewater network plus - Final Determination - 2017/18FYA CPIH | F68: =F66 * F$67 -> 0 | G68: £m | H68: 2017/18 FYA
C71: Blind Year
D72: Inflate from 2012/13 FYA RPI to 2020 FYE RPI
E73: =InpActive!E323 -> Further 2010-15 reconciliation total adjustment carry forward to PR19 ~ Wastewater network plus - Blind Year | F73: =InpActive!F323 -> 0 | G73: =InpActive!G323 -> £m | H73: =InpActive!H323 -> 2012/13 FYA
E74: =Indexation!E$82 -> RPI inflate from 2013 FYA to 2020 FYE - Blind Year | F74: =Indexation!F$82 -> 1.195872075 | G74: =Indexation!G$82 -> factor
E75: Further 2010-15 reconciliation total adjustment carry forward to PR19 ~ Wastewater network plus - Blind Year | F75: =F73 * F$74 -> 0 | G75: £m | H75: 2020 FYE RPI
D77: Deflate from 2020 FYE RPI to 2017/18 FYE CPIH
E78: =E75 -> Further 2010-15 reconciliation total adjustment carry forward to PR19 ~ Wastewater network plus - Blind Year | F78: =F75 -> 0 | G78: =G75 -> £m | H78: =H75 -> 2020 FYE RPI
E79: =Indexation!E$121 -> CPIH deflate from 2020 FYE to 2018 FYE - Blind Year | F79: =Indexation!F$121 -> 0.967771639 | G79: =Indexation!G$121 -> factor
E80: Further 2010-15 reconciliation total adjustment carry forward to PR19 ~ Wastewater network plus - Blind Year - 2017/18FYE CPIH | F80: =F78 * $F$79 -> 0 | G80: £m | H80: 2017/18 FYE CPIH
D82: Deflate from 2017/18 FYE CPIH to 2017/18 FYA CPIH
E83: =E80 -> Further 2010-15 reconciliation total adjustment carry forward to PR19 ~ Wastewater network plus - Blind Year - 2017/18FYE CPIH | F83: =F80 -> 0 | G83: £m | H83: 2017/18 FYE CPIH
E84: =Indexation!E$123 -> CPIH deflate from 2018 FYE to 2018 FYA - IFRS 16 and Other - Blind Year | F84: =Indexation!F$123 -> 0.9915953061 | G84: =Indexation!G$123 -> factor
E85: Further 2010-15 reconciliation total adjustment carry forward to PR19 ~ Wastewater network plus - Blind Year - 2017/18FYA CPIH | F85: =F83 * F$84 -> 0 | G85: £m | H85: 2017/18 FYA
C87: Adjustment
E88: =E63 -> Further 2010-15 reconciliation total adjustment carry forward to PR19 ~ Wastewater network plus - Final Determination - 2017/18FYE CPIH | F88: 0 | G88: £m | H88: 2017/18 FYE CPIH
E89: =E68 -> Further 2010-15 reconciliation total adjustment carry forward to PR19 ~ Wastewater network plus - Final Determination - 2017/18FYA CPIH | F89: 0 | G89: £m | H89: 2017/18 FYA
E91: =E80 -> Further 2010-15 reconciliation total adjustment carry forward to PR19 ~ Wastewater network plus - Blind Year - 2017/18FYE CPIH | F91: 0 | G91: £m | H91: 2017/18 FYE CPIH
E92: =E85 -> Further 2010-15 reconciliation total adjustment carry forward to PR19 ~ Wastewater network plus - Blind Year - 2017/18FYA CPIH | F92: =F85 -> 0 | G92: £m | H92: 2017/18 FYA
E94: Further 2010-15 reconciliation total adjustment carry forward to PR19 ~ Wastewater network plus - BY adjustment - 2017/18FYE CPIH | F94: =F91-F88 -> 0 | G94: £m | H94: 2017/18 FYE CPIH
E95: Further 2010-15 reconciliation total adjustment carry forward to PR19 ~ Wastewater network plus - BY adjustment - 2017/18FYA CPIH | F95: =F92-F89 -> 0 | G95: £m | H95: 2017/18 FYA
A98: End of sheet

Sheet RCV BY RPI-CPIH wedge
A1: =RIGHT(CELL("FILENAME", $A$1), LEN(CELL("FILENAME", $A$1)) - SEARCH("]", CELL("FILENAME", $A$1))) -> RCV BY RPI-CPIH wedge
E2: =Time!E$25 -> Model period ending | J2: =Time!J$25 -> 2013-03-31 | K2: =Time!K$25 -> 2014-03-31 | L2: =Time!L$25 -> 2015-03-31 | M2: =Time!M$25 -> 2016-03-31 | N2: =Time!N$25 -> 2017-03-31 | O2: =Time!O$25 -> 2018-03-31 | P2: =Time!P$25 -> 2019-03-31 | Q2: =Time!Q$25 -> 2020-03-31 | R2: =Time!R$25 -> 2021-03-31 | S2: =Time!S$25 -> 2022-03-31 | T2: =Time!T$25 -> 2023-03-31 | U2: =Time!U$25 -> 2024-03-31 | V2: =Time!V$25 -> 2025-03-31
E3: =Time!E$80 -> Timeline label | J3: =Time!J$80 -> Pre-Fcst | K3: =Time!K$80 -> Pre-Fcst | L3: =Time!L$80 -> Pre-Fcst | M3: =Time!M$80 -> Pre-Fcst | N3: =Time!N$80 -> Pre-Fcst | O3: =Time!O$80 -> Pre-Fcst | P3: =Time!P$80 -> Pre-Fcst | Q3: =Time!Q$80 -> Pre-Fcst | R3: =Time!R$80 -> Forecast | S3: =Time!S$80 -> Forecast | T3: =Time!T$80 -> Forecast | U3: =Time!U$80 -> Forecast | V3: =Time!V$80 -> Forecast
E4: =Time!E$103 -> Financial year ending | J4: =Time!J$103 -> 2013 | K4: =Time!K$103 -> 2014 | L4: =Time!L$103 -> 2015 | M4: =Time!M$103 -> 2016 | N4: =Time!N$103 -> 2017 | O4: =Time!O$103 -> 2018 | P4: =Time!P$103 -> 2019 | Q4: =Time!Q$103 -> 2020 | R4: =Time!R$103 -> 2021 | S4: =Time!S$103 -> 2022 | T4: =Time!T$103 -> 2023 | U4: =Time!U$103 -> 2024 | V4: =Time!V$103 -> 2025
D5: Input references | E5: =Time!E$10 -> Model column counter | F5: Constant | G5: Unit | H5: Total | J5: =Time!J$10 -> 1 | K5: =Time!K$10 -> 2 | L5: =Time!L$10 -> 3 | M5: =Time!M$10 -> 4 | N5: =Time!N$10 -> 5 | O5: =Time!O$10 -> 6 | P5: =Time!P$10 -> 7 | Q5: =Time!Q$10 -> 8 | R5: =Time!R$10 -> 9 | S5: =Time!S$10 -> 10 | T5: =Time!T$10 -> 11 | U5: =Time!U$10 -> 12 | V5: =Time!V$10 -> 13
A7: WATER SERVICES
C9: Final Determination
D10: RCV at 31 March 2020 post midnight adjustments before allocation to price control units and IFRS16 adjustments at 2017-18 FYA CPIH deflated price base
E11: =InpActive!E152 -> Total wholesale water RCV at 31 March 2020 post midnight adjustments before allocation to price control units at 2017-18 FYE CPIH deflated price base - Final Determination | F11: =InpActive!F152 -> 1162.276685 | G11: =InpActive!G152 -> £m | H11: =InpActive!H152 -> 2017/18 FYE
E12: =InpActive!E147 -> Water ~ Other adjustment to wholesale RCV - Final Determination | F12: =InpActive!F147 -> 0 | G12: =InpActive!G147 -> £m | H12: =InpActive!H147 -> 2017/18 FYE
E14: =Indexation!E$239 -> CPIH deflate from 2018 FYE to 2018 FYA - IFRS 16 and Other- Final Determination | F14: =Indexation!F$239 -> 0.9915953061 | G14: =Indexation!G$239 -> factor
E16: Wholesale water closing RCV at 31 March 2020 post midnight adjustments (exc IFRS16) at 2017-18 FYA CPIH prices - Final Determination | F16: =F11 * F14 -> 1152.508105 | G16: £m | H16: 2017/18 FYA
E17: =E12 & " at 2017-18FYA CPIH prices" -> Water ~ Other adjustment to wholesale RCV - Final Determination at 2017-18FYA CPIH prices | F17: =F12 * F14 -> 0 | G17: £m | H17: 2017/18 FYA
E18: Wholesale water closing RCV at 31 March 2020 post midnight adjustments (exc IFRS16 and Other) at 2017-18 FYA CPIH prices - Final Determination | F18: =F16 - F17 -> 1152.508105 | G18: £m | H18: 2017/18 FYA
E20: =InpActive!E153 -> Water resources 2020 RCV RPI inflated ~ 1 April (opening balance excluding IFRS16 and Other adjustment) at 2017-18 CPIH deflated price base - Final Determination | F20: =InpActive!F153 -> 63.36923777 | G20: =InpActive!G153 -> £m | H20: =InpActive!H153 -> 2017/18 FYA
E21: =InpActive!E154 -> Water resources 2020 RCV CPIH inflated ~ 1 April (opening balance excluding IFRS16 and Other adjustment) at 2017-18 CPIH deflated price base - Final Determination | F21: =InpActive!F154 -> 63.36923777 | G21: =InpActive!G154 -> £m | H21: =InpActive!H154 -> 2017/18 FYA
E22: =InpActive!E156 -> Water network plus RCV RPI inflated ~ 1 April (opening balance excluding IFRS16 and other adjustment) at 2017-18 CPIH deflated price base - Final Determination | F22: =InpActive!F156 -> 512.8848146 | G22: =InpActive!G156 -> £m | H22: =InpActive!H156 -> 2017/18 FYA
E23: =InpActive!E157 -> Water network plus RCV CPIH inflated ~ 1 April (opening balance excluding IFRS16 and other adjustment) at 2017-18 CPIH deflated price base - Final Determination | F23: =InpActive!F157 -> 512.8848146 | G23: =InpActive!G157 -> £m | H23: =InpActive!H157 -> 2017/18 FYA
C26: Blind Year
D27: RCV at 31 March 2020 post midnight adjustments before allocation to price control units and IFRS16 adjustments at 2017-18 FYA CPIH deflated price base
E28: =InpActive!E172 -> Total wholesale water RCV at 31 March 2020 post midnight adjustments before allocation to price control units at 2017-18 FYE CPIH deflated price base - Blind Year | F28: =InpActive!F172 -> 1161.258124 | G28: =InpActive!G172 -> £m | H28: =InpActive!H172 -> 2017/18 FYE
E29: =InpActive!E167 -> Water ~ Other adjustment to wholesale RCV - Blind Year | F29: =InpActive!F167 -> 0 | G29: =InpActive!G167 -> £m | H29: =InpActive!H167 -> 2017/18 FYE
E31: =Indexation!E$123 -> CPIH deflate from 2018 FYE to 2018 FYA - IFRS 16 and Other - Blind Year | F31: =Indexation!F$123 -> 0.9915953061 | G31: =Indexation!G$123 -> factor
E33: Wholesale water closing RCV at 31 March 2020 post midnight adjustments (exc IFRS16) at 2017-18 FYA CPIH prices - Blind Year | F33: =F28 * F31 -> 1151.498105 | G33: £m | H33: 2017/18 FYA
E34: =E29 & " at 2017-18FYA CPIH prices" -> Water ~ Other adjustment to wholesale RCV - Blind Year at 2017-18FYA CPIH prices | F34: =F29 * F31 -> 0 | G34: £m | H34: 2017/18 FYA
E35: Wholesale water closing RCV at 31 March 2020 post midnight adjustments (exc IFRS16 and Other) at 2017-18 FYA CPIH prices - Blind Year | F35: =F33 - F34 -> 1151.498105 | G35: £m | H35: 2017/18 FYA
E37: =InpActive!E173 -> Water resources 2020 RCV RPI inflated ~ 1 April (opening balance excluding IFRS16 and Other adjustment) at 2017-18 CPIH deflated price base - Blind Year | F37: =InpActive!F173 -> 63.31370418 | G37: =InpActive!G173 -> £m | H37: =InpActive!H173 -> 2017/18 FYA
E38: =InpActive!E174 -> Water resources 2020 RCV CPIH inflated ~ 1 April (opening balance excluding IFRS16 and Other adjustment) at 2017-18 CPIH deflated price base - Blind Year | F38: =InpActive!F174 -> 63.31370418 | G38: =InpActive!G174 -> £m | H38: =InpActive!H174 -> 2017/18 FYA
E39: =InpActive!E176 -> Water network plus RCV RPI inflated ~ 1 April (opening balance excluding IFRS16 and other adjustment) at 2017-18 CPIH deflated price base - Blind Year | F39: =InpActive!F176 -> 512.4353482 | G39: =InpActive!G176 -> £m | H39: =InpActive!H176 -> 2017/18 FYA
E40: =InpActive!E177 -> Water network plus RCV CPIH inflated ~ 1 April (opening balance excluding IFRS16 and other adjustment) at 2017-18 CPIH deflated price base - Blind Year | F40: =InpActive!F177 -> 512.4353482 | G40: =InpActive!G177 -> £m | H40: =InpActive!H177 -> 2017/18 FYA
C43: Differences
E44: Wholesale water closing RCV at 31 March 2020 post midnight adjustments (exc IFRS16) at 2017-18 FYA CPIH prices - Difference | F44: =F33 - F16 -> -1.009999871 | G44: £m | H44: 2017/18 FYA
E45: Wholesale water closing RCV at 31 March 2020 post midnight adjustments (exc IFRS16 and Other) at 2017-18 FYA CPIH prices - Difference | F45: =F35 - F18 -> -1.009999871 | G45: £m | H45: 2017/18 FYA
E46: Water resources 2020 RCV RPI inflated ~ 1 April (opening balance excluding IFRS16 and Other adjustment) at 2017-18 CPIH deflated price base - Difference | F46: =F37 - F20 -> -0.05553359815 | G46: £m | H46: 2017/18 FYA
E47: Water resources 2020 RCV CPIH inflated ~ 1 April (opening balance excluding IFRS16 and Other adjustment) at 2017-18 CPIH deflated price base - Difference | F47: =F38 - F21 -> -0.05553359815 | G47: £m | H47: 2017/18 FYA
E48: Water network plus RCV RPI inflated ~ 1 April (opening balance excluding IFRS16 and other adjustment) at 2017-18 CPIH deflated price base - Difference | F48: =F39 - F22 -> -0.4494663371 | G48: £m | H48: 2017/18 FYA
E49: Water network plus RCV CPIH inflated ~ 1 April (opening balance excluding IFRS16 and other adjustment) at 2017-18 CPIH deflated price base - Difference | F49: =F40 - F23 -> -0.4494663371 | G49: £m | H49: 2017/18 FYA
C52: Blind year adjustments
E53: ='RCV Differences Inflation Only'!E94 -> Water ~ Total Adjustment RCV carry forward to PR19 - BY Adjustment at 2017-18 FYA CPIH deflated price base | F53: ='RCV Differences Inflation Only'!F94 -> 0.02450064767 | G53: ='RCV Differences Inflation Only'!G94 -> £m | H53: ='RCV Differences Inflation Only'!H94 -> 2017/18 FYA
E54: ='RCV Differences Inflation Only'!E95 -> Water ~ CIS RCV inflation correction - BY Adjustment at 2017-18 FYA CPIH deflated price base | F54: ='RCV Differences Inflation Only'!F95 -> 0.06247846857 | G54: ='RCV Differences Inflation Only'!G95 -> £m | H54: ='RCV Differences Inflation Only'!H95 -> 2017/18 FYA
E55: ='RCV Calc'!E$39 -> Water ~ NPV effect of 50% of proceeds from disposals of interest in land at 2017-18 FYA CPIH deflated price base | F55: ='RCV Calc'!F$39 -> 0.06371502938 | G55: ='RCV Calc'!G$39 -> £m | H55: ='RCV Calc'!H$39 -> 2017/18 FYA CPIH
E56: ='RCV Calc'!E$40 -> ODI end of period RCV adjustment ~ Water resources at 2017-18 FYA CPIH deflated price base | F56: ='RCV Calc'!F$40 -> 0 | G56: ='RCV Calc'!G$40 -> £m | H56: ='RCV Calc'!H$40 -> 2017/18 FYA CPIH
E57: ='RCV Calc'!E$41 -> ODI end of period RCV adjustment ~ Water network plus at 2017-18 FYA CPIH deflated price base | F57: ='RCV Calc'!F$41 -> 0 | G57: ='RCV Calc'!G$41 -> £m | H57: ='RCV Calc'!H$41 -> 2017/18 FYA CPIH
E58: ='RCV Calc'!E$42 -> Water: Totex menu RCV adjustment at 2017-18 FYA CPIH deflated price base | F58: ='RCV Calc'!F$42 -> 1.714870394 | G58: ='RCV Calc'!G$42 -> £m | H58: ='RCV Calc'!H$42 -> 2017/18 FYA CPIH
E59: ='RCV Calc'!E$43 -> Water ~ Other adjustment to wholesale RCV - Difference at 2017-18 FYA CPIH deflated price base | F59: ='RCV Calc'!F$43 -> 0 | G59: ='RCV Calc'!G$43 -> £m | H59: ='RCV Calc'!H$43 -> 2017/18 FYA CPIH
E60: Water total blind year adjustments at 2017-18 FYA CPIH deflated price base | F60: =SUM(F53:F59) -> 1.86556454 | G60: £m | H60: 2017/18 FYA
D62: Allocation to PR19 price controls
E63: =InpActive!E149 -> Water resources % of total wholesale water RCV ~ 31 March 2020 - Final Determination | F63: =InpActive!F149 -> 0.1099675352 | G63: =InpActive!G149 -> %
E64: PR09 blind year adjustment - WR | F64: =F53 * $F$63 -> 0.002694275835 | G64: £m | H64: 2017-18 FYA CPIH
E65: CIS RCV inflation correction - WR | F65: =F54 * $F$63 -> 0.00687060319 | G65: £m | H65: 2017-18 FYA CPIH
E66: Land sales - WR | F66: =F55 * $F$63 -> 0.007006584734 | G66: £m | H66: 2017-18 FYA CPIH
E67: ODI end of period RCV adjustment ~ Water resources at 2017-18 FYA CPIH deflated price base | F67: =F56 -> 0 | G67: £m | H67: 2017-18 FYA CPIH
E68: Totex - WR | F68: =F58 * $F$63 -> 0.1885800704 | G68: £m | H68: 2017-18 FYA CPIH
E69: Water ~ Other adjustment to wholesale RCV - WR | F69: =F59 * $F$63 -> 0 | G69: £m | H69: 2017-18 FYA CPIH
E70: Total blind year adjustments - WR | F70: =SUM(F64:F69) -> 0.2051515341 | G70: £m | H70: 2017-18 FYA CPIH
E72: ='RCV Differences Inflation Only'!E103 -> Water resources IFRS16 RCV adjustment - BY Adjustment at 2017-18 FYA CPIH deflated price base | F72: ='RCV Differences Inflation Only'!F103 -> 0 | G72: ='RCV Differences Inflation Only'!G103 -> £m | H72: ='RCV Differences Inflation Only'!H103 -> 2017/18 FYA
E74: Water network % of total wholesale water RCV ~ 31 March 2020 - Final Determination | F74: =1 - F63 -> 0.8900324648 | G74: %
E75: Land sales - WN | F75: =F53 * $F$74 -> 0.02180637184 | G75: £m | H75: 2017-18 FYA CPIH
E76: PR09 blind year adjustment - WN | F76: =F54 * $F$74 -> 0.05560786538 | G76: £m | H76: 2017-18 FYA CPIH
E77: CIS RCV inflation correction - WN | F77: =F55 * $F$74 -> 0.05670844464 | G77: £m | H77: 2017-18 FYA CPIH
E78: ODI end of period RCV adjustment ~ Water network plus at 2017-18 FYA CPIH deflated price base | F78: =F57 -> 0 | G78: £m | H78: 2017-18 FYA CPIH
E79: Totex - WN | F79: =F58 * $F$74 -> 1.526290324 | G79: £m | H79: 2017-18 FYA CPIH
E80: Water ~ Other adjustment to wholesale RCV - WN | F80: =F59 * $F$74 -> 0 | G80: £m | H80: 2017-18 FYA CPIH
E81: Total blind year adjustments - WN | F81: =SUM(F75:F80) -> 1.660413005 | G81: £m | H81: 2017-18 FYA CPIH
E83: ='RCV Differences Inflation Only'!E104 -> Water network plus IFRS16 RCV adjustment - BY Adjustment at 2017-18 FYA CPIH deflated price base | F83: ='RCV Differences Inflation Only'!F104 -> 0 | G83: ='RCV Differences Inflation Only'!G104 -> £m | H83: ='RCV Differences Inflation Only'!H104 -> 2017/18 FYA
C85: 2019-20 RPI-CPIH wedge adjustments
D86: PR14 price control
E87: =E44 -> Wholesale water closing RCV at 31 March 2020 post midnight adjustments (exc IFRS16) at 2017-18 FYA CPIH prices - Difference | F87: =F44 -> -1.009999871 | G87: £m | H87: 2017/18 FYA
E88: Wholesale water closing RCV at 31 March 2020 post midnight adjustments (exc IFRS16 and Other) at 2017-18 FYA CPIH prices - Difference | F88: -1.009999871 | G88: £m | H88: 2017/18 FYA
E89: =E60 -> Water total blind year adjustments at 2017-18 FYA CPIH deflated price base | F89: =F60 -> 1.86556454 | G89: =G60 -> £m | H89: =H60 -> 2017/18 FYA
E90: =E72 -> Water resources IFRS16 RCV adjustment - BY Adjustment at 2017-18 FYA CPIH deflated price base | F90: =F72 -> 0 | G90: =G72 -> £m | H90: =H72 -> 2017/18 FYA
